Workbook

Sheet Intro
F1: 2.2
B3: Klik in een regel in de lijst hieronder en dan op "Ga naar gekozen sheet" om die functie te gebruiken.
B4: Click in a row in the list below and then the button "Go to selected sheet" to use that function.
E5: in Excel 2007 worden de knoppen toegevoegd aan de tab Add-Ins
A7: Nummer
C8: Functie | E8: Omschrijving | F8: Description
C9: merge_source_dest | E9: Samenvoegen van twee excel bestanden | F9: Info from a source file is merged into a destination file.
C10: doubles | E10: Zoek de dubbele op in een spreadsheet | F10: It will find doubles in a selection in Excel for you
C11: Bestandenlijst | E11: Maak een lijst van bestanden in een te selecteren map op schijf. | F11: Creates a list of files of your directory, including its subdirectories.
C12: filter_sort | E12: Een verzameling van knopjes om te sorteren, te filteren op een tekst, te sorteren op kleur en om unieke waarden te vinden. | F12: A collection of buttons to sort, sort on color, find a text, find unique values.
C13: unprotect | E13: Hiermee kun je de beveiliging van een sheet halen | F13: To remove the password protection of a sheet.
C14: regressie | E14: Maak van x en y punten een vergelijking | F14: To find the formula for given x and y points.
C15: generator | E15: bereken kortsluitstroom generator in pu
C16: Harmonischen | E16: Grafieken om effect harmonischen inzichtelijk te maken | F16: Graphs for showing the effect of harmonic currents.
C17: Combineer | E17: Merge een selectie naar 1 cel | F17: Merge a selection to one cell
C18: NummersKolom | E18: Hiermee wordt in de eerste kolom van een spreadsheet op elke regel een nummer gezet oplopend met 10 zodat je de volgorde van je data altijd weer terug kunt halen en om elke rij een uniek nummer te geven. | F18: The first column will de filled with an ascending list of numbers with a step of 10 to keep in mind the current sorting and to give each row a unique number.
C19: netberekening maximaal
C20: InhoudsOpgave | E20: Voeg individuele files toe aan een excel workbook inclusief een hyperlink. Dit wordt nu gebruikt bij de coentunnel
C21: Transformer | E21: Waarden voor de inush van een transformetor | F21: Inrush values for transformer
C23: IECtransf
C24: create_index

Sheet Sheet2 (hidden)

Sheet Inhoudsopgave (hidden)
F1: Inhoudsopgave
F8: Hier kun je de documenten in je project beheren
F9: rrr
F10: maak het workbook shared via menu "tools/share workbook"
F11: het bestand wordt bewaard.
F12: Je excel workbook moet onderstaande titles hebben in de eerste regel. Kopieer deze.
F15: Titel | G15: Hyperlink | H15: auteur | I15: Waar gaat het over.
F18: klik op het knopje wat je maakt met "create menu button"
F19: selecteer een bestand en voeg een omschrijving toe.

Sheet Harmonischen (hidden)
C2: DE GELE VELDEN KUNNEN WORDEN INGEVULD, DE REST REKENT VANZELF DOOR
D4: L1 | F4: L2 | H4: L3 | J4: PEN | L4: HOGERE HARMONISCHEN BIJDRAGE IN %
B6: stroom/fase | D6: 1000 | E6: A | F6: 1000 | G6: A | H6: 1000 | I6: A | L6: bijdrage 3e | M6: 15 | N6: bijdrage 5e | O6: 20 | P6: bijdrage 7e | Q6: 0 | R6: bijdrage 9e | S6: 10
AH48: © Arthur Verhalle / VERHALLE GROEP
B51: Harm. | C51: % t.o.v. 1
B53: 1 | C53: 100
B54: 2
B55: 3 | C55: 20
B56: 4
B57: 5
B58: 6
B59: 7
B60: 8
B61: 9
B62: 10
B63: 11
B64: 12
B65: 13
B66: 14
B67: 15
B68: 16
B69: 17
B70: 18
B71: 19
B72: 20
B73: 21
B74: 22
B75: 23
B76: 24
B77: 25
S107: L1 | U107: L2 | W107: L3 | Y107: PEN | AB107: L1_3e | AC107: L1_5e | AD107: L1_7e | AE107: L1_9e | AF107: L1_totaal | AH107: L2_3e | AI107: L2_5e | AJ107: L2_7e | AK107: L2_9e | AL107: L2_totaal | AN107: L3_3e | AO107: L3_5e | AP107: L3_7e | AQ107: L3_9e | AR107: L3_totaal | AT107: PEN_tot
C109: 0 | D109: =+$D$6*SIN(RADIANS(C109)) -> 0 | F109: =+$F$6*SIN(RADIANS(C109-120)) -> -866.0254038 | H109: =+$H$6*SIN(RADIANS(C109-240)) -> 866.0254038 | J109: =+D109+F109+H109 -> 0 | R109: 0 | S109: =+$D$6*(SIN(RADIANS(R109))) -> 0 | U109: =+$F$6*SIN(RADIANS(R109-120)) -> -866.0254038 | W109: =+$H$6*SIN(RADIANS(R109-240)) -> 866.0254038 | Y109: =+S109+U109+W109 -> 0 | AB109: =+$D$6*($M$6/100)*(SIN(RADIANS(3*R109))) -> 0 | AC109: =+$D$6*($O$6/100)*(SIN(RADIANS(5*R109))) -> 0 | AD109: =+$D$6*($Q$6/100)*(SIN(RADIANS(7*R109))) -> 0 | AE109: =+$D$6*($S$6/100)*(SIN(RADIANS(9*R109))) -> 0 | AF109: =+S109+AB109+AC109+AD109+AE109 -> 0 | AH109: =+$F$6*($M$6/100)*(SIN(RADIANS(3*($R109-120)))) -> 3.675445365e-14 | AI109: =+$F$6*($O$6/100)*(SIN(RADIANS(5*($R109-120)))) -> 173.2050808 | AJ109: =+$F$6*($Q$6/100)*(SIN(RADIANS(7*($R109-120)))) -> 0 | AK109: =+$F$6*($S$6/100)*(SIN(RADIANS(9*($R109-120)))) -> 7.350890729e-14 | AL109: =+AH109+AI109+AJ109+AK109+U109 -> -692.820323 | AN109: =+$H$6*($M$6/100)*(SIN(RADIANS(3*($R109-240)))) -> 7.350890729e-14 | AO109: =+$H$6*($O$6/100)*(SIN(RADIANS(5*($R109-240)))) -> -173.2050808 | AP109: =+$H$6*($Q$6/100)*(SIN(RADIANS(7*($R109-240)))) -> 0 | AQ109: =+$H$6*($S$6/100)*(SIN(RADIANS(9*($R109-240)))) -> 1.470178146e-13 | AR109: =+AN109+AO109+AP109+AQ109+W109 -> 692.820323 | AT109: =+AF109+AL109+AR109 -> 0
C110: 10 | D110: =+$D$6*SIN(RADIANS(C110)) -> 173.6481777 | F110: =+$F$6*SIN(RADIANS(C110-120)) -> -939.6926208 | H110: =+$H$6*SIN(RADIANS(C110-240)) -> 766.0444431 | J110: =+D110+F110+H110 -> 0 | R110: 10 | S110: =+$D$6*(SIN(RADIANS(R110))) -> 173.6481777 | U110: =+$F$6*SIN(RADIANS(R110-120)) -> -939.6926208 | W110: =+$H$6*SIN(RADIANS(R110-240)) -> 766.0444431 | Y110: =+S110+U110+W110 -> 0 | AB110: =+$D$6*($M$6/100)*(SIN(RADIANS(3*R110))) -> 75 | AC110: =+$D$6*($O$6/100)*(SIN(RADIANS(5*R110))) -> 153.2088886 | AD110: =+$D$6*($Q$6/100)*(SIN(RADIANS(7*R110))) -> 0 | AE110: =+$D$6*($S$6/100)*(SIN(RADIANS(9*R110))) -> 100 | AF110: =+S110+AB110+AC110+AD110+AE110 -> 501.8570663 | AH110: 75 | AI110: 34.72963553 | AJ110: 0 | AK110: 100 | AL110: =+AH110+AI110+AJ110+AK110+U110 -> -729.9629853 | AN110: 75 | AO110: -187.9385242 | AP110: 0 | AQ110: 100 | AR110: =+AN110+AO110+AP110+AQ110+W110 -> 753.105919 | AT110: =+AF110+AL110+AR110 -> 525
C111: 20 | D111: =+$D$6*SIN(RADIANS(C111)) -> 342.0201433 | F111: -984.807753 | H111: 642.7876097 | J111: 0 | R111: 20 | S111: 342.0201433 | U111: -984.807753 | W111: 642.7876097 | Y111: 0 | AB111: 129.9038106 | AC111: 196.9615506 | AD111: 0 | AE111: 1.225148455e-14 | AF111: 668.8855045 | AH111: 129.9038106 | AI111: -128.5575219 | AJ111: 0 | AK111: -6.125742275e-14 | AL111: -983.4614644 | AN111: 129.9038106 | AO111: -68.40402867 | AP111: 0 | AQ111: 2.205050378e-13 | AR111: 704.2873916 | AT111: 389.7114317
C112: 30 | D112: 500 | F112: -1000 | H112: 500 | J112: 0 | R112: 30 | S112: 500 | U112: -1000 | W112: 500 | Y112: 0 | AB112: 150 | AC112: 100 | AD112: 0 | AE112: -100 | AF112: 650 | AH112: 150 | AI112: -200 | AJ112: 0 | AK112: -100 | AL112: -1150 | AN112: 150 | AO112: 100 | AP112: 0 | AQ112: -100 | AR112: 650 | AT112: 150
C113: 40 | D113: 642.7876097 | F113: -984.807753 | H113: 342.0201433 | J113: 0 | R113: 40 | S113: 642.7876097 | U113: -984.807753 | W113: 342.0201433 | Y113: 0 | AB113: 129.9038106 | AC113: -68.40402867 | AD113: 0 | AE113: -2.45029691e-14 | AF113: 704.2873916 | AH113: 129.9038106 | AI113: -128.5575219 | AJ113: 0 | AK113: 4.90059382e-14 | AL113: -983.4614644 | AN113: 129.9038106 | AO113: 196.9615506 | AP113: 0 | AQ113: 1.225148455e-13 | AR113: 668.8855045 | AT113: 389.7114317
C114: 45 | D114: 707.1067812 | F114: -965.9258263 | H114: 258.8190451 | J114: 0 | R114: 45 | S114: 707.1067812 | U114: -965.9258263 | W114: 258.8190451 | Y114: 0 | AB114: 106.0660172 | AC114: -141.4213562 | AD114: 0 | AE114: 70.71067812 | AF114: 742.4621202 | AH114: 106.0660172 | AI114: -51.76380902 | AJ114: 0 | AK114: 70.71067812 | AL114: -840.91294 | AN114: 106.0660172 | AO114: 193.1851653 | AP114: 0 | AQ114: 70.71067812 | AR114: 628.7809057 | AT114: 530.3300859
C115: 50 | D115: 766.0444431 | F115: -939.6926208 | H115: 173.6481777 | J115: 2.557953849e-13 | R115: 50 | S115: 766.0444431 | U115: -939.6926208 | W115: 173.6481777 | Y115: 2.557953849e-13 | AB115: 75 | AC115: -187.9385242 | AD115: 0 | AE115: 100 | AF115: 753.105919 | AH115: 75 | AI115: 34.72963553 | AJ115: 0 | AK115: 100 | AL115: -729.9629853 | AN115: 75 | AO115: 153.2088886 | AP115: 0 | AQ115: 100 | AR115: 501.8570663 | AT115: 525
C116: 60 | D116: 866.0254038 | F116: -866.0254038 | H116: -1.225148455e-13 | J116: -1.225148455e-13 | R116: 60 | S116: 866.0254038 | U116: -866.0254038 | W116: -1.225148455e-13 | Y116: -1.225148455e-13 | AB116: 1.837722682e-14 | AC116: -173.2050808 | AD116: 0 | AE116: 3.675445365e-14 | AF116: 692.820323 | AH116: -1.837722682e-14 | AI116: 173.2050808 | AJ116: 0 | AK116: -3.675445365e-14 | AL116: -692.820323 | AN116: -5.513168047e-14 | AO116: -1.225148455e-13 | AP116: 0 | AQ116: -1.102633609e-13 | AR116: -4.104247324e-13 | AT116: -4.104247324e-13
C117: 70 | D117: 939.6926208 | F117: -766.0444431 | H117: -173.6481777 | J117: 0 | R117: 70 | S117: 939.6926208 | U117: -766.0444431 | W117: -173.6481777 | Y117: 0 | AB117: -75 | AC117: -34.72963553 | AD117: 0 | AE117: -100 | AF117: 729.9629853 | AH117: -75 | AI117: 187.9385242 | AJ117: 0 | AK117: -100 | AL117: -753.105919 | AN117: -75 | AO117: -153.2088886 | AP117: 0 | AQ117: -100 | AR117: -501.8570663 | AT117: -525
C118: 80 | D118: 984.807753 | F118: -642.7876097 | H118: -342.0201433 | J118: 0 | R118: 80 | S118: 984.807753 | U118: -642.7876097 | W118: -342.0201433 | Y118: 0 | AB118: -129.9038106 | AC118: 128.5575219 | AD118: 0 | AE118: -4.90059382e-14 | AF118: 983.4614644 | AH118: -129.9038106 | AI118: 68.40402867 | AJ118: 0 | AK118: 2.45029691e-14 | AL118: -704.2873916 | AN118: -129.9038106 | AO118: -196.9615506 | AP118: 0 | AQ118: 9.801187639e-14 | AR118: -668.8855045 | AT118: -389.7114317
C119: 90 | D119: 1000 | F119: -500 | H119: -500 | J119: 0 | R119: 90 | S119: 1000 | U119: -500 | W119: -500 | Y119: 0 | AB119: -150 | AC119: 200 | AD119: 0 | AE119: 100 | AF119: 1150 | AH119: -150 | AI119: -100 | AJ119: 0 | AK119: 100 | AL119: -650 | AN119: -150 | AO119: -100 | AP119: 0 | AQ119: 100 | AR119: -650 | AT119: -150
C120: 100 | D120: 984.807753 | F120: -342.0201433 | H120: -642.7876097 | J120: 0 | R120: 100 | S120: 984.807753 | U120: -342.0201433 | W120: -642.7876097 | Y120: 0 | AB120: -129.9038106 | AC120: 128.5575219 | AD120: 0 | AE120: 6.125742275e-14 | AF120: 983.4614644 | AH120: -129.9038106 | AI120: -196.9615506 | AJ120: 0 | AK120: -1.225148455e-14 | AL120: -668.8855045 | AN120: -129.9038106 | AO120: 68.40402867 | AP120: 0 | AQ120: -8.576039184e-14 | AR120: -704.2873916 | AT120: -389.7114317
C121: 110 | D121: 939.6926208 | F121: -173.6481777 | H121: -766.0444431 | J121: 0 | R121: 110 | S121: 939.6926208 | U121: -173.6481777 | W121: -766.0444431 | Y121: 0 | AB121: -75 | AC121: -34.72963553 | AD121: 0 | AE121: -100 | AF121: 729.9629853 | AH121: -75 | AI121: -153.2088886 | AJ121: 0 | AK121: -100 | AL121: -501.8570663 | AN121: -75 | AO121: 187.9385242 | AP121: 0 | AQ121: -100 | AR121: -753.105919 | AT121: -525
C122: 120 | D122: 866.0254038 | F122: 0 | H122: -866.0254038 | J122: 0 | R122: 120 | S122: 866.0254038 | U122: 0 | W122: -866.0254038 | Y122: 0 | AB122: -3.675445365e-14 | AC122: -173.2050808 | AD122: 0 | AE122: -7.350890729e-14 | AF122: 692.820323 | AH122: 0 | AI122: 0 | AJ122: 0 | AK122: 0 | AL122: 0 | AN122: 3.675445365e-14 | AO122: 173.2050808 | AP122: 0 | AQ122: 7.350890729e-14 | AR122: -692.820323 | AT122: 0
C123: 130 | D123: 766.0444431 | F123: 173.6481777 | H123: -939.6926208 | J123: 0 | R123: 130 | S123: 766.0444431 | U123: 173.6481777 | W123: -939.6926208 | Y123: 0 | AB123: 75 | AC123: -187.9385242 | AD123: 0 | AE123: 100 | AF123: 753.105919 | AH123: 75 | AI123: 153.2088886 | AJ123: 0 | AK123: 100 | AL123: 501.8570663 | AN123: 75 | AO123: 34.72963553 | AP123: 0 | AQ123: 100 | AR123: -729.9629853 | AT123: 525
C124: 135 | D124: 707.1067812 | F124: 258.8190451 | H124: -965.9258263 | J124: 0 | R124: 135 | S124: 707.1067812 | U124: 258.8190451 | W124: -965.9258263 | Y124: 0 | AB124: 106.0660172 | AC124: -141.4213562 | AD124: 0 | AE124: 70.71067812 | AF124: 742.4621202 | AH124: 106.0660172 | AI124: 193.1851653 | AJ124: 0 | AK124: 70.71067812 | AL124: 628.7809057 | AN124: 106.0660172 | AO124: -51.76380902 | AP124: 0 | AQ124: 70.71067812 | AR124: -840.91294 | AT124: 530.3300859
C125: 140 | D125: 642.7876097 | F125: 342.0201433 | H125: -984.807753 | J125: 0 | R125: 140 | S125: 642.7876097 | U125: 342.0201433 | W125: -984.807753 | Y125: 0 | AB125: 129.9038106 | AC125: -68.40402867 | AD125: 0 | AE125: 8.576039184e-14 | AF125: 704.2873916 | AH125: 129.9038106 | AI125: 196.9615506 | AJ125: 0 | AK125: 1.225148455e-14 | AL125: 668.8855045 | AN125: 129.9038106 | AO125: -128.5575219 | AP125: 0 | AQ125: -6.125742275e-14 | AR125: -983.4614644 | AT125: 389.7114317
C126: 150 | D126: 500 | F126: 500 | H126: -1000 | J126: 0 | R126: 150 | S126: 500 | U126: 500 | W126: -1000 | Y126: 0 | AB126: 150 | AC126: 100 | AD126: 0 | AE126: -100 | AF126: 650 | AH126: 150 | AI126: 100 | AJ126: 0 | AK126: -100 | AL126: 650 | AN126: 150 | AO126: -200 | AP126: 0 | AQ126: -100 | AR126: -1150 | AT126: 150
C127: 160 | D127: 342.0201433 | F127: 642.7876097 | H127: -984.807753 | J127: 0 | R127: 160 | S127: 342.0201433 | U127: 642.7876097 | W127: -984.807753 | Y127: 0 | AB127: 129.9038106 | AC127: 196.9615506 | AD127: 0 | AE127: -9.801187639e-14 | AF127: 668.8855045 | AH127: 129.9038106 | AI127: -68.40402867 | AJ127: 0 | AK127: -2.45029691e-14 | AL127: 704.2873916 | AN127: 129.9038106 | AO127: -128.5575219 | AP127: 0 | AQ127: 4.90059382e-14 | AR127: -983.4614644 | AT127: 389.7114317
C128: 170 | D128: 173.6481777 | F128: 766.0444431 | H128: -939.6926208 | J128: 0 | R128: 170 | S128: 173.6481777 | U128: 766.0444431 | W128: -939.6926208 | Y128: 0 | AB128: 75 | AC128: 153.2088886 | AD128: 0 | AE128: 100 | AF128: 501.8570663 | AH128: 75 | AI128: -187.9385242 | AJ128: 0 | AK128: 100 | AL128: 753.105919 | AN128: 75 | AO128: 34.72963553 | AP128: 0 | AQ128: 100 | AR128: -729.9629853 | AT128: 525
C129: 180 | D129: 1.225148455e-13 | F129: 866.0254038 | H129: -866.0254038 | J129: 0 | R129: 180 | S129: 1.225148455e-13 | U129: 866.0254038 | W129: -866.0254038 | Y129: 0 | AB129: 5.513168047e-14 | AC129: 1.225148455e-13 | AD129: 0 | AE129: 1.102633609e-13 | AF129: 4.104247324e-13 | AH129: 1.837722682e-14 | AI129: -173.2050808 | AJ129: 0 | AK129: 3.675445365e-14 | AL129: 692.820323 | AN129: -1.837722682e-14 | AO129: 173.2050808 | AP129: 0 | AQ129: -3.675445365e-14 | AR129: -692.820323 | AT129: 0
C130: 190 | D130: -173.6481777 | F130: 939.6926208 | H130: -766.0444431 | J130: 0 | R130: 190 | S130: -173.6481777 | U130: 939.6926208 | W130: -766.0444431 | Y130: 0 | AB130: -75 | AC130: -153.2088886 | AD130: 0 | AE130: -100 | AF130: -501.8570663 | AH130: -75 | AI130: -34.72963553 | AJ130: 0 | AK130: -100 | AL130: 729.9629853 | AN130: -75 | AO130: 187.9385242 | AP130: 0 | AQ130: -100 | AR130: -753.105919 | AT130: -525
C131: 200 | D131: -342.0201433 | F131: 984.807753 | H131: -642.7876097 | J131: 0 | R131: 200 | S131: -342.0201433 | U131: 984.807753 | W131: -642.7876097 | Y131: 0 | AB131: -129.9038106 | AC131: -196.9615506 | AD131: 0 | AE131: -1.225148455e-13 | AF131: -668.8855045 | AH131: -129.9038106 | AI131: 128.5575219 | AJ131: 0 | AK131: -4.90059382e-14 | AL131: 983.4614644 | AN131: -129.9038106 | AO131: 68.40402867 | AP131: 0 | AQ131: 2.45029691e-14 | AR131: -704.2873916 | AT131: -389.7114317
C132: 210 | D132: -500 | F132: 1000 | H132: -500 | J132: 0 | R132: 210 | S132: -500 | U132: 1000 | W132: -500 | Y132: 0 | AB132: -150 | AC132: -100 | AD132: 0 | AE132: 100 | AF132: -650 | AH132: -150 | AI132: 200 | AJ132: 0 | AK132: 100 | AL132: 1150 | AN132: -150 | AO132: -100 | AP132: 0 | AQ132: 100 | AR132: -650 | AT132: -150
C133: 220 | D133: -642.7876097 | F133: 984.807753 | H133: -342.0201433 | J133: 0 | R133: 220 | S133: -642.7876097 | U133: 984.807753 | W133: -342.0201433 | Y133: 0 | AB133: -129.9038106 | AC133: 68.40402867 | AD133: 0 | AE133: -2.205050378e-13 | AF133: -704.2873916 | AH133: -129.9038106 | AI133: 128.5575219 | AJ133: 0 | AK133: 6.125742275e-14 | AL133: 983.4614644 | AN133: -129.9038106 | AO133: -196.9615506 | AP133: 0 | AQ133: -1.225148455e-14 | AR133: -668.8855045 | AT133: -389.7114317
C134: 225 | D134: -707.1067812 | F134: 965.9258263 | H134: -258.8190451 | J134: 0 | R134: 225 | S134: -707.1067812 | U134: 965.9258263 | W134: -258.8190451 | Y134: 0 | AB134: -106.0660172 | AC134: 141.4213562 | AD134: 0 | AE134: -70.71067812 | AF134: -742.4621202 | AH134: -106.0660172 | AI134: 51.76380902 | AJ134: 0 | AK134: -70.71067812 | AL134: 840.91294 | AN134: -106.0660172 | AO134: -193.1851653 | AP134: 0 | AQ134: -70.71067812 | AR134: -628.7809057 | AT134: -530.3300859
C135: 230 | D135: -766.0444431 | F135: 939.6926208 | H135: -173.6481777 | J135: 0 | R135: 230 | S135: -766.0444431 | U135: 939.6926208 | W135: -173.6481777 | Y135: 0 | AB135: -75 | AC135: 187.9385242 | AD135: 0 | AE135: -100 | AF135: -753.105919 | AH135: -75 | AI135: -34.72963553 | AJ135: 0 | AK135: -100 | AL135: 729.9629853 | AN135: -75 | AO135: -153.2088886 | AP135: 0 | AQ135: -100 | AR135: -501.8570663 | AT135: -525
C136: 240 | D136: -866.0254038 | F136: 866.0254038 | H136: 0 | J136: 3.410605132e-13 | R136: 240 | S136: -866.0254038 | U136: 866.0254038 | W136: 0 | Y136: 3.410605132e-13 | AB136: -7.350890729e-14 | AC136: 173.2050808 | AD136: 0 | AE136: -1.470178146e-13 | AF136: -692.820323 | AH136: -3.675445365e-14 | AI136: -173.2050808 | AJ136: 0 | AK136: -7.350890729e-14 | AL136: 692.820323 | AN136: 0 | AO136: 0 | AP136: 0 | AQ136: 0 | AR136: 0 | AT136: -1.136868377e-13
C137: 250 | D137: -939.6926208 | F137: 766.0444431 | H137: 173.6481777 | J137: 0 | R137: 250 | S137: -939.6926208 | U137: 766.0444431 | W137: 173.6481777 | Y137: 0 | AB137: 75 | AC137: 34.72963553 | AD137: 0 | AE137: 100 | AF137: -729.9629853 | AH137: 75 | AI137: -187.9385242 | AJ137: 0 | AK137: 100 | AL137: 753.105919 | AN137: 75 | AO137: 153.2088886 | AP137: 0 | AQ137: 100 | AR137: 501.8570663 | AT137: 525
C138: 260 | D138: -984.807753 | F138: 642.7876097 | H138: 342.0201433 | J138: 0 | R138: 260 | S138: -984.807753 | U138: 642.7876097 | W138: 342.0201433 | Y138: 0 | AB138: 129.9038106 | AC138: -128.5575219 | AD138: 0 | AE138: -1.960020687e-13 | AF138: -983.4614644 | AH138: 129.9038106 | AI138: -68.40402867 | AJ138: 0 | AK138: 8.576039184e-14 | AL138: 704.2873916 | AN138: 129.9038106 | AO138: 196.9615506 | AP138: 0 | AQ138: 1.225148455e-14 | AR138: 668.8855045 | AT138: 389.7114317
C139: 270 | D139: -1000 | F139: 500 | H139: 500 | J139: 0 | R139: 270 | S139: -1000 | U139: 500 | W139: 500 | Y139: 0 | AB139: 150 | AC139: -200 | AD139: 0 | AE139: -100 | AF139: -1150 | AH139: 150 | AI139: 100 | AJ139: 0 | AK139: -100 | AL139: 650 | AN139: 150 | AO139: 100 | AP139: 0 | AQ139: -100 | AR139: 650 | AT139: 150
C140: 280 | D140: -984.807753 | F140: 342.0201433 | H140: 642.7876097 | J140: 0 | R140: 280 | S140: -984.807753 | U140: 342.0201433 | W140: 642.7876097 | Y140: 0 | AB140: 129.9038106 | AC140: -128.5575219 | AD140: 0 | AE140: -1.715207837e-13 | AF140: -983.4614644 | AH140: 129.9038106 | AI140: 196.9615506 | AJ140: 0 | AK140: -9.801187639e-14 | AL140: 668.8855045 | AN140: 129.9038106 | AO140: -68.40402867 | AP140: 0 | AQ140: -2.45029691e-14 | AR140: 704.2873916 | AT140: 389.7114317
C141: 290 | D141: -939.6926208 | F141: 173.6481777 | H141: 766.0444431 | J141: 0 | R141: 290 | S141: -939.6926208 | U141: 173.6481777 | W141: 766.0444431 | Y141: 0 | AB141: 75 | AC141: 34.72963553 | AD141: 0 | AE141: 100 | AF141: -729.9629853 | AH141: 75 | AI141: 153.2088886 | AJ141: 0 | AK141: 100 | AL141: 501.8570663 | AN141: 75 | AO141: -187.9385242 | AP141: 0 | AQ141: 100 | AR141: 753.105919 | AT141: 525
C142: 300 | D142: -866.0254038 | F142: 1.225148455e-13 | H142: 866.0254038 | J142: 0 | R142: 300 | S142: -866.0254038 | U142: 1.225148455e-13 | W142: 866.0254038 | Y142: 0 | AB142: 9.188613412e-14 | AC142: 173.2050808 | AD142: 0 | AE142: -1.714990996e-13 | AF142: -692.820323 | AH142: 5.513168047e-14 | AI142: 1.225148455e-13 | AJ142: 0 | AK142: 1.102633609e-13 | AL142: 4.104247324e-13 | AN142: 1.837722682e-14 | AO142: -173.2050808 | AP142: 0 | AQ142: 3.675445365e-14 | AR142: 692.820323 | AT142: 0
C143: 310 | D143: -766.0444431 | F143: -173.6481777 | H143: 939.6926208 | J143: 0 | R143: 310 | S143: -766.0444431 | U143: -173.6481777 | W143: 939.6926208 | Y143: 0 | AB143: -75 | AC143: 187.9385242 | AD143: 0 | AE143: -100 | AF143: -753.105919 | AH143: -75 | AI143: -153.2088886 | AJ143: 0 | AK143: -100 | AL143: -501.8570663 | AN143: -75 | AO143: -34.72963553 | AP143: 0 | AQ143: -100 | AR143: 729.9629853 | AT143: -525
C144: 315 | D144: -707.1067812 | F144: -258.8190451 | H144: 965.9258263 | J144: 0 | R144: 315 | S144: -707.1067812 | U144: -258.8190451 | W144: 965.9258263 | Y144: 0 | AB144: -106.0660172 | AC144: 141.4213562 | AD144: 0 | AE144: -70.71067812 | AF144: -742.4621202 | AH144: -106.0660172 | AI144: -193.1851653 | AJ144: 0 | AK144: -70.71067812 | AL144: -628.7809057 | AN144: -106.0660172 | AO144: 51.76380902 | AP144: 0 | AQ144: -70.71067812 | AR144: 840.91294 | AT144: -530.3300859
C145: 320 | D145: -642.7876097 | F145: -342.0201433 | H145: 984.807753 | J145: 0 | R145: 320 | S145: -642.7876097 | U145: -342.0201433 | W145: 984.807753 | Y145: 0 | AB145: -129.9038106 | AC145: 68.40402867 | AD145: 0 | AE145: -1.960237528e-13 | AF145: -704.2873916 | AH145: -129.9038106 | AI145: -196.9615506 | AJ145: 0 | AK145: -1.225148455e-13 | AL145: -668.8855045 | AN145: -129.9038106 | AO145: 128.5575219 | AP145: 0 | AQ145: -4.90059382e-14 | AR145: 983.4614644 | AT145: -389.7114317
C146: 330 | D146: -500 | F146: -500 | H146: 1000 | J146: 0 | R146: 330 | S146: -500 | U146: -500 | W146: 1000 | Y146: 0 | AB146: -150 | AC146: -100 | AD146: 0 | AE146: 100 | AF146: -650 | AH146: -150 | AI146: -100 | AJ146: 0 | AK146: 100 | AL146: -650 | AN146: -150 | AO146: 200 | AP146: 0 | AQ146: 100 | AR146: 1150 | AT146: -150
C147: 340 | D147: -342.0201433 | F147: -642.7876097 | H147: 984.807753 | J147: 0 | R147: 340 | S147: -342.0201433 | U147: -642.7876097 | W147: 984.807753 | Y147: 0 | AB147: -129.9038106 | AC147: -196.9615506 | AD147: 0 | AE147: -1.469961305e-13 | AF147: -668.8855045 | AH147: -129.9038106 | AI147: 68.40402867 | AJ147: 0 | AK147: -2.205050378e-13 | AL147: -704.2873916 | AN147: -129.9038106 | AO147: 128.5575219 | AP147: 0 | AQ147: 6.125742275e-14 | AR147: 983.4614644 | AT147: -389.7114317
C148: 350 | D148: -173.6481777 | F148: -766.0444431 | H148: 939.6926208 | J148: 0 | R148: 350 | S148: -173.6481777 | U148: -766.0444431 | W148: 939.6926208 | Y148: 0 | AB148: -75 | AC148: -153.2088886 | AD148: 0 | AE148: -100 | AF148: -501.8570663 | AH148: -75 | AI148: 187.9385242 | AJ148: 0 | AK148: -100 | AL148: -753.105919 | AN148: -75 | AO148: -34.72963553 | AP148: 0 | AQ148: -100 | AR148: 729.9629853 | AT148: -525
C149: 360 | D149: -2.45029691e-13 | F149: -866.0254038 | H149: 866.0254038 | J149: 0 | R149: 360 | S149: -2.45029691e-13 | U149: -866.0254038 | W149: 866.0254038 | Y149: 0 | AB149: -1.102633609e-13 | AC149: -2.45029691e-13 | AD149: 0 | AE149: -2.205267219e-13 | AF149: -8.208494648e-13 | AH149: -7.350890729e-14 | AI149: 173.2050808 | AJ149: 0 | AK149: -1.470178146e-13 | AL149: -692.820323 | AN149: -3.675445365e-14 | AO149: -173.2050808 | AP149: 0 | AQ149: -7.350890729e-14 | AR149: 692.820323 | AT149: -9.094947018e-13
Q156: Verschillende golfvormen bestaande uit harmonischen
Q159: alles | R159: even | S159: oneven
Q161: 100 | S161: 100
Q162: 50 | R162: 50
Q163: 33.33333333 | S163: 33.33333333
Q164: 25 | R164: 25
Q165: 20 | S165: 20
Q166: 16.66666667 | R166: 16.66666667
Q167: 14.28571429 | S167: 14.28571429
Q168: 12.5 | R168: 12.5
Q169: 11.11111111 | S169: 11.11111111
Q170: 10 | R170: 10
Q171: 9.090909091 | S171: 9.090909091
Q172: 8.333333333 | R172: 8.333333333
Q173: 7.692307692 | S173: 7.692307692
Q174: 7.142857143 | R174: 7.142857143
Q175: 6.666666667 | S175: 6.666666667
Q176: 6.25 | R176: 6.25
Q177: 5.882352941 | S177: 5.882352941
Q178: 5.555555556 | R178: 5.555555556
Q179: 5.263157895 | S179: 5.263157895
Q180: 5 | R180: 5
Q181: 4.761904762 | S181: 4.761904762
Q182: 4.545454545 | R182: 4.545454545
Q183: 4.347826087 | S183: 4.347826087
Q184: 4.166666667 | R184: 4.166666667
Q185: 4 | S185: 4
D191: 1 | E191: 2 | F191: 3 | G191: 4 | H191: 5 | I191: 6 | J191: 7 | K191: 8 | L191: 9 | M191: 10 | N191: 11 | O191: 12 | P191: 13 | Q191: 14 | R191: 15 | S191: 16 | T191: 17 | U191: 18 | V191: 19 | W191: 20 | X191: 21 | Y191: 22 | Z191: 23 | AA191: 24 | AB191: 25 | AD191: totaal
C192: 0 | D192: =Harmonischen!$C$53/100*SIN(C192*PI()/180) -> 0 | E192: =Harmonischen!$C$54/100*SIN(C192*$E$191*PI()/180) -> 0 | F192: =Harmonischen!$C$55/100*SIN(C192*$F$191*PI()/180) -> 0 | G192: =Harmonischen!$C$56/100*SIN(C192*$G$191*PI()/180) -> 0 | H192: =Harmonischen!$C$57/100*SIN(C192*$H$191*PI()/180) -> 0 | I192: =Harmonischen!$C$58/100*SIN(C192*$I$191*PI()/180) -> 0 | J192: =Harmonischen!$C$59/100*SIN(C192*$J$191*PI()/180) -> 0 | K192: =Harmonischen!$C$60/100*SIN(C192*$K$191*PI()/180) -> 0 | L192: =Harmonischen!$C$61/100*SIN(C192*$L$191*PI()/180) -> 0 | M192: =Harmonischen!$C$62/100*SIN(C192*$M$191*PI()/180) -> 0 | N192: =Harmonischen!$C$63/100*SIN($C192*$N$191*PI()/180) -> 0 | O192: =Harmonischen!$C$64/100*SIN($C192*$O$191*PI()/180) -> 0 | P192: =Harmonischen!$C$65/100*SIN($C192*$P$191*PI()/180) -> 0 | Q192: =Harmonischen!$C$66/100*SIN($C192*$Q$191*PI()/180) -> 0 | R192: =Harmonischen!$C$67/100*SIN($C192*$R$191*PI()/180) -> 0 | S192: =Harmonischen!$C$68/100*SIN($C192*$S$191*PI()/180) -> 0 | T192: =Harmonischen!$C$69/100*SIN($C192*$T$191*PI()/180) -> 0 | U192: =Harmonischen!$C$70/100*SIN($C192*$U$191*PI()/180) -> 0 | V192: =Harmonischen!$C$71/100*SIN($C192*$V$191*PI()/180) -> 0 | W192: =Harmonischen!$C$72/100*SIN($C192*$W$191*PI()/180) -> 0 | X192: =Harmonischen!$C$73/100*SIN($C192*$X$191*PI()/180) -> 0 | Y192: =Harmonischen!$C$74/100*SIN($C192*$Y$191*PI()/180) -> 0 | Z192: =Harmonischen!$C$75/100*SIN($C192*$Z$191*PI()/180) -> 0 | AA192: =Harmonischen!$C$76/100*SIN($C192*$AA$191*PI()/180) -> 0 | AB192: =Harmonischen!$C$77/100*SIN($C192*$AB$191*PI()/180) -> 0 | AD192: =SUM(D192:AB192) -> 0
C193: 1 | D193: =Harmonischen!$C$53/100*SIN(C193*PI()/180) -> 0.01745240644 | E193: =Harmonischen!$C$54/100*SIN(C193*$E$191*PI()/180) -> 0 | F193: =Harmonischen!$C$55/100*SIN(C193*$F$191*PI()/180) -> 0.01046719125 | G193: =Harmonischen!$C$56/100*SIN(C193*$G$191*PI()/180) -> 0 | H193: =Harmonischen!$C$57/100*SIN(C193*$H$191*PI()/180) -> 0 | I193: =Harmonischen!$C$58/100*SIN(C193*$I$191*PI()/180) -> 0 | J193: =Harmonischen!$C$59/100*SIN(C193*$J$191*PI()/180) -> 0 | K193: =Harmonischen!$C$60/100*SIN(C193*$K$191*PI()/180) -> 0 | L193: =Harmonischen!$C$61/100*SIN(C193*$L$191*PI()/180) -> 0 | M193: =Harmonischen!$C$62/100*SIN(C193*$M$191*PI()/180) -> 0 | N193: =Harmonischen!$C$63/100*SIN($C193*$N$191*PI()/180) -> 0 | O193: =Harmonischen!$C$64/100*SIN($C193*$O$191*PI()/180) -> 0 | P193: =Harmonischen!$C$65/100*SIN($C193*$P$191*PI()/180) -> 0 | Q193: =Harmonischen!$C$66/100*SIN($C193*$Q$191*PI()/180) -> 0 | R193: =Harmonischen!$C$67/100*SIN($C193*$R$191*PI()/180) -> 0 | S193: =Harmonischen!$C$68/100*SIN($C193*$S$191*PI()/180) -> 0 | T193: =Harmonischen!$C$69/100*SIN($C193*$T$191*PI()/180) -> 0 | U193: =Harmonischen!$C$70/100*SIN($C193*$U$191*PI()/180) -> 0 | V193: =Harmonischen!$C$71/100*SIN($C193*$V$191*PI()/180) -> 0 | W193: =Harmonischen!$C$72/100*SIN($C193*$W$191*PI()/180) -> 0 | X193: =Harmonischen!$C$73/100*SIN($C193*$X$191*PI()/180) -> 0 | Y193: =Harmonischen!$C$74/100*SIN($C193*$Y$191*PI()/180) -> 0 | Z193: =Harmonischen!$C$75/100*SIN($C193*$Z$191*PI()/180) -> 0 | AA193: =Harmonischen!$C$76/100*SIN($C193*$AA$191*PI()/180) -> 0 | AB193: =Harmonischen!$C$77/100*SIN($C193*$AB$191*PI()/180) -> 0 | AD193: 0.02791959769
C194: 2 | D194: =Harmonischen!$C$53/100*SIN(C194*PI()/180) -> 0.0348994967 | E194: =Harmonischen!$C$54/100*SIN(C194*$E$191*PI()/180) -> 0 | F194: =Harmonischen!$C$55/100*SIN(C194*$F$191*PI()/180) -> 0.02090569265 | G194: =Harmonischen!$C$56/100*SIN(C194*$G$191*PI()/180) -> 0 | H194: =Harmonischen!$C$57/100*SIN(C194*$H$191*PI()/180) -> 0 | I194: =Harmonischen!$C$58/100*SIN(C194*$I$191*PI()/180) -> 0 | J194: =Harmonischen!$C$59/100*SIN(C194*$J$191*PI()/180) -> 0 | K194: =Harmonischen!$C$60/100*SIN(C194*$K$191*PI()/180) -> 0 | L194: =Harmonischen!$C$61/100*SIN(C194*$L$191*PI()/180) -> 0 | M194: =Harmonischen!$C$62/100*SIN(C194*$M$191*PI()/180) -> 0 | N194: =Harmonischen!$C$63/100*SIN($C194*$N$191*PI()/180) -> 0 | O194: =Harmonischen!$C$64/100*SIN($C194*$O$191*PI()/180) -> 0 | P194: =Harmonischen!$C$65/100*SIN($C194*$P$191*PI()/180) -> 0 | Q194: =Harmonischen!$C$66/100*SIN($C194*$Q$191*PI()/180) -> 0 | R194: =Harmonischen!$C$67/100*SIN($C194*$R$191*PI()/180) -> 0 | S194: =Harmonischen!$C$68/100*SIN($C194*$S$191*PI()/180) -> 0 | T194: =Harmonischen!$C$69/100*SIN($C194*$T$191*PI()/180) -> 0 | U194: =Harmonischen!$C$70/100*SIN($C194*$U$191*PI()/180) -> 0 | V194: =Harmonischen!$C$71/100*SIN($C194*$V$191*PI()/180) -> 0 | W194: =Harmonischen!$C$72/100*SIN($C194*$W$191*PI()/180) -> 0 | X194: =Harmonischen!$C$73/100*SIN($C194*$X$191*PI()/180) -> 0 | Y194: =Harmonischen!$C$74/100*SIN($C194*$Y$191*PI()/180) -> 0 | Z194: =Harmonischen!$C$75/100*SIN($C194*$Z$191*PI()/180) -> 0 | AA194: =Harmonischen!$C$76/100*SIN($C194*$AA$191*PI()/180) -> 0 | AB194: =Harmonischen!$C$77/100*SIN($C194*$AB$191*PI()/180) -> 0 | AD194: 0.05580518936
C195: 3 | D195: =Harmonischen!$C$53/100*SIN(C195*PI()/180) -> 0.05233595624 | E195: =Harmonischen!$C$54/100*SIN(C195*$E$191*PI()/180) -> 0 | F195: =Harmonischen!$C$55/100*SIN(C195*$F$191*PI()/180) -> 0.03128689301 | G195: =Harmonischen!$C$56/100*SIN(C195*$G$191*PI()/180) -> 0 | H195: =Harmonischen!$C$57/100*SIN(C195*$H$191*PI()/180) -> 0 | I195: =Harmonischen!$C$58/100*SIN(C195*$I$191*PI()/180) -> 0 | J195: =Harmonischen!$C$59/100*SIN(C195*$J$191*PI()/180) -> 0 | K195: =Harmonischen!$C$60/100*SIN(C195*$K$191*PI()/180) -> 0 | L195: =Harmonischen!$C$61/100*SIN(C195*$L$191*PI()/180) -> 0 | M195: =Harmonischen!$C$62/100*SIN(C195*$M$191*PI()/180) -> 0 | N195: =Harmonischen!$C$63/100*SIN($C195*$N$191*PI()/180) -> 0 | O195: =Harmonischen!$C$64/100*SIN($C195*$O$191*PI()/180) -> 0 | P195: =Harmonischen!$C$65/100*SIN($C195*$P$191*PI()/180) -> 0 | Q195: =Harmonischen!$C$66/100*SIN($C195*$Q$191*PI()/180) -> 0 | R195: =Harmonischen!$C$67/100*SIN($C195*$R$191*PI()/180) -> 0 | S195: =Harmonischen!$C$68/100*SIN($C195*$S$191*PI()/180) -> 0 | T195: =Harmonischen!$C$69/100*SIN($C195*$T$191*PI()/180) -> 0 | U195: =Harmonischen!$C$70/100*SIN($C195*$U$191*PI()/180) -> 0 | V195: =Harmonischen!$C$71/100*SIN($C195*$V$191*PI()/180) -> 0 | W195: =Harmonischen!$C$72/100*SIN($C195*$W$191*PI()/180) -> 0 | X195: =Harmonischen!$C$73/100*SIN($C195*$X$191*PI()/180) -> 0 | Y195: =Harmonischen!$C$74/100*SIN($C195*$Y$191*PI()/180) -> 0 | Z195: =Harmonischen!$C$75/100*SIN($C195*$Z$191*PI()/180) -> 0 | AA195: =Harmonischen!$C$76/100*SIN($C195*$AA$191*PI()/180) -> 0 | AB195: =Harmonischen!$C$77/100*SIN($C195*$AB$191*PI()/180) -> 0 | AD195: 0.08362284925
C196: 4 | D196: =Harmonischen!$C$53/100*SIN(C196*PI()/180) -> 0.06975647374 | E196: =Harmonischen!$C$54/100*SIN(C196*$E$191*PI()/180) -> 0 | F196: =Harmonischen!$C$55/100*SIN(C196*$F$191*PI()/180) -> 0.04158233816 | G196: =Harmonischen!$C$56/100*SIN(C196*$G$191*PI()/180) -> 0 | H196: =Harmonischen!$C$57/100*SIN(C196*$H$191*PI()/180) -> 0 | I196: =Harmonischen!$C$58/100*SIN(C196*$I$191*PI()/180) -> 0 | J196: =Harmonischen!$C$59/100*SIN(C196*$J$191*PI()/180) -> 0 | K196: =Harmonischen!$C$60/100*SIN(C196*$K$191*PI()/180) -> 0 | L196: =Harmonischen!$C$61/100*SIN(C196*$L$191*PI()/180) -> 0 | M196: =Harmonischen!$C$62/100*SIN(C196*$M$191*PI()/180) -> 0 | N196: =Harmonischen!$C$63/100*SIN($C196*$N$191*PI()/180) -> 0 | O196: =Harmonischen!$C$64/100*SIN($C196*$O$191*PI()/180) -> 0 | P196: =Harmonischen!$C$65/100*SIN($C196*$P$191*PI()/180) -> 0 | Q196: =Harmonischen!$C$66/100*SIN($C196*$Q$191*PI()/180) -> 0 | R196: =Harmonischen!$C$67/100*SIN($C196*$R$191*PI()/180) -> 0 | S196: =Harmonischen!$C$68/100*SIN($C196*$S$191*PI()/180) -> 0 | T196: =Harmonischen!$C$69/100*SIN($C196*$T$191*PI()/180) -> 0 | U196: =Harmonischen!$C$70/100*SIN($C196*$U$191*PI()/180) -> 0 | V196: =Harmonischen!$C$71/100*SIN($C196*$V$191*PI()/180) -> 0 | W196: =Harmonischen!$C$72/100*SIN($C196*$W$191*PI()/180) -> 0 | X196: =Harmonischen!$C$73/100*SIN($C196*$X$191*PI()/180) -> 0 | Y196: =Harmonischen!$C$74/100*SIN($C196*$Y$191*PI()/180) -> 0 | Z196: =Harmonischen!$C$75/100*SIN($C196*$Z$191*PI()/180) -> 0 | AA196: =Harmonischen!$C$76/100*SIN($C196*$AA$191*PI()/180) -> 0 | AB196: =Harmonischen!$C$77/100*SIN($C196*$AB$191*PI()/180) -> 0 | AD196: 0.1113388119
C197: 5 | D197: =Harmonischen!$C$53/100*SIN(C197*PI()/180) -> 0.08715574275 | E197: =Harmonischen!$C$54/100*SIN(C197*$E$191*PI()/180) -> 0 | F197: =Harmonischen!$C$55/100*SIN(C197*$F$191*PI()/180) -> 0.05176380902 | G197: =Harmonischen!$C$56/100*SIN(C197*$G$191*PI()/180) -> 0 | H197: =Harmonischen!$C$57/100*SIN(C197*$H$191*PI()/180) -> 0 | I197: =Harmonischen!$C$58/100*SIN(C197*$I$191*PI()/180) -> 0 | J197: =Harmonischen!$C$59/100*SIN(C197*$J$191*PI()/180) -> 0 | K197: =Harmonischen!$C$60/100*SIN(C197*$K$191*PI()/180) -> 0 | L197: =Harmonischen!$C$61/100*SIN(C197*$L$191*PI()/180) -> 0 | M197: =Harmonischen!$C$62/100*SIN(C197*$M$191*PI()/180) -> 0 | N197: =Harmonischen!$C$63/100*SIN($C197*$N$191*PI()/180) -> 0 | O197: =Harmonischen!$C$64/100*SIN($C197*$O$191*PI()/180) -> 0 | P197: =Harmonischen!$C$65/100*SIN($C197*$P$191*PI()/180) -> 0 | Q197: =Harmonischen!$C$66/100*SIN($C197*$Q$191*PI()/180) -> 0 | R197: =Harmonischen!$C$67/100*SIN($C197*$R$191*PI()/180) -> 0 | S197: =Harmonischen!$C$68/100*SIN($C197*$S$191*PI()/180) -> 0 | T197: =Harmonischen!$C$69/100*SIN($C197*$T$191*PI()/180) -> 0 | U197: =Harmonischen!$C$70/100*SIN($C197*$U$191*PI()/180) -> 0 | V197: =Harmonischen!$C$71/100*SIN($C197*$V$191*PI()/180) -> 0 | W197: =Harmonischen!$C$72/100*SIN($C197*$W$191*PI()/180) -> 0 | X197: =Harmonischen!$C$73/100*SIN($C197*$X$191*PI()/180) -> 0 | Y197: =Harmonischen!$C$74/100*SIN($C197*$Y$191*PI()/180) -> 0 | Z197: =Harmonischen!$C$75/100*SIN($C197*$Z$191*PI()/180) -> 0 | AA197: =Harmonischen!$C$76/100*SIN($C197*$AA$191*PI()/180) -> 0 | AB197: =Harmonischen!$C$77/100*SIN($C197*$AB$191*PI()/180) -> 0 | AD197: 0.1389195518
C198: 6 | D198: =Harmonischen!$C$53/100*SIN(C198*PI()/180) -> 0.1045284633 | E198: =Harmonischen!$C$54/100*SIN(C198*$E$191*PI()/180) -> 0 | F198: =Harmonischen!$C$55/100*SIN(C198*$F$191*PI()/180) -> 0.06180339887 | G198: =Harmonischen!$C$56/100*SIN(C198*$G$191*PI()/180) -> 0 | H198: =Harmonischen!$C$57/100*SIN(C198*$H$191*PI()/180) -> 0 | I198: =Harmonischen!$C$58/100*SIN(C198*$I$191*PI()/180) -> 0 | J198: =Harmonischen!$C$59/100*SIN(C198*$J$191*PI()/180) -> 0 | K198: =Harmonischen!$C$60/100*SIN(C198*$K$191*PI()/180) -> 0 | L198: =Harmonischen!$C$61/100*SIN(C198*$L$191*PI()/180) -> 0 | M198: =Harmonischen!$C$62/100*SIN(C198*$M$191*PI()/180) -> 0 | N198: =Harmonischen!$C$63/100*SIN($C198*$N$191*PI()/180) -> 0 | O198: =Harmonischen!$C$64/100*SIN($C198*$O$191*PI()/180) -> 0 | P198: =Harmonischen!$C$65/100*SIN($C198*$P$191*PI()/180) -> 0 | Q198: =Harmonischen!$C$66/100*SIN($C198*$Q$191*PI()/180) -> 0 | R198: =Harmonischen!$C$67/100*SIN($C198*$R$191*PI()/180) -> 0 | S198: =Harmonischen!$C$68/100*SIN($C198*$S$191*PI()/180) -> 0 | T198: =Harmonischen!$C$69/100*SIN($C198*$T$191*PI()/180) -> 0 | U198: =Harmonischen!$C$70/100*SIN($C198*$U$191*PI()/180) -> 0 | V198: =Harmonischen!$C$71/100*SIN($C198*$V$191*PI()/180) -> 0 | W198: =Harmonischen!$C$72/100*SIN($C198*$W$191*PI()/180) -> 0 | X198: =Harmonischen!$C$73/100*SIN($C198*$X$191*PI()/180) -> 0 | Y198: =Harmonischen!$C$74/100*SIN($C198*$Y$191*PI()/180) -> 0 | Z198: =Harmonischen!$C$75/100*SIN($C198*$Z$191*PI()/180) -> 0 | AA198: =Harmonischen!$C$76/100*SIN($C198*$AA$191*PI()/180) -> 0 | AB198: =Harmonischen!$C$77/100*SIN($C198*$AB$191*PI()/180) -> 0 | AD198: 0.1663318621
C199: 7 | D199: =Harmonischen!$C$53/100*SIN(C199*PI()/180) -> 0.1218693434 | E199: =Harmonischen!$C$54/100*SIN(C199*$E$191*PI()/180) -> 0 | F199: =Harmonischen!$C$55/100*SIN(C199*$F$191*PI()/180) -> 0.07167358991 | G199: =Harmonischen!$C$56/100*SIN(C199*$G$191*PI()/180) -> 0 | H199: =Harmonischen!$C$57/100*SIN(C199*$H$191*PI()/180) -> 0 | I199: =Harmonischen!$C$58/100*SIN(C199*$I$191*PI()/180) -> 0 | J199: =Harmonischen!$C$59/100*SIN(C199*$J$191*PI()/180) -> 0 | K199: =Harmonischen!$C$60/100*SIN(C199*$K$191*PI()/180) -> 0 | L199: =Harmonischen!$C$61/100*SIN(C199*$L$191*PI()/180) -> 0 | M199: =Harmonischen!$C$62/100*SIN(C199*$M$191*PI()/180) -> 0 | N199: =Harmonischen!$C$63/100*SIN($C199*$N$191*PI()/180) -> 0 | O199: =Harmonischen!$C$64/100*SIN($C199*$O$191*PI()/180) -> 0 | P199: =Harmonischen!$C$65/100*SIN($C199*$P$191*PI()/180) -> 0 | Q199: =Harmonischen!$C$66/100*SIN($C199*$Q$191*PI()/180) -> 0 | R199: =Harmonischen!$C$67/100*SIN($C199*$R$191*PI()/180) -> 0 | S199: =Harmonischen!$C$68/100*SIN($C199*$S$191*PI()/180) -> 0 | T199: =Harmonischen!$C$69/100*SIN($C199*$T$191*PI()/180) -> 0 | U199: =Harmonischen!$C$70/100*SIN($C199*$U$191*PI()/180) -> 0 | V199: =Harmonischen!$C$71/100*SIN($C199*$V$191*PI()/180) -> 0 | W199: =Harmonischen!$C$72/100*SIN($C199*$W$191*PI()/180) -> 0 | X199: =Harmonischen!$C$73/100*SIN($C199*$X$191*PI()/180) -> 0 | Y199: =Harmonischen!$C$74/100*SIN($C199*$Y$191*PI()/180) -> 0 | Z199: =Harmonischen!$C$75/100*SIN($C199*$Z$191*PI()/180) -> 0 | AA199: =Harmonischen!$C$76/100*SIN($C199*$AA$191*PI()/180) -> 0 | AB199: =Harmonischen!$C$77/100*SIN($C199*$AB$191*PI()/180) -> 0 | AD199: 0.1935429333
C200: 8 | D200: =Harmonischen!$C$53/100*SIN(C200*PI()/180) -> 0.139173101 | E200: =Harmonischen!$C$54/100*SIN(C200*$E$191*PI()/180) -> 0 | F200: =Harmonischen!$C$55/100*SIN(C200*$F$191*PI()/180) -> 0.08134732862 | G200: =Harmonischen!$C$56/100*SIN(C200*$G$191*PI()/180) -> 0 | H200: =Harmonischen!$C$57/100*SIN(C200*$H$191*PI()/180) -> 0 | I200: =Harmonischen!$C$58/100*SIN(C200*$I$191*PI()/180) -> 0 | J200: =Harmonischen!$C$59/100*SIN(C200*$J$191*PI()/180) -> 0 | K200: =Harmonischen!$C$60/100*SIN(C200*$K$191*PI()/180) -> 0 | L200: =Harmonischen!$C$61/100*SIN(C200*$L$191*PI()/180) -> 0 | M200: =Harmonischen!$C$62/100*SIN(C200*$M$191*PI()/180) -> 0 | N200: =Harmonischen!$C$63/100*SIN($C200*$N$191*PI()/180) -> 0 | O200: =Harmonischen!$C$64/100*SIN($C200*$O$191*PI()/180) -> 0 | P200: =Harmonischen!$C$65/100*SIN($C200*$P$191*PI()/180) -> 0 | Q200: =Harmonischen!$C$66/100*SIN($C200*$Q$191*PI()/180) -> 0 | R200: =Harmonischen!$C$67/100*SIN($C200*$R$191*PI()/180) -> 0 | S200: =Harmonischen!$C$68/100*SIN($C200*$S$191*PI()/180) -> 0 | T200: =Harmonischen!$C$69/100*SIN($C200*$T$191*PI()/180) -> 0 | U200: =Harmonischen!$C$70/100*SIN($C200*$U$191*PI()/180) -> 0 | V200: =Harmonischen!$C$71/100*SIN($C200*$V$191*PI()/180) -> 0 | W200: =Harmonischen!$C$72/100*SIN($C200*$W$191*PI()/180) -> 0 | X200: =Harmonischen!$C$73/100*SIN($C200*$X$191*PI()/180) -> 0 | Y200: =Harmonischen!$C$74/100*SIN($C200*$Y$191*PI()/180) -> 0 | Z200: =Harmonischen!$C$75/100*SIN($C200*$Z$191*PI()/180) -> 0 | AA200: =Harmonischen!$C$76/100*SIN($C200*$AA$191*PI()/180) -> 0 | AB200: =Harmonischen!$C$77/100*SIN($C200*$AB$191*PI()/180) -> 0 | AD200: 0.2205204296
C201: 9 | D201: =Harmonischen!$C$53/100*SIN(C201*PI()/180) -> 0.156434465 | E201: =Harmonischen!$C$54/100*SIN(C201*$E$191*PI()/180) -> 0 | F201: =Harmonischen!$C$55/100*SIN(C201*$F$191*PI()/180) -> 0.09079809995 | G201: =Harmonischen!$C$56/100*SIN(C201*$G$191*PI()/180) -> 0 | H201: =Harmonischen!$C$57/100*SIN(C201*$H$191*PI()/180) -> 0 | I201: =Harmonischen!$C$58/100*SIN(C201*$I$191*PI()/180) -> 0 | J201: =Harmonischen!$C$59/100*SIN(C201*$J$191*PI()/180) -> 0 | K201: =Harmonischen!$C$60/100*SIN(C201*$K$191*PI()/180) -> 0 | L201: =Harmonischen!$C$61/100*SIN(C201*$L$191*PI()/180) -> 0 | M201: =Harmonischen!$C$62/100*SIN(C201*$M$191*PI()/180) -> 0 | N201: =Harmonischen!$C$63/100*SIN($C201*$N$191*PI()/180) -> 0 | O201: =Harmonischen!$C$64/100*SIN($C201*$O$191*PI()/180) -> 0 | P201: =Harmonischen!$C$65/100*SIN($C201*$P$191*PI()/180) -> 0 | Q201: =Harmonischen!$C$66/100*SIN($C201*$Q$191*PI()/180) -> 0 | R201: =Harmonischen!$C$67/100*SIN($C201*$R$191*PI()/180) -> 0 | S201: =Harmonischen!$C$68/100*SIN($C201*$S$191*PI()/180) -> 0 | T201: =Harmonischen!$C$69/100*SIN($C201*$T$191*PI()/180) -> 0 | U201: =Harmonischen!$C$70/100*SIN($C201*$U$191*PI()/180) -> 0 | V201: =Harmonischen!$C$71/100*SIN($C201*$V$191*PI()/180) -> 0 | W201: =Harmonischen!$C$72/100*SIN($C201*$W$191*PI()/180) -> 0 | X201: =Harmonischen!$C$73/100*SIN($C201*$X$191*PI()/180) -> 0 | Y201: =Harmonischen!$C$74/100*SIN($C201*$Y$191*PI()/180) -> 0 | Z201: =Harmonischen!$C$75/100*SIN($C201*$Z$191*PI()/180) -> 0 | AA201: =Harmonischen!$C$76/100*SIN($C201*$AA$191*PI()/180) -> 0 | AB201: =Harmonischen!$C$77/100*SIN($C201*$AB$191*PI()/180) -> 0 | AD201: 0.247232565
C202: 10 | D202: =Harmonischen!$C$53/100*SIN(C202*PI()/180) -> 0.1736481777 | E202: =Harmonischen!$C$54/100*SIN(C202*$E$191*PI()/180) -> 0 | F202: =Harmonischen!$C$55/100*SIN(C202*$F$191*PI()/180) -> 0.1 | G202: =Harmonischen!$C$56/100*SIN(C202*$G$191*PI()/180) -> 0 | H202: =Harmonischen!$C$57/100*SIN(C202*$H$191*PI()/180) -> 0 | I202: =Harmonischen!$C$58/100*SIN(C202*$I$191*PI()/180) -> 0 | J202: =Harmonischen!$C$59/100*SIN(C202*$J$191*PI()/180) -> 0 | K202: =Harmonischen!$C$60/100*SIN(C202*$K$191*PI()/180) -> 0 | L202: =Harmonischen!$C$61/100*SIN(C202*$L$191*PI()/180) -> 0 | M202: =Harmonischen!$C$62/100*SIN(C202*$M$191*PI()/180) -> 0 | N202: =Harmonischen!$C$63/100*SIN($C202*$N$191*PI()/180) -> 0 | O202: =Harmonischen!$C$64/100*SIN($C202*$O$191*PI()/180) -> 0 | P202: =Harmonischen!$C$65/100*SIN($C202*$P$191*PI()/180) -> 0 | Q202: =Harmonischen!$C$66/100*SIN($C202*$Q$191*PI()/180) -> 0 | R202: =Harmonischen!$C$67/100*SIN($C202*$R$191*PI()/180) -> 0 | S202: =Harmonischen!$C$68/100*SIN($C202*$S$191*PI()/180) -> 0 | T202: =Harmonischen!$C$69/100*SIN($C202*$T$191*PI()/180) -> 0 | U202: =Harmonischen!$C$70/100*SIN($C202*$U$191*PI()/180) -> 0 | V202: =Harmonischen!$C$71/100*SIN($C202*$V$191*PI()/180) -> 0 | W202: =Harmonischen!$C$72/100*SIN($C202*$W$191*PI()/180) -> 0 | X202: =Harmonischen!$C$73/100*SIN($C202*$X$191*PI()/180) -> 0 | Y202: =Harmonischen!$C$74/100*SIN($C202*$Y$191*PI()/180) -> 0 | Z202: =Harmonischen!$C$75/100*SIN($C202*$Z$191*PI()/180) -> 0 | AA202: =Harmonischen!$C$76/100*SIN($C202*$AA$191*PI()/180) -> 0 | AB202: =Harmonischen!$C$77/100*SIN($C202*$AB$191*PI()/180) -> 0 | AD202: 0.2736481777
C203: 11 | D203: =Harmonischen!$C$53/100*SIN(C203*PI()/180) -> 0.1908089954 | E203: =Harmonischen!$C$54/100*SIN(C203*$E$191*PI()/180) -> 0 | F203: =Harmonischen!$C$55/100*SIN(C203*$F$191*PI()/180) -> 0.108927807 | G203: =Harmonischen!$C$56/100*SIN(C203*$G$191*PI()/180) -> 0 | H203: =Harmonischen!$C$57/100*SIN(C203*$H$191*PI()/180) -> 0 | I203: =Harmonischen!$C$58/100*SIN(C203*$I$191*PI()/180) -> 0 | J203: =Harmonischen!$C$59/100*SIN(C203*$J$191*PI()/180) -> 0 | K203: =Harmonischen!$C$60/100*SIN(C203*$K$191*PI()/180) -> 0 | L203: =Harmonischen!$C$61/100*SIN(C203*$L$191*PI()/180) -> 0 | M203: =Harmonischen!$C$62/100*SIN(C203*$M$191*PI()/180) -> 0 | N203: =Harmonischen!$C$63/100*SIN($C203*$N$191*PI()/180) -> 0 | O203: =Harmonischen!$C$64/100*SIN($C203*$O$191*PI()/180) -> 0 | P203: =Harmonischen!$C$65/100*SIN($C203*$P$191*PI()/180) -> 0 | Q203: =Harmonischen!$C$66/100*SIN($C203*$Q$191*PI()/180) -> 0 | R203: =Harmonischen!$C$67/100*SIN($C203*$R$191*PI()/180) -> 0 | S203: =Harmonischen!$C$68/100*SIN($C203*$S$191*PI()/180) -> 0 | T203: =Harmonischen!$C$69/100*SIN($C203*$T$191*PI()/180) -> 0 | U203: =Harmonischen!$C$70/100*SIN($C203*$U$191*PI()/180) -> 0 | V203: =Harmonischen!$C$71/100*SIN($C203*$V$191*PI()/180) -> 0 | W203: =Harmonischen!$C$72/100*SIN($C203*$W$191*PI()/180) -> 0 | X203: =Harmonischen!$C$73/100*SIN($C203*$X$191*PI()/180) -> 0 | Y203: =Harmonischen!$C$74/100*SIN($C203*$Y$191*PI()/180) -> 0 | Z203: =Harmonischen!$C$75/100*SIN($C203*$Z$191*PI()/180) -> 0 | AA203: =Harmonischen!$C$76/100*SIN($C203*$AA$191*PI()/180) -> 0 | AB203: =Harmonischen!$C$77/100*SIN($C203*$AB$191*PI()/180) -> 0 | AD203: 0.2997368024
C204: 12 | D204: =Harmonischen!$C$53/100*SIN(C204*PI()/180) -> 0.2079116908 | E204: =Harmonischen!$C$54/100*SIN(C204*$E$191*PI()/180) -> 0 | F204: =Harmonischen!$C$55/100*SIN(C204*$F$191*PI()/180) -> 0.1175570505 | G204: =Harmonischen!$C$56/100*SIN(C204*$G$191*PI()/180) -> 0 | H204: =Harmonischen!$C$57/100*SIN(C204*$H$191*PI()/180) -> 0 | I204: =Harmonischen!$C$58/100*SIN(C204*$I$191*PI()/180) -> 0 | J204: =Harmonischen!$C$59/100*SIN(C204*$J$191*PI()/180) -> 0 | K204: =Harmonischen!$C$60/100*SIN(C204*$K$191*PI()/180) -> 0 | L204: =Harmonischen!$C$61/100*SIN(C204*$L$191*PI()/180) -> 0 | M204: =Harmonischen!$C$62/100*SIN(C204*$M$191*PI()/180) -> 0 | N204: =Harmonischen!$C$63/100*SIN($C204*$N$191*PI()/180) -> 0 | O204: =Harmonischen!$C$64/100*SIN($C204*$O$191*PI()/180) -> 0 | P204: =Harmonischen!$C$65/100*SIN($C204*$P$191*PI()/180) -> 0 | Q204: =Harmonischen!$C$66/100*SIN($C204*$Q$191*PI()/180) -> 0 | R204: =Harmonischen!$C$67/100*SIN($C204*$R$191*PI()/180) -> 0 | S204: =Harmonischen!$C$68/100*SIN($C204*$S$191*PI()/180) -> 0 | T204: =Harmonischen!$C$69/100*SIN($C204*$T$191*PI()/180) -> 0 | U204: =Harmonischen!$C$70/100*SIN($C204*$U$191*PI()/180) -> 0 | V204: =Harmonischen!$C$71/100*SIN($C204*$V$191*PI()/180) -> 0 | W204: =Harmonischen!$C$72/100*SIN($C204*$W$191*PI()/180) -> 0 | X204: =Harmonischen!$C$73/100*SIN($C204*$X$191*PI()/180) -> 0 | Y204: =Harmonischen!$C$74/100*SIN($C204*$Y$191*PI()/180) -> 0 | Z204: =Harmonischen!$C$75/100*SIN($C204*$Z$191*PI()/180) -> 0 | AA204: =Harmonischen!$C$76/100*SIN($C204*$AA$191*PI()/180) -> 0 | AB204: =Harmonischen!$C$77/100*SIN($C204*$AB$191*PI()/180) -> 0 | AD204: 0.3254687413
C205: 13 | D205: =Harmonischen!$C$53/100*SIN(C205*PI()/180) -> 0.2249510543 | E205: =Harmonischen!$C$54/100*SIN(C205*$E$191*PI()/180) -> 0 | F205: =Harmonischen!$C$55/100*SIN(C205*$F$191*PI()/180) -> 0.1258640782 | G205: =Harmonischen!$C$56/100*SIN(C205*$G$191*PI()/180) -> 0 | H205: =Harmonischen!$C$57/100*SIN(C205*$H$191*PI()/180) -> 0 | I205: =Harmonischen!$C$58/100*SIN(C205*$I$191*PI()/180) -> 0 | J205: =Harmonischen!$C$59/100*SIN(C205*$J$191*PI()/180) -> 0 | K205: =Harmonischen!$C$60/100*SIN(C205*$K$191*PI()/180) -> 0 | L205: =Harmonischen!$C$61/100*SIN(C205*$L$191*PI()/180) -> 0 | M205: =Harmonischen!$C$62/100*SIN(C205*$M$191*PI()/180) -> 0 | N205: =Harmonischen!$C$63/100*SIN($C205*$N$191*PI()/180) -> 0 | O205: =Harmonischen!$C$64/100*SIN($C205*$O$191*PI()/180) -> 0 | P205: =Harmonischen!$C$65/100*SIN($C205*$P$191*PI()/180) -> 0 | Q205: =Harmonischen!$C$66/100*SIN($C205*$Q$191*PI()/180) -> 0 | R205: =Harmonischen!$C$67/100*SIN($C205*$R$191*PI()/180) -> 0 | S205: =Harmonischen!$C$68/100*SIN($C205*$S$191*PI()/180) -> 0 | T205: =Harmonischen!$C$69/100*SIN($C205*$T$191*PI()/180) -> 0 | U205: =Harmonischen!$C$70/100*SIN($C205*$U$191*PI()/180) -> 0 | V205: =Harmonischen!$C$71/100*SIN($C205*$V$191*PI()/180) -> 0 | W205: =Harmonischen!$C$72/100*SIN($C205*$W$191*PI()/180) -> 0 | X205: =Harmonischen!$C$73/100*SIN($C205*$X$191*PI()/180) -> 0 | Y205: =Harmonischen!$C$74/100*SIN($C205*$Y$191*PI()/180) -> 0 | Z205: =Harmonischen!$C$75/100*SIN($C205*$Z$191*PI()/180) -> 0 | AA205: =Harmonischen!$C$76/100*SIN($C205*$AA$191*PI()/180) -> 0 | AB205: =Harmonischen!$C$77/100*SIN($C205*$AB$191*PI()/180) -> 0 | AD205: 0.3508151326
C206: 14 | D206: =Harmonischen!$C$53/100*SIN(C206*PI()/180) -> 0.2419218956 | E206: =Harmonischen!$C$54/100*SIN(C206*$E$191*PI()/180) -> 0 | F206: =Harmonischen!$C$55/100*SIN(C206*$F$191*PI()/180) -> 0.1338261213 | G206: =Harmonischen!$C$56/100*SIN(C206*$G$191*PI()/180) -> 0 | H206: =Harmonischen!$C$57/100*SIN(C206*$H$191*PI()/180) -> 0 | I206: =Harmonischen!$C$58/100*SIN(C206*$I$191*PI()/180) -> 0 | J206: =Harmonischen!$C$59/100*SIN(C206*$J$191*PI()/180) -> 0 | K206: =Harmonischen!$C$60/100*SIN(C206*$K$191*PI()/180) -> 0 | L206: =Harmonischen!$C$61/100*SIN(C206*$L$191*PI()/180) -> 0 | M206: =Harmonischen!$C$62/100*SIN(C206*$M$191*PI()/180) -> 0 | N206: =Harmonischen!$C$63/100*SIN($C206*$N$191*PI()/180) -> 0 | O206: =Harmonischen!$C$64/100*SIN($C206*$O$191*PI()/180) -> 0 | P206: =Harmonischen!$C$65/100*SIN($C206*$P$191*PI()/180) -> 0 | Q206: =Harmonischen!$C$66/100*SIN($C206*$Q$191*PI()/180) -> 0 | R206: =Harmonischen!$C$67/100*SIN($C206*$R$191*PI()/180) -> 0 | S206: =Harmonischen!$C$68/100*SIN($C206*$S$191*PI()/180) -> 0 | T206: =Harmonischen!$C$69/100*SIN($C206*$T$191*PI()/180) -> 0 | U206: =Harmonischen!$C$70/100*SIN($C206*$U$191*PI()/180) -> 0 | V206: =Harmonischen!$C$71/100*SIN($C206*$V$191*PI()/180) -> 0 | W206: =Harmonischen!$C$72/100*SIN($C206*$W$191*PI()/180) -> 0 | X206: =Harmonischen!$C$73/100*SIN($C206*$X$191*PI()/180) -> 0 | Y206: =Harmonischen!$C$74/100*SIN($C206*$Y$191*PI()/180) -> 0 | Z206: =Harmonischen!$C$75/100*SIN($C206*$Z$191*PI()/180) -> 0 | AA206: =Harmonischen!$C$76/100*SIN($C206*$AA$191*PI()/180) -> 0 | AB206: =Harmonischen!$C$77/100*SIN($C206*$AB$191*PI()/180) -> 0 | AD206: 0.3757480169
C207: 15 | D207: =Harmonischen!$C$53/100*SIN(C207*PI()/180) -> 0.2588190451 | E207: =Harmonischen!$C$54/100*SIN(C207*$E$191*PI()/180) -> 0 | F207: =Harmonischen!$C$55/100*SIN(C207*$F$191*PI()/180) -> 0.1414213562 | G207: =Harmonischen!$C$56/100*SIN(C207*$G$191*PI()/180) -> 0 | H207: =Harmonischen!$C$57/100*SIN(C207*$H$191*PI()/180) -> 0 | I207: =Harmonischen!$C$58/100*SIN(C207*$I$191*PI()/180) -> 0 | J207: =Harmonischen!$C$59/100*SIN(C207*$J$191*PI()/180) -> 0 | K207: =Harmonischen!$C$60/100*SIN(C207*$K$191*PI()/180) -> 0 | L207: =Harmonischen!$C$61/100*SIN(C207*$L$191*PI()/180) -> 0 | M207: =Harmonischen!$C$62/100*SIN(C207*$M$191*PI()/180) -> 0 | N207: =Harmonischen!$C$63/100*SIN($C207*$N$191*PI()/180) -> 0 | O207: =Harmonischen!$C$64/100*SIN($C207*$O$191*PI()/180) -> 0 | P207: =Harmonischen!$C$65/100*SIN($C207*$P$191*PI()/180) -> 0 | Q207: =Harmonischen!$C$66/100*SIN($C207*$Q$191*PI()/180) -> 0 | R207: =Harmonischen!$C$67/100*SIN($C207*$R$191*PI()/180) -> 0 | S207: =Harmonischen!$C$68/100*SIN($C207*$S$191*PI()/180) -> 0 | T207: =Harmonischen!$C$69/100*SIN($C207*$T$191*PI()/180) -> 0 | U207: =Harmonischen!$C$70/100*SIN($C207*$U$191*PI()/180) -> 0 | V207: =Harmonischen!$C$71/100*SIN($C207*$V$191*PI()/180) -> 0 | W207: =Harmonischen!$C$72/100*SIN($C207*$W$191*PI()/180) -> 0 | X207: =Harmonischen!$C$73/100*SIN($C207*$X$191*PI()/180) -> 0 | Y207: =Harmonischen!$C$74/100*SIN($C207*$Y$191*PI()/180) -> 0 | Z207: =Harmonischen!$C$75/100*SIN($C207*$Z$191*PI()/180) -> 0 | AA207: =Harmonischen!$C$76/100*SIN($C207*$AA$191*PI()/180) -> 0 | AB207: =Harmonischen!$C$77/100*SIN($C207*$AB$191*PI()/180) -> 0 | AD207: 0.4002404013
C208: 16 | D208: =Harmonischen!$C$53/100*SIN(C208*PI()/180) -> 0.2756373558 | E208: =Harmonischen!$C$54/100*SIN(C208*$E$191*PI()/180) -> 0 | F208: =Harmonischen!$C$55/100*SIN(C208*$F$191*PI()/180) -> 0.1486289651 | G208: =Harmonischen!$C$56/100*SIN(C208*$G$191*PI()/180) -> 0 | H208: =Harmonischen!$C$57/100*SIN(C208*$H$191*PI()/180) -> 0 | I208: =Harmonischen!$C$58/100*SIN(C208*$I$191*PI()/180) -> 0 | J208: =Harmonischen!$C$59/100*SIN(C208*$J$191*PI()/180) -> 0 | K208: =Harmonischen!$C$60/100*SIN(C208*$K$191*PI()/180) -> 0 | L208: =Harmonischen!$C$61/100*SIN(C208*$L$191*PI()/180) -> 0 | M208: =Harmonischen!$C$62/100*SIN(C208*$M$191*PI()/180) -> 0 | N208: =Harmonischen!$C$63/100*SIN($C208*$N$191*PI()/180) -> 0 | O208: =Harmonischen!$C$64/100*SIN($C208*$O$191*PI()/180) -> 0 | P208: =Harmonischen!$C$65/100*SIN($C208*$P$191*PI()/180) -> 0 | Q208: =Harmonischen!$C$66/100*SIN($C208*$Q$191*PI()/180) -> 0 | R208: =Harmonischen!$C$67/100*SIN($C208*$R$191*PI()/180) -> 0 | S208: =Harmonischen!$C$68/100*SIN($C208*$S$191*PI()/180) -> 0 | T208: =Harmonischen!$C$69/100*SIN($C208*$T$191*PI()/180) -> 0 | U208: =Harmonischen!$C$70/100*SIN($C208*$U$191*PI()/180) -> 0 | V208: =Harmonischen!$C$71/100*SIN($C208*$V$191*PI()/180) -> 0 | W208: =Harmonischen!$C$72/100*SIN($C208*$W$191*PI()/180) -> 0 | X208: =Harmonischen!$C$73/100*SIN($C208*$X$191*PI()/180) -> 0 | Y208: =Harmonischen!$C$74/100*SIN($C208*$Y$191*PI()/180) -> 0 | Z208: =Harmonischen!$C$75/100*SIN($C208*$Z$191*PI()/180) -> 0 | AA208: =Harmonischen!$C$76/100*SIN($C208*$AA$191*PI()/180) -> 0 | AB208: =Harmonischen!$C$77/100*SIN($C208*$AB$191*PI()/180) -> 0 | AD208: 0.4242663209
C209: 17 | D209: =Harmonischen!$C$53/100*SIN(C209*PI()/180) -> 0.2923717047 | E209: =Harmonischen!$C$54/100*SIN(C209*$E$191*PI()/180) -> 0 | F209: =Harmonischen!$C$55/100*SIN(C209*$F$191*PI()/180) -> 0.1554291923 | G209: =Harmonischen!$C$56/100*SIN(C209*$G$191*PI()/180) -> 0 | H209: =Harmonischen!$C$57/100*SIN(C209*$H$191*PI()/180) -> 0 | I209: =Harmonischen!$C$58/100*SIN(C209*$I$191*PI()/180) -> 0 | J209: =Harmonischen!$C$59/100*SIN(C209*$J$191*PI()/180) -> 0 | K209: =Harmonischen!$C$60/100*SIN(C209*$K$191*PI()/180) -> 0 | L209: =Harmonischen!$C$61/100*SIN(C209*$L$191*PI()/180) -> 0 | M209: =Harmonischen!$C$62/100*SIN(C209*$M$191*PI()/180) -> 0 | N209: =Harmonischen!$C$63/100*SIN($C209*$N$191*PI()/180) -> 0 | O209: =Harmonischen!$C$64/100*SIN($C209*$O$191*PI()/180) -> 0 | P209: =Harmonischen!$C$65/100*SIN($C209*$P$191*PI()/180) -> 0 | Q209: =Harmonischen!$C$66/100*SIN($C209*$Q$191*PI()/180) -> 0 | R209: =Harmonischen!$C$67/100*SIN($C209*$R$191*PI()/180) -> 0 | S209: =Harmonischen!$C$68/100*SIN($C209*$S$191*PI()/180) -> 0 | T209: =Harmonischen!$C$69/100*SIN($C209*$T$191*PI()/180) -> 0 | U209: =Harmonischen!$C$70/100*SIN($C209*$U$191*PI()/180) -> 0 | V209: =Harmonischen!$C$71/100*SIN($C209*$V$191*PI()/180) -> 0 | W209: =Harmonischen!$C$72/100*SIN($C209*$W$191*PI()/180) -> 0 | X209: =Harmonischen!$C$73/100*SIN($C209*$X$191*PI()/180) -> 0 | Y209: =Harmonischen!$C$74/100*SIN($C209*$Y$191*PI()/180) -> 0 | Z209: =Harmonischen!$C$75/100*SIN($C209*$Z$191*PI()/180) -> 0 | AA209: =Harmonischen!$C$76/100*SIN($C209*$AA$191*PI()/180) -> 0 | AB209: =Harmonischen!$C$77/100*SIN($C209*$AB$191*PI()/180) -> 0 | AD209: 0.447800897
C210: 18 | D210: =Harmonischen!$C$53/100*SIN(C210*PI()/180) -> 0.3090169944 | E210: =Harmonischen!$C$54/100*SIN(C210*$E$191*PI()/180) -> 0 | F210: =Harmonischen!$C$55/100*SIN(C210*$F$191*PI()/180) -> 0.1618033989 | G210: =Harmonischen!$C$56/100*SIN(C210*$G$191*PI()/180) -> 0 | H210: =Harmonischen!$C$57/100*SIN(C210*$H$191*PI()/180) -> 0 | I210: =Harmonischen!$C$58/100*SIN(C210*$I$191*PI()/180) -> 0 | J210: =Harmonischen!$C$59/100*SIN(C210*$J$191*PI()/180) -> 0 | K210: =Harmonischen!$C$60/100*SIN(C210*$K$191*PI()/180) -> 0 | L210: =Harmonischen!$C$61/100*SIN(C210*$L$191*PI()/180) -> 0 | M210: =Harmonischen!$C$62/100*SIN(C210*$M$191*PI()/180) -> 0 | N210: =Harmonischen!$C$63/100*SIN($C210*$N$191*PI()/180) -> 0 | O210: =Harmonischen!$C$64/100*SIN($C210*$O$191*PI()/180) -> 0 | P210: =Harmonischen!$C$65/100*SIN($C210*$P$191*PI()/180) -> 0 | Q210: =Harmonischen!$C$66/100*SIN($C210*$Q$191*PI()/180) -> 0 | R210: =Harmonischen!$C$67/100*SIN($C210*$R$191*PI()/180) -> 0 | S210: =Harmonischen!$C$68/100*SIN($C210*$S$191*PI()/180) -> 0 | T210: =Harmonischen!$C$69/100*SIN($C210*$T$191*PI()/180) -> 0 | U210: =Harmonischen!$C$70/100*SIN($C210*$U$191*PI()/180) -> 0 | V210: =Harmonischen!$C$71/100*SIN($C210*$V$191*PI()/180) -> 0 | W210: =Harmonischen!$C$72/100*SIN($C210*$W$191*PI()/180) -> 0 | X210: =Harmonischen!$C$73/100*SIN($C210*$X$191*PI()/180) -> 0 | Y210: =Harmonischen!$C$74/100*SIN($C210*$Y$191*PI()/180) -> 0 | Z210: =Harmonischen!$C$75/100*SIN($C210*$Z$191*PI()/180) -> 0 | AA210: =Harmonischen!$C$76/100*SIN($C210*$AA$191*PI()/180) -> 0 | AB210: =Harmonischen!$C$77/100*SIN($C210*$AB$191*PI()/180) -> 0 | AD210: 0.4708203932
C211: 19 | D211: =Harmonischen!$C$53/100*SIN(C211*PI()/180) -> 0.3255681545 | E211: =Harmonischen!$C$54/100*SIN(C211*$E$191*PI()/180) -> 0 | F211: =Harmonischen!$C$55/100*SIN(C211*$F$191*PI()/180) -> 0.1677341136 | G211: =Harmonischen!$C$56/100*SIN(C211*$G$191*PI()/180) -> 0 | H211: =Harmonischen!$C$57/100*SIN(C211*$H$191*PI()/180) -> 0 | I211: =Harmonischen!$C$58/100*SIN(C211*$I$191*PI()/180) -> 0 | J211: =Harmonischen!$C$59/100*SIN(C211*$J$191*PI()/180) -> 0 | K211: =Harmonischen!$C$60/100*SIN(C211*$K$191*PI()/180) -> 0 | L211: =Harmonischen!$C$61/100*SIN(C211*$L$191*PI()/180) -> 0 | M211: =Harmonischen!$C$62/100*SIN(C211*$M$191*PI()/180) -> 0 | N211: =Harmonischen!$C$63/100*SIN($C211*$N$191*PI()/180) -> 0 | O211: =Harmonischen!$C$64/100*SIN($C211*$O$191*PI()/180) -> 0 | P211: =Harmonischen!$C$65/100*SIN($C211*$P$191*PI()/180) -> 0 | Q211: =Harmonischen!$C$66/100*SIN($C211*$Q$191*PI()/180) -> 0 | R211: =Harmonischen!$C$67/100*SIN($C211*$R$191*PI()/180) -> 0 | S211: =Harmonischen!$C$68/100*SIN($C211*$S$191*PI()/180) -> 0 | T211: =Harmonischen!$C$69/100*SIN($C211*$T$191*PI()/180) -> 0 | U211: =Harmonischen!$C$70/100*SIN($C211*$U$191*PI()/180) -> 0 | V211: =Harmonischen!$C$71/100*SIN($C211*$V$191*PI()/180) -> 0 | W211: =Harmonischen!$C$72/100*SIN($C211*$W$191*PI()/180) -> 0 | X211: =Harmonischen!$C$73/100*SIN($C211*$X$191*PI()/180) -> 0 | Y211: =Harmonischen!$C$74/100*SIN($C211*$Y$191*PI()/180) -> 0 | Z211: =Harmonischen!$C$75/100*SIN($C211*$Z$191*PI()/180) -> 0 | AA211: =Harmonischen!$C$76/100*SIN($C211*$AA$191*PI()/180) -> 0 | AB211: =Harmonischen!$C$77/100*SIN($C211*$AB$191*PI()/180) -> 0 | AD211: 0.493302268
C212: 20 | D212: =Harmonischen!$C$53/100*SIN(C212*PI()/180) -> 0.3420201433 | E212: =Harmonischen!$C$54/100*SIN(C212*$E$191*PI()/180) -> 0 | F212: =Harmonischen!$C$55/100*SIN(C212*$F$191*PI()/180) -> 0.1732050808 | G212: =Harmonischen!$C$56/100*SIN(C212*$G$191*PI()/180) -> 0 | H212: =Harmonischen!$C$57/100*SIN(C212*$H$191*PI()/180) -> 0 | I212: =Harmonischen!$C$58/100*SIN(C212*$I$191*PI()/180) -> 0 | J212: =Harmonischen!$C$59/100*SIN(C212*$J$191*PI()/180) -> 0 | K212: =Harmonischen!$C$60/100*SIN(C212*$K$191*PI()/180) -> 0 | L212: =Harmonischen!$C$61/100*SIN(C212*$L$191*PI()/180) -> 0 | M212: =Harmonischen!$C$62/100*SIN(C212*$M$191*PI()/180) -> 0 | N212: =Harmonischen!$C$63/100*SIN($C212*$N$191*PI()/180) -> 0 | O212: =Harmonischen!$C$64/100*SIN($C212*$O$191*PI()/180) -> 0 | P212: =Harmonischen!$C$65/100*SIN($C212*$P$191*PI()/180) -> 0 | Q212: =Harmonischen!$C$66/100*SIN($C212*$Q$191*PI()/180) -> 0 | R212: =Harmonischen!$C$67/100*SIN($C212*$R$191*PI()/180) -> 0 | S212: =Harmonischen!$C$68/100*SIN($C212*$S$191*PI()/180) -> 0 | T212: =Harmonischen!$C$69/100*SIN($C212*$T$191*PI()/180) -> 0 | U212: =Harmonischen!$C$70/100*SIN($C212*$U$191*PI()/180) -> 0 | V212: =Harmonischen!$C$71/100*SIN($C212*$V$191*PI()/180) -> 0 | W212: =Harmonischen!$C$72/100*SIN($C212*$W$191*PI()/180) -> 0 | X212: =Harmonischen!$C$73/100*SIN($C212*$X$191*PI()/180) -> 0 | Y212: =Harmonischen!$C$74/100*SIN($C212*$Y$191*PI()/180) -> 0 | Z212: =Harmonischen!$C$75/100*SIN($C212*$Z$191*PI()/180) -> 0 | AA212: =Harmonischen!$C$76/100*SIN($C212*$AA$191*PI()/180) -> 0 | AB212: =Harmonischen!$C$77/100*SIN($C212*$AB$191*PI()/180) -> 0 | AD212: 0.5152252241
C213: 21 | D213: =Harmonischen!$C$53/100*SIN(C213*PI()/180) -> 0.3583679495 | E213: =Harmonischen!$C$54/100*SIN(C213*$E$191*PI()/180) -> 0 | F213: =Harmonischen!$C$55/100*SIN(C213*$F$191*PI()/180) -> 0.1782013048 | G213: =Harmonischen!$C$56/100*SIN(C213*$G$191*PI()/180) -> 0 | H213: =Harmonischen!$C$57/100*SIN(C213*$H$191*PI()/180) -> 0 | I213: =Harmonischen!$C$58/100*SIN(C213*$I$191*PI()/180) -> 0 | J213: =Harmonischen!$C$59/100*SIN(C213*$J$191*PI()/180) -> 0 | K213: =Harmonischen!$C$60/100*SIN(C213*$K$191*PI()/180) -> 0 | L213: =Harmonischen!$C$61/100*SIN(C213*$L$191*PI()/180) -> 0 | M213: =Harmonischen!$C$62/100*SIN(C213*$M$191*PI()/180) -> 0 | N213: =Harmonischen!$C$63/100*SIN($C213*$N$191*PI()/180) -> 0 | O213: =Harmonischen!$C$64/100*SIN($C213*$O$191*PI()/180) -> 0 | P213: =Harmonischen!$C$65/100*SIN($C213*$P$191*PI()/180) -> 0 | Q213: =Harmonischen!$C$66/100*SIN($C213*$Q$191*PI()/180) -> 0 | R213: =Harmonischen!$C$67/100*SIN($C213*$R$191*PI()/180) -> 0 | S213: =Harmonischen!$C$68/100*SIN($C213*$S$191*PI()/180) -> 0 | T213: =Harmonischen!$C$69/100*SIN($C213*$T$191*PI()/180) -> 0 | U213: =Harmonischen!$C$70/100*SIN($C213*$U$191*PI()/180) -> 0 | V213: =Harmonischen!$C$71/100*SIN($C213*$V$191*PI()/180) -> 0 | W213: =Harmonischen!$C$72/100*SIN($C213*$W$191*PI()/180) -> 0 | X213: =Harmonischen!$C$73/100*SIN($C213*$X$191*PI()/180) -> 0 | Y213: =Harmonischen!$C$74/100*SIN($C213*$Y$191*PI()/180) -> 0 | Z213: =Harmonischen!$C$75/100*SIN($C213*$Z$191*PI()/180) -> 0 | AA213: =Harmonischen!$C$76/100*SIN($C213*$AA$191*PI()/180) -> 0 | AB213: =Harmonischen!$C$77/100*SIN($C213*$AB$191*PI()/180) -> 0 | AD213: 0.5365692544
C214: 22 | D214: =Harmonischen!$C$53/100*SIN(C214*PI()/180) -> 0.3746065934 | E214: =Harmonischen!$C$54/100*SIN(C214*$E$191*PI()/180) -> 0 | F214: =Harmonischen!$C$55/100*SIN(C214*$F$191*PI()/180) -> 0.1827090915 | G214: =Harmonischen!$C$56/100*SIN(C214*$G$191*PI()/180) -> 0 | H214: =Harmonischen!$C$57/100*SIN(C214*$H$191*PI()/180) -> 0 | I214: =Harmonischen!$C$58/100*SIN(C214*$I$191*PI()/180) -> 0 | J214: =Harmonischen!$C$59/100*SIN(C214*$J$191*PI()/180) -> 0 | K214: =Harmonischen!$C$60/100*SIN(C214*$K$191*PI()/180) -> 0 | L214: =Harmonischen!$C$61/100*SIN(C214*$L$191*PI()/180) -> 0 | M214: =Harmonischen!$C$62/100*SIN(C214*$M$191*PI()/180) -> 0 | N214: =Harmonischen!$C$63/100*SIN($C214*$N$191*PI()/180) -> 0 | O214: =Harmonischen!$C$64/100*SIN($C214*$O$191*PI()/180) -> 0 | P214: =Harmonischen!$C$65/100*SIN($C214*$P$191*PI()/180) -> 0 | Q214: =Harmonischen!$C$66/100*SIN($C214*$Q$191*PI()/180) -> 0 | R214: =Harmonischen!$C$67/100*SIN($C214*$R$191*PI()/180) -> 0 | S214: =Harmonischen!$C$68/100*SIN($C214*$S$191*PI()/180) -> 0 | T214: =Harmonischen!$C$69/100*SIN($C214*$T$191*PI()/180) -> 0 | U214: =Harmonischen!$C$70/100*SIN($C214*$U$191*PI()/180) -> 0 | V214: =Harmonischen!$C$71/100*SIN($C214*$V$191*PI()/180) -> 0 | W214: =Harmonischen!$C$72/100*SIN($C214*$W$191*PI()/180) -> 0 | X214: =Harmonischen!$C$73/100*SIN($C214*$X$191*PI()/180) -> 0 | Y214: =Harmonischen!$C$74/100*SIN($C214*$Y$191*PI()/180) -> 0 | Z214: =Harmonischen!$C$75/100*SIN($C214*$Z$191*PI()/180) -> 0 | AA214: =Harmonischen!$C$76/100*SIN($C214*$AA$191*PI()/180) -> 0 | AB214: =Harmonischen!$C$77/100*SIN($C214*$AB$191*PI()/180) -> 0 | AD214: 0.5573156849
C215: 23 | D215: =Harmonischen!$C$53/100*SIN(C215*PI()/180) -> 0.3907311285 | E215: =Harmonischen!$C$54/100*SIN(C215*$E$191*PI()/180) -> 0 | F215: =Harmonischen!$C$55/100*SIN(C215*$F$191*PI()/180) -> 0.1867160853 | G215: =Harmonischen!$C$56/100*SIN(C215*$G$191*PI()/180) -> 0 | H215: =Harmonischen!$C$57/100*SIN(C215*$H$191*PI()/180) -> 0 | I215: =Harmonischen!$C$58/100*SIN(C215*$I$191*PI()/180) -> 0 | J215: =Harmonischen!$C$59/100*SIN(C215*$J$191*PI()/180) -> 0 | K215: =Harmonischen!$C$60/100*SIN(C215*$K$191*PI()/180) -> 0 | L215: =Harmonischen!$C$61/100*SIN(C215*$L$191*PI()/180) -> 0 | M215: =Harmonischen!$C$62/100*SIN(C215*$M$191*PI()/180) -> 0 | N215: =Harmonischen!$C$63/100*SIN($C215*$N$191*PI()/180) -> 0 | O215: =Harmonischen!$C$64/100*SIN($C215*$O$191*PI()/180) -> 0 | P215: =Harmonischen!$C$65/100*SIN($C215*$P$191*PI()/180) -> 0 | Q215: =Harmonischen!$C$66/100*SIN($C215*$Q$191*PI()/180) -> 0 | R215: =Harmonischen!$C$67/100*SIN($C215*$R$191*PI()/180) -> 0 | S215: =Harmonischen!$C$68/100*SIN($C215*$S$191*PI()/180) -> 0 | T215: =Harmonischen!$C$69/100*SIN($C215*$T$191*PI()/180) -> 0 | U215: =Harmonischen!$C$70/100*SIN($C215*$U$191*PI()/180) -> 0 | V215: =Harmonischen!$C$71/100*SIN($C215*$V$191*PI()/180) -> 0 | W215: =Harmonischen!$C$72/100*SIN($C215*$W$191*PI()/180) -> 0 | X215: =Harmonischen!$C$73/100*SIN($C215*$X$191*PI()/180) -> 0 | Y215: =Harmonischen!$C$74/100*SIN($C215*$Y$191*PI()/180) -> 0 | Z215: =Harmonischen!$C$75/100*SIN($C215*$Z$191*PI()/180) -> 0 | AA215: =Harmonischen!$C$76/100*SIN($C215*$AA$191*PI()/180) -> 0 | AB215: =Harmonischen!$C$77/100*SIN($C215*$AB$191*PI()/180) -> 0 | AD215: 0.5774472138
C216: 24 | D216: =Harmonischen!$C$53/100*SIN(C216*PI()/180) -> 0.4067366431 | E216: =Harmonischen!$C$54/100*SIN(C216*$E$191*PI()/180) -> 0 | F216: =Harmonischen!$C$55/100*SIN(C216*$F$191*PI()/180) -> 0.1902113033 | G216: =Harmonischen!$C$56/100*SIN(C216*$G$191*PI()/180) -> 0 | H216: =Harmonischen!$C$57/100*SIN(C216*$H$191*PI()/180) -> 0 | I216: =Harmonischen!$C$58/100*SIN(C216*$I$191*PI()/180) -> 0 | J216: =Harmonischen!$C$59/100*SIN(C216*$J$191*PI()/180) -> 0 | K216: =Harmonischen!$C$60/100*SIN(C216*$K$191*PI()/180) -> 0 | L216: =Harmonischen!$C$61/100*SIN(C216*$L$191*PI()/180) -> 0 | M216: =Harmonischen!$C$62/100*SIN(C216*$M$191*PI()/180) -> 0 | N216: =Harmonischen!$C$63/100*SIN($C216*$N$191*PI()/180) -> 0 | O216: =Harmonischen!$C$64/100*SIN($C216*$O$191*PI()/180) -> 0 | P216: =Harmonischen!$C$65/100*SIN($C216*$P$191*PI()/180) -> 0 | Q216: =Harmonischen!$C$66/100*SIN($C216*$Q$191*PI()/180) -> 0 | R216: =Harmonischen!$C$67/100*SIN($C216*$R$191*PI()/180) -> 0 | S216: =Harmonischen!$C$68/100*SIN($C216*$S$191*PI()/180) -> 0 | T216: =Harmonischen!$C$69/100*SIN($C216*$T$191*PI()/180) -> 0 | U216: =Harmonischen!$C$70/100*SIN($C216*$U$191*PI()/180) -> 0 | V216: =Harmonischen!$C$71/100*SIN($C216*$V$191*PI()/180) -> 0 | W216: =Harmonischen!$C$72/100*SIN($C216*$W$191*PI()/180) -> 0 | X216: =Harmonischen!$C$73/100*SIN($C216*$X$191*PI()/180) -> 0 | Y216: =Harmonischen!$C$74/100*SIN($C216*$Y$191*PI()/180) -> 0 | Z216: =Harmonischen!$C$75/100*SIN($C216*$Z$191*PI()/180) -> 0 | AA216: =Harmonischen!$C$76/100*SIN($C216*$AA$191*PI()/180) -> 0 | AB216: =Harmonischen!$C$77/100*SIN($C216*$AB$191*PI()/180) -> 0 | AD216: 0.5969479463
C217: 25 | D217: =Harmonischen!$C$53/100*SIN(C217*PI()/180) -> 0.4226182617 | E217: =Harmonischen!$C$54/100*SIN(C217*$E$191*PI()/180) -> 0 | F217: =Harmonischen!$C$55/100*SIN(C217*$F$191*PI()/180) -> 0.1931851653 | G217: =Harmonischen!$C$56/100*SIN(C217*$G$191*PI()/180) -> 0 | H217: =Harmonischen!$C$57/100*SIN(C217*$H$191*PI()/180) -> 0 | I217: =Harmonischen!$C$58/100*SIN(C217*$I$191*PI()/180) -> 0 | J217: =Harmonischen!$C$59/100*SIN(C217*$J$191*PI()/180) -> 0 | K217: =Harmonischen!$C$60/100*SIN(C217*$K$191*PI()/180) -> 0 | L217: =Harmonischen!$C$61/100*SIN(C217*$L$191*PI()/180) -> 0 | M217: =Harmonischen!$C$62/100*SIN(C217*$M$191*PI()/180) -> 0 | N217: =Harmonischen!$C$63/100*SIN($C217*$N$191*PI()/180) -> 0 | O217: =Harmonischen!$C$64/100*SIN($C217*$O$191*PI()/180) -> 0 | P217: =Harmonischen!$C$65/100*SIN($C217*$P$191*PI()/180) -> 0 | Q217: =Harmonischen!$C$66/100*SIN($C217*$Q$191*PI()/180) -> 0 | R217: =Harmonischen!$C$67/100*SIN($C217*$R$191*PI()/180) -> 0 | S217: =Harmonischen!$C$68/100*SIN($C217*$S$191*PI()/180) -> 0 | T217: =Harmonischen!$C$69/100*SIN($C217*$T$191*PI()/180) -> 0 | U217: =Harmonischen!$C$70/100*SIN($C217*$U$191*PI()/180) -> 0 | V217: =Harmonischen!$C$71/100*SIN($C217*$V$191*PI()/180) -> 0 | W217: =Harmonischen!$C$72/100*SIN($C217*$W$191*PI()/180) -> 0 | X217: =Harmonischen!$C$73/100*SIN($C217*$X$191*PI()/180) -> 0 | Y217: =Harmonischen!$C$74/100*SIN($C217*$Y$191*PI()/180) -> 0 | Z217: =Harmonischen!$C$75/100*SIN($C217*$Z$191*PI()/180) -> 0 | AA217: =Harmonischen!$C$76/100*SIN($C217*$AA$191*PI()/180) -> 0 | AB217: =Harmonischen!$C$77/100*SIN($C217*$AB$191*PI()/180) -> 0 | AD217: 0.615803427
C218: 26 | D218: =Harmonischen!$C$53/100*SIN(C218*PI()/180) -> 0.4383711468 | E218: =Harmonischen!$C$54/100*SIN(C218*$E$191*PI()/180) -> 0 | F218: =Harmonischen!$C$55/100*SIN(C218*$F$191*PI()/180) -> 0.1956295201 | G218: =Harmonischen!$C$56/100*SIN(C218*$G$191*PI()/180) -> 0 | H218: =Harmonischen!$C$57/100*SIN(C218*$H$191*PI()/180) -> 0 | I218: =Harmonischen!$C$58/100*SIN(C218*$I$191*PI()/180) -> 0 | J218: =Harmonischen!$C$59/100*SIN(C218*$J$191*PI()/180) -> 0 | K218: =Harmonischen!$C$60/100*SIN(C218*$K$191*PI()/180) -> 0 | L218: =Harmonischen!$C$61/100*SIN(C218*$L$191*PI()/180) -> 0 | M218: =Harmonischen!$C$62/100*SIN(C218*$M$191*PI()/180) -> 0 | N218: =Harmonischen!$C$63/100*SIN($C218*$N$191*PI()/180) -> 0 | O218: =Harmonischen!$C$64/100*SIN($C218*$O$191*PI()/180) -> 0 | P218: =Harmonischen!$C$65/100*SIN($C218*$P$191*PI()/180) -> 0 | Q218: =Harmonischen!$C$66/100*SIN($C218*$Q$191*PI()/180) -> 0 | R218: =Harmonischen!$C$67/100*SIN($C218*$R$191*PI()/180) -> 0 | S218: =Harmonischen!$C$68/100*SIN($C218*$S$191*PI()/180) -> 0 | T218: =Harmonischen!$C$69/100*SIN($C218*$T$191*PI()/180) -> 0 | U218: =Harmonischen!$C$70/100*SIN($C218*$U$191*PI()/180) -> 0 | V218: =Harmonischen!$C$71/100*SIN($C218*$V$191*PI()/180) -> 0 | W218: =Harmonischen!$C$72/100*SIN($C218*$W$191*PI()/180) -> 0 | X218: =Harmonischen!$C$73/100*SIN($C218*$X$191*PI()/180) -> 0 | Y218: =Harmonischen!$C$74/100*SIN($C218*$Y$191*PI()/180) -> 0 | Z218: =Harmonischen!$C$75/100*SIN($C218*$Z$191*PI()/180) -> 0 | AA218: =Harmonischen!$C$76/100*SIN($C218*$AA$191*PI()/180) -> 0 | AB218: =Harmonischen!$C$77/100*SIN($C218*$AB$191*PI()/180) -> 0 | AD218: 0.6340006669
C219: 27 | D219: =Harmonischen!$C$53/100*SIN(C219*PI()/180) -> 0.4539904997 | E219: =Harmonischen!$C$54/100*SIN(C219*$E$191*PI()/180) -> 0 | F219: =Harmonischen!$C$55/100*SIN(C219*$F$191*PI()/180) -> 0.1975376681 | G219: =Harmonischen!$C$56/100*SIN(C219*$G$191*PI()/180) -> 0 | H219: =Harmonischen!$C$57/100*SIN(C219*$H$191*PI()/180) -> 0 | I219: =Harmonischen!$C$58/100*SIN(C219*$I$191*PI()/180) -> 0 | J219: =Harmonischen!$C$59/100*SIN(C219*$J$191*PI()/180) -> 0 | K219: =Harmonischen!$C$60/100*SIN(C219*$K$191*PI()/180) -> 0 | L219: =Harmonischen!$C$61/100*SIN(C219*$L$191*PI()/180) -> 0 | M219: =Harmonischen!$C$62/100*SIN(C219*$M$191*PI()/180) -> 0 | N219: =Harmonischen!$C$63/100*SIN($C219*$N$191*PI()/180) -> 0 | O219: =Harmonischen!$C$64/100*SIN($C219*$O$191*PI()/180) -> 0 | P219: =Harmonischen!$C$65/100*SIN($C219*$P$191*PI()/180) -> 0 | Q219: =Harmonischen!$C$66/100*SIN($C219*$Q$191*PI()/180) -> 0 | R219: =Harmonischen!$C$67/100*SIN($C219*$R$191*PI()/180) -> 0 | S219: =Harmonischen!$C$68/100*SIN($C219*$S$191*PI()/180) -> 0 | T219: =Harmonischen!$C$69/100*SIN($C219*$T$191*PI()/180) -> 0 | U219: =Harmonischen!$C$70/100*SIN($C219*$U$191*PI()/180) -> 0 | V219: =Harmonischen!$C$71/100*SIN($C219*$V$191*PI()/180) -> 0 | W219: =Harmonischen!$C$72/100*SIN($C219*$W$191*PI()/180) -> 0 | X219: =Harmonischen!$C$73/100*SIN($C219*$X$191*PI()/180) -> 0 | Y219: =Harmonischen!$C$74/100*SIN($C219*$Y$191*PI()/180) -> 0 | Z219: =Harmonischen!$C$75/100*SIN($C219*$Z$191*PI()/180) -> 0 | AA219: =Harmonischen!$C$76/100*SIN($C219*$AA$191*PI()/180) -> 0 | AB219: =Harmonischen!$C$77/100*SIN($C219*$AB$191*PI()/180) -> 0 | AD219: 0.6515281679
C220: 28 | D220: =Harmonischen!$C$53/100*SIN(C220*PI()/180) -> 0.4694715628 | E220: =Harmonischen!$C$54/100*SIN(C220*$E$191*PI()/180) -> 0 | F220: =Harmonischen!$C$55/100*SIN(C220*$F$191*PI()/180) -> 0.1989043791 | G220: =Harmonischen!$C$56/100*SIN(C220*$G$191*PI()/180) -> 0 | H220: =Harmonischen!$C$57/100*SIN(C220*$H$191*PI()/180) -> 0 | I220: =Harmonischen!$C$58/100*SIN(C220*$I$191*PI()/180) -> 0 | J220: =Harmonischen!$C$59/100*SIN(C220*$J$191*PI()/180) -> 0 | K220: =Harmonischen!$C$60/100*SIN(C220*$K$191*PI()/180) -> 0 | L220: =Harmonischen!$C$61/100*SIN(C220*$L$191*PI()/180) -> 0 | M220: =Harmonischen!$C$62/100*SIN(C220*$M$191*PI()/180) -> 0 | N220: =Harmonischen!$C$63/100*SIN($C220*$N$191*PI()/180) -> 0 | O220: =Harmonischen!$C$64/100*SIN($C220*$O$191*PI()/180) -> 0 | P220: =Harmonischen!$C$65/100*SIN($C220*$P$191*PI()/180) -> 0 | Q220: =Harmonischen!$C$66/100*SIN($C220*$Q$191*PI()/180) -> 0 | R220: =Harmonischen!$C$67/100*SIN($C220*$R$191*PI()/180) -> 0 | S220: =Harmonischen!$C$68/100*SIN($C220*$S$191*PI()/180) -> 0 | T220: =Harmonischen!$C$69/100*SIN($C220*$T$191*PI()/180) -> 0 | U220: =Harmonischen!$C$70/100*SIN($C220*$U$191*PI()/180) -> 0 | V220: =Harmonischen!$C$71/100*SIN($C220*$V$191*PI()/180) -> 0 | W220: =Harmonischen!$C$72/100*SIN($C220*$W$191*PI()/180) -> 0 | X220: =Harmonischen!$C$73/100*SIN($C220*$X$191*PI()/180) -> 0 | Y220: =Harmonischen!$C$74/100*SIN($C220*$Y$191*PI()/180) -> 0 | Z220: =Harmonischen!$C$75/100*SIN($C220*$Z$191*PI()/180) -> 0 | AA220: =Harmonischen!$C$76/100*SIN($C220*$AA$191*PI()/180) -> 0 | AB220: =Harmonischen!$C$77/100*SIN($C220*$AB$191*PI()/180) -> 0 | AD220: 0.6683759419
C221: 29 | D221: =Harmonischen!$C$53/100*SIN(C221*PI()/180) -> 0.4848096202 | E221: =Harmonischen!$C$54/100*SIN(C221*$E$191*PI()/180) -> 0 | F221: =Harmonischen!$C$55/100*SIN(C221*$F$191*PI()/180) -> 0.199725907 | G221: =Harmonischen!$C$56/100*SIN(C221*$G$191*PI()/180) -> 0 | H221: =Harmonischen!$C$57/100*SIN(C221*$H$191*PI()/180) -> 0 | I221: =Harmonischen!$C$58/100*SIN(C221*$I$191*PI()/180) -> 0 | J221: =Harmonischen!$C$59/100*SIN(C221*$J$191*PI()/180) -> 0 | K221: =Harmonischen!$C$60/100*SIN(C221*$K$191*PI()/180) -> 0 | L221: =Harmonischen!$C$61/100*SIN(C221*$L$191*PI()/180) -> 0 | M221: =Harmonischen!$C$62/100*SIN(C221*$M$191*PI()/180) -> 0 | N221: =Harmonischen!$C$63/100*SIN($C221*$N$191*PI()/180) -> 0 | O221: =Harmonischen!$C$64/100*SIN($C221*$O$191*PI()/180) -> 0 | P221: =Harmonischen!$C$65/100*SIN($C221*$P$191*PI()/180) -> 0 | Q221: =Harmonischen!$C$66/100*SIN($C221*$Q$191*PI()/180) -> 0 | R221: =Harmonischen!$C$67/100*SIN($C221*$R$191*PI()/180) -> 0 | S221: =Harmonischen!$C$68/100*SIN($C221*$S$191*PI()/180) -> 0 | T221: =Harmonischen!$C$69/100*SIN($C221*$T$191*PI()/180) -> 0 | U221: =Harmonischen!$C$70/100*SIN($C221*$U$191*PI()/180) -> 0 | V221: =Harmonischen!$C$71/100*SIN($C221*$V$191*PI()/180) -> 0 | W221: =Harmonischen!$C$72/100*SIN($C221*$W$191*PI()/180) -> 0 | X221: =Harmonischen!$C$73/100*SIN($C221*$X$191*PI()/180) -> 0 | Y221: =Harmonischen!$C$74/100*SIN($C221*$Y$191*PI()/180) -> 0 | Z221: =Harmonischen!$C$75/100*SIN($C221*$Z$191*PI()/180) -> 0 | AA221: =Harmonischen!$C$76/100*SIN($C221*$AA$191*PI()/180) -> 0 | AB221: =Harmonischen!$C$77/100*SIN($C221*$AB$191*PI()/180) -> 0 | AD221: 0.6845355272
C222: 30 | D222: =Harmonischen!$C$53/100*SIN(C222*PI()/180) -> 0.5 | E222: =Harmonischen!$C$54/100*SIN(C222*$E$191*PI()/180) -> 0 | F222: =Harmonischen!$C$55/100*SIN(C222*$F$191*PI()/180) -> 0.2 | G222: =Harmonischen!$C$56/100*SIN(C222*$G$191*PI()/180) -> 0 | H222: =Harmonischen!$C$57/100*SIN(C222*$H$191*PI()/180) -> 0 | I222: =Harmonischen!$C$58/100*SIN(C222*$I$191*PI()/180) -> 0 | J222: =Harmonischen!$C$59/100*SIN(C222*$J$191*PI()/180) -> 0 | K222: =Harmonischen!$C$60/100*SIN(C222*$K$191*PI()/180) -> 0 | L222: =Harmonischen!$C$61/100*SIN(C222*$L$191*PI()/180) -> 0 | M222: =Harmonischen!$C$62/100*SIN(C222*$M$191*PI()/180) -> 0 | N222: =Harmonischen!$C$63/100*SIN($C222*$N$191*PI()/180) -> 0 | O222: =Harmonischen!$C$64/100*SIN($C222*$O$191*PI()/180) -> 0 | P222: =Harmonischen!$C$65/100*SIN($C222*$P$191*PI()/180) -> 0 | Q222: =Harmonischen!$C$66/100*SIN($C222*$Q$191*PI()/180) -> 0 | R222: =Harmonischen!$C$67/100*SIN($C222*$R$191*PI()/180) -> 0 | S222: =Harmonischen!$C$68/100*SIN($C222*$S$191*PI()/180) -> 0 | T222: =Harmonischen!$C$69/100*SIN($C222*$T$191*PI()/180) -> 0 | U222: =Harmonischen!$C$70/100*SIN($C222*$U$191*PI()/180) -> 0 | V222: =Harmonischen!$C$71/100*SIN($C222*$V$191*PI()/180) -> 0 | W222: =Harmonischen!$C$72/100*SIN($C222*$W$191*PI()/180) -> 0 | X222: =Harmonischen!$C$73/100*SIN($C222*$X$191*PI()/180) -> 0 | Y222: =Harmonischen!$C$74/100*SIN($C222*$Y$191*PI()/180) -> 0 | Z222: =Harmonischen!$C$75/100*SIN($C222*$Z$191*PI()/180) -> 0 | AA222: =Harmonischen!$C$76/100*SIN($C222*$AA$191*PI()/180) -> 0 | AB222: =Harmonischen!$C$77/100*SIN($C222*$AB$191*PI()/180) -> 0 | AD222: 0.7
C223: 31 | D223: =Harmonischen!$C$53/100*SIN(C223*PI()/180) -> 0.5150380749 | E223: =Harmonischen!$C$54/100*SIN(C223*$E$191*PI()/180) -> 0 | F223: =Harmonischen!$C$55/100*SIN(C223*$F$191*PI()/180) -> 0.199725907 | G223: =Harmonischen!$C$56/100*SIN(C223*$G$191*PI()/180) -> 0 | H223: =Harmonischen!$C$57/100*SIN(C223*$H$191*PI()/180) -> 0 | I223: =Harmonischen!$C$58/100*SIN(C223*$I$191*PI()/180) -> 0 | J223: =Harmonischen!$C$59/100*SIN(C223*$J$191*PI()/180) -> 0 | K223: =Harmonischen!$C$60/100*SIN(C223*$K$191*PI()/180) -> 0 | L223: =Harmonischen!$C$61/100*SIN(C223*$L$191*PI()/180) -> 0 | M223: =Harmonischen!$C$62/100*SIN(C223*$M$191*PI()/180) -> 0 | N223: =Harmonischen!$C$63/100*SIN($C223*$N$191*PI()/180) -> 0 | O223: =Harmonischen!$C$64/100*SIN($C223*$O$191*PI()/180) -> 0 | P223: =Harmonischen!$C$65/100*SIN($C223*$P$191*PI()/180) -> 0 | Q223: =Harmonischen!$C$66/100*SIN($C223*$Q$191*PI()/180) -> 0 | R223: =Harmonischen!$C$67/100*SIN($C223*$R$191*PI()/180) -> 0 | S223: =Harmonischen!$C$68/100*SIN($C223*$S$191*PI()/180) -> 0 | T223: =Harmonischen!$C$69/100*SIN($C223*$T$191*PI()/180) -> 0 | U223: =Harmonischen!$C$70/100*SIN($C223*$U$191*PI()/180) -> 0 | V223: =Harmonischen!$C$71/100*SIN($C223*$V$191*PI()/180) -> 0 | W223: =Harmonischen!$C$72/100*SIN($C223*$W$191*PI()/180) -> 0 | X223: =Harmonischen!$C$73/100*SIN($C223*$X$191*PI()/180) -> 0 | Y223: =Harmonischen!$C$74/100*SIN($C223*$Y$191*PI()/180) -> 0 | Z223: =Harmonischen!$C$75/100*SIN($C223*$Z$191*PI()/180) -> 0 | AA223: =Harmonischen!$C$76/100*SIN($C223*$AA$191*PI()/180) -> 0 | AB223: =Harmonischen!$C$77/100*SIN($C223*$AB$191*PI()/180) -> 0 | AD223: 0.7147639819
C224: 32 | D224: =Harmonischen!$C$53/100*SIN(C224*PI()/180) -> 0.5299192642 | E224: =Harmonischen!$C$54/100*SIN(C224*$E$191*PI()/180) -> 0 | F224: =Harmonischen!$C$55/100*SIN(C224*$F$191*PI()/180) -> 0.1989043791 | G224: =Harmonischen!$C$56/100*SIN(C224*$G$191*PI()/180) -> 0 | H224: =Harmonischen!$C$57/100*SIN(C224*$H$191*PI()/180) -> 0 | I224: =Harmonischen!$C$58/100*SIN(C224*$I$191*PI()/180) -> 0 | J224: =Harmonischen!$C$59/100*SIN(C224*$J$191*PI()/180) -> 0 | K224: =Harmonischen!$C$60/100*SIN(C224*$K$191*PI()/180) -> 0 | L224: =Harmonischen!$C$61/100*SIN(C224*$L$191*PI()/180) -> 0 | M224: =Harmonischen!$C$62/100*SIN(C224*$M$191*PI()/180) -> 0 | N224: =Harmonischen!$C$63/100*SIN($C224*$N$191*PI()/180) -> 0 | O224: =Harmonischen!$C$64/100*SIN($C224*$O$191*PI()/180) -> 0 | P224: =Harmonischen!$C$65/100*SIN($C224*$P$191*PI()/180) -> 0 | Q224: =Harmonischen!$C$66/100*SIN($C224*$Q$191*PI()/180) -> 0 | R224: =Harmonischen!$C$67/100*SIN($C224*$R$191*PI()/180) -> 0 | S224: =Harmonischen!$C$68/100*SIN($C224*$S$191*PI()/180) -> 0 | T224: =Harmonischen!$C$69/100*SIN($C224*$T$191*PI()/180) -> 0 | U224: =Harmonischen!$C$70/100*SIN($C224*$U$191*PI()/180) -> 0 | V224: =Harmonischen!$C$71/100*SIN($C224*$V$191*PI()/180) -> 0 | W224: =Harmonischen!$C$72/100*SIN($C224*$W$191*PI()/180) -> 0 | X224: =Harmonischen!$C$73/100*SIN($C224*$X$191*PI()/180) -> 0 | Y224: =Harmonischen!$C$74/100*SIN($C224*$Y$191*PI()/180) -> 0 | Z224: =Harmonischen!$C$75/100*SIN($C224*$Z$191*PI()/180) -> 0 | AA224: =Harmonischen!$C$76/100*SIN($C224*$AA$191*PI()/180) -> 0 | AB224: =Harmonischen!$C$77/100*SIN($C224*$AB$191*PI()/180) -> 0 | AD224: 0.7288236433
C225: 33 | D225: =Harmonischen!$C$53/100*SIN(C225*PI()/180) -> 0.544639035 | E225: =Harmonischen!$C$54/100*SIN(C225*$E$191*PI()/180) -> 0 | F225: =Harmonischen!$C$55/100*SIN(C225*$F$191*PI()/180) -> 0.1975376681 | G225: =Harmonischen!$C$56/100*SIN(C225*$G$191*PI()/180) -> 0 | H225: =Harmonischen!$C$57/100*SIN(C225*$H$191*PI()/180) -> 0 | I225: =Harmonischen!$C$58/100*SIN(C225*$I$191*PI()/180) -> 0 | J225: =Harmonischen!$C$59/100*SIN(C225*$J$191*PI()/180) -> 0 | K225: =Harmonischen!$C$60/100*SIN(C225*$K$191*PI()/180) -> 0 | L225: =Harmonischen!$C$61/100*SIN(C225*$L$191*PI()/180) -> 0 | M225: =Harmonischen!$C$62/100*SIN(C225*$M$191*PI()/180) -> 0 | N225: =Harmonischen!$C$63/100*SIN($C225*$N$191*PI()/180) -> 0 | O225: =Harmonischen!$C$64/100*SIN($C225*$O$191*PI()/180) -> 0 | P225: =Harmonischen!$C$65/100*SIN($C225*$P$191*PI()/180) -> 0 | Q225: =Harmonischen!$C$66/100*SIN($C225*$Q$191*PI()/180) -> 0 | R225: =Harmonischen!$C$67/100*SIN($C225*$R$191*PI()/180) -> 0 | S225: =Harmonischen!$C$68/100*SIN($C225*$S$191*PI()/180) -> 0 | T225: =Harmonischen!$C$69/100*SIN($C225*$T$191*PI()/180) -> 0 | U225: =Harmonischen!$C$70/100*SIN($C225*$U$191*PI()/180) -> 0 | V225: =Harmonischen!$C$71/100*SIN($C225*$V$191*PI()/180) -> 0 | W225: =Harmonischen!$C$72/100*SIN($C225*$W$191*PI()/180) -> 0 | X225: =Harmonischen!$C$73/100*SIN($C225*$X$191*PI()/180) -> 0 | Y225: =Harmonischen!$C$74/100*SIN($C225*$Y$191*PI()/180) -> 0 | Z225: =Harmonischen!$C$75/100*SIN($C225*$Z$191*PI()/180) -> 0 | AA225: =Harmonischen!$C$76/100*SIN($C225*$AA$191*PI()/180) -> 0 | AB225: =Harmonischen!$C$77/100*SIN($C225*$AB$191*PI()/180) -> 0 | AD225: 0.7421767031
C226: 34 | D226: =Harmonischen!$C$53/100*SIN(C226*PI()/180) -> 0.5591929035 | E226: =Harmonischen!$C$54/100*SIN(C226*$E$191*PI()/180) -> 0 | F226: =Harmonischen!$C$55/100*SIN(C226*$F$191*PI()/180) -> 0.1956295201 | G226: =Harmonischen!$C$56/100*SIN(C226*$G$191*PI()/180) -> 0 | H226: =Harmonischen!$C$57/100*SIN(C226*$H$191*PI()/180) -> 0 | I226: =Harmonischen!$C$58/100*SIN(C226*$I$191*PI()/180) -> 0 | J226: =Harmonischen!$C$59/100*SIN(C226*$J$191*PI()/180) -> 0 | K226: =Harmonischen!$C$60/100*SIN(C226*$K$191*PI()/180) -> 0 | L226: =Harmonischen!$C$61/100*SIN(C226*$L$191*PI()/180) -> 0 | M226: =Harmonischen!$C$62/100*SIN(C226*$M$191*PI()/180) -> 0 | N226: =Harmonischen!$C$63/100*SIN($C226*$N$191*PI()/180) -> 0 | O226: =Harmonischen!$C$64/100*SIN($C226*$O$191*PI()/180) -> 0 | P226: =Harmonischen!$C$65/100*SIN($C226*$P$191*PI()/180) -> 0 | Q226: =Harmonischen!$C$66/100*SIN($C226*$Q$191*PI()/180) -> 0 | R226: =Harmonischen!$C$67/100*SIN($C226*$R$191*PI()/180) -> 0 | S226: =Harmonischen!$C$68/100*SIN($C226*$S$191*PI()/180) -> 0 | T226: =Harmonischen!$C$69/100*SIN($C226*$T$191*PI()/180) -> 0 | U226: =Harmonischen!$C$70/100*SIN($C226*$U$191*PI()/180) -> 0 | V226: =Harmonischen!$C$71/100*SIN($C226*$V$191*PI()/180) -> 0 | W226: =Harmonischen!$C$72/100*SIN($C226*$W$191*PI()/180) -> 0 | X226: =Harmonischen!$C$73/100*SIN($C226*$X$191*PI()/180) -> 0 | Y226: =Harmonischen!$C$74/100*SIN($C226*$Y$191*PI()/180) -> 0 | Z226: =Harmonischen!$C$75/100*SIN($C226*$Z$191*PI()/180) -> 0 | AA226: =Harmonischen!$C$76/100*SIN($C226*$AA$191*PI()/180) -> 0 | AB226: =Harmonischen!$C$77/100*SIN($C226*$AB$191*PI()/180) -> 0 | AD226: 0.7548224236
C227: 35 | D227: =Harmonischen!$C$53/100*SIN(C227*PI()/180) -> 0.5735764364 | E227: =Harmonischen!$C$54/100*SIN(C227*$E$191*PI()/180) -> 0 | F227: =Harmonischen!$C$55/100*SIN(C227*$F$191*PI()/180) -> 0.1931851653 | G227: =Harmonischen!$C$56/100*SIN(C227*$G$191*PI()/180) -> 0 | H227: =Harmonischen!$C$57/100*SIN(C227*$H$191*PI()/180) -> 0 | I227: =Harmonischen!$C$58/100*SIN(C227*$I$191*PI()/180) -> 0 | J227: =Harmonischen!$C$59/100*SIN(C227*$J$191*PI()/180) -> 0 | K227: =Harmonischen!$C$60/100*SIN(C227*$K$191*PI()/180) -> 0 | L227: =Harmonischen!$C$61/100*SIN(C227*$L$191*PI()/180) -> 0 | M227: =Harmonischen!$C$62/100*SIN(C227*$M$191*PI()/180) -> 0 | N227: =Harmonischen!$C$63/100*SIN($C227*$N$191*PI()/180) -> 0 | O227: =Harmonischen!$C$64/100*SIN($C227*$O$191*PI()/180) -> 0 | P227: =Harmonischen!$C$65/100*SIN($C227*$P$191*PI()/180) -> 0 | Q227: =Harmonischen!$C$66/100*SIN($C227*$Q$191*PI()/180) -> 0 | R227: =Harmonischen!$C$67/100*SIN($C227*$R$191*PI()/180) -> 0 | S227: =Harmonischen!$C$68/100*SIN($C227*$S$191*PI()/180) -> 0 | T227: =Harmonischen!$C$69/100*SIN($C227*$T$191*PI()/180) -> 0 | U227: =Harmonischen!$C$70/100*SIN($C227*$U$191*PI()/180) -> 0 | V227: =Harmonischen!$C$71/100*SIN($C227*$V$191*PI()/180) -> 0 | W227: =Harmonischen!$C$72/100*SIN($C227*$W$191*PI()/180) -> 0 | X227: =Harmonischen!$C$73/100*SIN($C227*$X$191*PI()/180) -> 0 | Y227: =Harmonischen!$C$74/100*SIN($C227*$Y$191*PI()/180) -> 0 | Z227: =Harmonischen!$C$75/100*SIN($C227*$Z$191*PI()/180) -> 0 | AA227: =Harmonischen!$C$76/100*SIN($C227*$AA$191*PI()/180) -> 0 | AB227: =Harmonischen!$C$77/100*SIN($C227*$AB$191*PI()/180) -> 0 | AD227: 0.7667616016
C228: 36 | D228: =Harmonischen!$C$53/100*SIN(C228*PI()/180) -> 0.5877852523 | E228: =Harmonischen!$C$54/100*SIN(C228*$E$191*PI()/180) -> 0 | F228: =Harmonischen!$C$55/100*SIN(C228*$F$191*PI()/180) -> 0.1902113033 | G228: =Harmonischen!$C$56/100*SIN(C228*$G$191*PI()/180) -> 0 | H228: =Harmonischen!$C$57/100*SIN(C228*$H$191*PI()/180) -> 0 | I228: =Harmonischen!$C$58/100*SIN(C228*$I$191*PI()/180) -> 0 | J228: =Harmonischen!$C$59/100*SIN(C228*$J$191*PI()/180) -> 0 | K228: =Harmonischen!$C$60/100*SIN(C228*$K$191*PI()/180) -> 0 | L228: =Harmonischen!$C$61/100*SIN(C228*$L$191*PI()/180) -> 0 | M228: =Harmonischen!$C$62/100*SIN(C228*$M$191*PI()/180) -> 0 | N228: =Harmonischen!$C$63/100*SIN($C228*$N$191*PI()/180) -> 0 | O228: =Harmonischen!$C$64/100*SIN($C228*$O$191*PI()/180) -> 0 | P228: =Harmonischen!$C$65/100*SIN($C228*$P$191*PI()/180) -> 0 | Q228: =Harmonischen!$C$66/100*SIN($C228*$Q$191*PI()/180) -> 0 | R228: =Harmonischen!$C$67/100*SIN($C228*$R$191*PI()/180) -> 0 | S228: =Harmonischen!$C$68/100*SIN($C228*$S$191*PI()/180) -> 0 | T228: =Harmonischen!$C$69/100*SIN($C228*$T$191*PI()/180) -> 0 | U228: =Harmonischen!$C$70/100*SIN($C228*$U$191*PI()/180) -> 0 | V228: =Harmonischen!$C$71/100*SIN($C228*$V$191*PI()/180) -> 0 | W228: =Harmonischen!$C$72/100*SIN($C228*$W$191*PI()/180) -> 0 | X228: =Harmonischen!$C$73/100*SIN($C228*$X$191*PI()/180) -> 0 | Y228: =Harmonischen!$C$74/100*SIN($C228*$Y$191*PI()/180) -> 0 | Z228: =Harmonischen!$C$75/100*SIN($C228*$Z$191*PI()/180) -> 0 | AA228: =Harmonischen!$C$76/100*SIN($C228*$AA$191*PI()/180) -> 0 | AB228: =Harmonischen!$C$77/100*SIN($C228*$AB$191*PI()/180) -> 0 | AD228: 0.7779965556
C229: 37 | D229: =Harmonischen!$C$53/100*SIN(C229*PI()/180) -> 0.6018150232 | E229: =Harmonischen!$C$54/100*SIN(C229*$E$191*PI()/180) -> 0 | F229: =Harmonischen!$C$55/100*SIN(C229*$F$191*PI()/180) -> 0.1867160853 | G229: =Harmonischen!$C$56/100*SIN(C229*$G$191*PI()/180) -> 0 | H229: =Harmonischen!$C$57/100*SIN(C229*$H$191*PI()/180) -> 0 | I229: =Harmonischen!$C$58/100*SIN(C229*$I$191*PI()/180) -> 0 | J229: =Harmonischen!$C$59/100*SIN(C229*$J$191*PI()/180) -> 0 | K229: =Harmonischen!$C$60/100*SIN(C229*$K$191*PI()/180) -> 0 | L229: =Harmonischen!$C$61/100*SIN(C229*$L$191*PI()/180) -> 0 | M229: =Harmonischen!$C$62/100*SIN(C229*$M$191*PI()/180) -> 0 | N229: =Harmonischen!$C$63/100*SIN($C229*$N$191*PI()/180) -> 0 | O229: =Harmonischen!$C$64/100*SIN($C229*$O$191*PI()/180) -> 0 | P229: =Harmonischen!$C$65/100*SIN($C229*$P$191*PI()/180) -> 0 | Q229: =Harmonischen!$C$66/100*SIN($C229*$Q$191*PI()/180) -> 0 | R229: =Harmonischen!$C$67/100*SIN($C229*$R$191*PI()/180) -> 0 | S229: =Harmonischen!$C$68/100*SIN($C229*$S$191*PI()/180) -> 0 | T229: =Harmonischen!$C$69/100*SIN($C229*$T$191*PI()/180) -> 0 | U229: =Harmonischen!$C$70/100*SIN($C229*$U$191*PI()/180) -> 0 | V229: =Harmonischen!$C$71/100*SIN($C229*$V$191*PI()/180) -> 0 | W229: =Harmonischen!$C$72/100*SIN($C229*$W$191*PI()/180) -> 0 | X229: =Harmonischen!$C$73/100*SIN($C229*$X$191*PI()/180) -> 0 | Y229: =Harmonischen!$C$74/100*SIN($C229*$Y$191*PI()/180) -> 0 | Z229: =Harmonischen!$C$75/100*SIN($C229*$Z$191*PI()/180) -> 0 | AA229: =Harmonischen!$C$76/100*SIN($C229*$AA$191*PI()/180) -> 0 | AB229: =Harmonischen!$C$77/100*SIN($C229*$AB$191*PI()/180) -> 0 | AD229: 0.7885311085
C230: 38 | D230: =Harmonischen!$C$53/100*SIN(C230*PI()/180) -> 0.6156614753 | E230: =Harmonischen!$C$54/100*SIN(C230*$E$191*PI()/180) -> 0 | F230: =Harmonischen!$C$55/100*SIN(C230*$F$191*PI()/180) -> 0.1827090915 | G230: =Harmonischen!$C$56/100*SIN(C230*$G$191*PI()/180) -> 0 | H230: =Harmonischen!$C$57/100*SIN(C230*$H$191*PI()/180) -> 0 | I230: =Harmonischen!$C$58/100*SIN(C230*$I$191*PI()/180) -> 0 | J230: =Harmonischen!$C$59/100*SIN(C230*$J$191*PI()/180) -> 0 | K230: =Harmonischen!$C$60/100*SIN(C230*$K$191*PI()/180) -> 0 | L230: =Harmonischen!$C$61/100*SIN(C230*$L$191*PI()/180) -> 0 | M230: =Harmonischen!$C$62/100*SIN(C230*$M$191*PI()/180) -> 0 | N230: =Harmonischen!$C$63/100*SIN($C230*$N$191*PI()/180) -> 0 | O230: =Harmonischen!$C$64/100*SIN($C230*$O$191*PI()/180) -> 0 | P230: =Harmonischen!$C$65/100*SIN($C230*$P$191*PI()/180) -> 0 | Q230: =Harmonischen!$C$66/100*SIN($C230*$Q$191*PI()/180) -> 0 | R230: =Harmonischen!$C$67/100*SIN($C230*$R$191*PI()/180) -> 0 | S230: =Harmonischen!$C$68/100*SIN($C230*$S$191*PI()/180) -> 0 | T230: =Harmonischen!$C$69/100*SIN($C230*$T$191*PI()/180) -> 0 | U230: =Harmonischen!$C$70/100*SIN($C230*$U$191*PI()/180) -> 0 | V230: =Harmonischen!$C$71/100*SIN($C230*$V$191*PI()/180) -> 0 | W230: =Harmonischen!$C$72/100*SIN($C230*$W$191*PI()/180) -> 0 | X230: =Harmonischen!$C$73/100*SIN($C230*$X$191*PI()/180) -> 0 | Y230: =Harmonischen!$C$74/100*SIN($C230*$Y$191*PI()/180) -> 0 | Z230: =Harmonischen!$C$75/100*SIN($C230*$Z$191*PI()/180) -> 0 | AA230: =Harmonischen!$C$76/100*SIN($C230*$AA$191*PI()/180) -> 0 | AB230: =Harmonischen!$C$77/100*SIN($C230*$AB$191*PI()/180) -> 0 | AD230: 0.7983705669
C231: 39 | D231: =Harmonischen!$C$53/100*SIN(C231*PI()/180) -> 0.629320391 | E231: =Harmonischen!$C$54/100*SIN(C231*$E$191*PI()/180) -> 0 | F231: =Harmonischen!$C$55/100*SIN(C231*$F$191*PI()/180) -> 0.1782013048 | G231: =Harmonischen!$C$56/100*SIN(C231*$G$191*PI()/180) -> 0 | H231: =Harmonischen!$C$57/100*SIN(C231*$H$191*PI()/180) -> 0 | I231: =Harmonischen!$C$58/100*SIN(C231*$I$191*PI()/180) -> 0 | J231: =Harmonischen!$C$59/100*SIN(C231*$J$191*PI()/180) -> 0 | K231: =Harmonischen!$C$60/100*SIN(C231*$K$191*PI()/180) -> 0 | L231: =Harmonischen!$C$61/100*SIN(C231*$L$191*PI()/180) -> 0 | M231: =Harmonischen!$C$62/100*SIN(C231*$M$191*PI()/180) -> 0 | N231: =Harmonischen!$C$63/100*SIN($C231*$N$191*PI()/180) -> 0 | O231: =Harmonischen!$C$64/100*SIN($C231*$O$191*PI()/180) -> 0 | P231: =Harmonischen!$C$65/100*SIN($C231*$P$191*PI()/180) -> 0 | Q231: =Harmonischen!$C$66/100*SIN($C231*$Q$191*PI()/180) -> 0 | R231: =Harmonischen!$C$67/100*SIN($C231*$R$191*PI()/180) -> 0 | S231: =Harmonischen!$C$68/100*SIN($C231*$S$191*PI()/180) -> 0 | T231: =Harmonischen!$C$69/100*SIN($C231*$T$191*PI()/180) -> 0 | U231: =Harmonischen!$C$70/100*SIN($C231*$U$191*PI()/180) -> 0 | V231: =Harmonischen!$C$71/100*SIN($C231*$V$191*PI()/180) -> 0 | W231: =Harmonischen!$C$72/100*SIN($C231*$W$191*PI()/180) -> 0 | X231: =Harmonischen!$C$73/100*SIN($C231*$X$191*PI()/180) -> 0 | Y231: =Harmonischen!$C$74/100*SIN($C231*$Y$191*PI()/180) -> 0 | Z231: =Harmonischen!$C$75/100*SIN($C231*$Z$191*PI()/180) -> 0 | AA231: =Harmonischen!$C$76/100*SIN($C231*$AA$191*PI()/180) -> 0 | AB231: =Harmonischen!$C$77/100*SIN($C231*$AB$191*PI()/180) -> 0 | AD231: 0.8075216959
C232: 40 | D232: =Harmonischen!$C$53/100*SIN(C232*PI()/180) -> 0.6427876097 | E232: =Harmonischen!$C$54/100*SIN(C232*$E$191*PI()/180) -> 0 | F232: =Harmonischen!$C$55/100*SIN(C232*$F$191*PI()/180) -> 0.1732050808 | G232: =Harmonischen!$C$56/100*SIN(C232*$G$191*PI()/180) -> 0 | H232: =Harmonischen!$C$57/100*SIN(C232*$H$191*PI()/180) -> 0 | I232: =Harmonischen!$C$58/100*SIN(C232*$I$191*PI()/180) -> 0 | J232: =Harmonischen!$C$59/100*SIN(C232*$J$191*PI()/180) -> 0 | K232: =Harmonischen!$C$60/100*SIN(C232*$K$191*PI()/180) -> 0 | L232: =Harmonischen!$C$61/100*SIN(C232*$L$191*PI()/180) -> 0 | M232: =Harmonischen!$C$62/100*SIN(C232*$M$191*PI()/180) -> 0 | N232: =Harmonischen!$C$63/100*SIN($C232*$N$191*PI()/180) -> 0 | O232: =Harmonischen!$C$64/100*SIN($C232*$O$191*PI()/180) -> 0 | P232: =Harmonischen!$C$65/100*SIN($C232*$P$191*PI()/180) -> 0 | Q232: =Harmonischen!$C$66/100*SIN($C232*$Q$191*PI()/180) -> 0 | R232: =Harmonischen!$C$67/100*SIN($C232*$R$191*PI()/180) -> 0 | S232: =Harmonischen!$C$68/100*SIN($C232*$S$191*PI()/180) -> 0 | T232: =Harmonischen!$C$69/100*SIN($C232*$T$191*PI()/180) -> 0 | U232: =Harmonischen!$C$70/100*SIN($C232*$U$191*PI()/180) -> 0 | V232: =Harmonischen!$C$71/100*SIN($C232*$V$191*PI()/180) -> 0 | W232: =Harmonischen!$C$72/100*SIN($C232*$W$191*PI()/180) -> 0 | X232: =Harmonischen!$C$73/100*SIN($C232*$X$191*PI()/180) -> 0 | Y232: =Harmonischen!$C$74/100*SIN($C232*$Y$191*PI()/180) -> 0 | Z232: =Harmonischen!$C$75/100*SIN($C232*$Z$191*PI()/180) -> 0 | AA232: =Harmonischen!$C$76/100*SIN($C232*$AA$191*PI()/180) -> 0 | AB232: =Harmonischen!$C$77/100*SIN($C232*$AB$191*PI()/180) -> 0 | AD232: 0.8159926904
C233: 41 | D233: =Harmonischen!$C$53/100*SIN(C233*PI()/180) -> 0.656059029 | E233: =Harmonischen!$C$54/100*SIN(C233*$E$191*PI()/180) -> 0 | F233: =Harmonischen!$C$55/100*SIN(C233*$F$191*PI()/180) -> 0.1677341136 | G233: =Harmonischen!$C$56/100*SIN(C233*$G$191*PI()/180) -> 0 | H233: =Harmonischen!$C$57/100*SIN(C233*$H$191*PI()/180) -> 0 | I233: =Harmonischen!$C$58/100*SIN(C233*$I$191*PI()/180) -> 0 | J233: =Harmonischen!$C$59/100*SIN(C233*$J$191*PI()/180) -> 0 | K233: =Harmonischen!$C$60/100*SIN(C233*$K$191*PI()/180) -> 0 | L233: =Harmonischen!$C$61/100*SIN(C233*$L$191*PI()/180) -> 0 | M233: =Harmonischen!$C$62/100*SIN(C233*$M$191*PI()/180) -> 0 | N233: =Harmonischen!$C$63/100*SIN($C233*$N$191*PI()/180) -> 0 | O233: =Harmonischen!$C$64/100*SIN($C233*$O$191*PI()/180) -> 0 | P233: =Harmonischen!$C$65/100*SIN($C233*$P$191*PI()/180) -> 0 | Q233: =Harmonischen!$C$66/100*SIN($C233*$Q$191*PI()/180) -> 0 | R233: =Harmonischen!$C$67/100*SIN($C233*$R$191*PI()/180) -> 0 | S233: =Harmonischen!$C$68/100*SIN($C233*$S$191*PI()/180) -> 0 | T233: =Harmonischen!$C$69/100*SIN($C233*$T$191*PI()/180) -> 0 | U233: =Harmonischen!$C$70/100*SIN($C233*$U$191*PI()/180) -> 0 | V233: =Harmonischen!$C$71/100*SIN($C233*$V$191*PI()/180) -> 0 | W233: =Harmonischen!$C$72/100*SIN($C233*$W$191*PI()/180) -> 0 | X233: =Harmonischen!$C$73/100*SIN($C233*$X$191*PI()/180) -> 0 | Y233: =Harmonischen!$C$74/100*SIN($C233*$Y$191*PI()/180) -> 0 | Z233: =Harmonischen!$C$75/100*SIN($C233*$Z$191*PI()/180) -> 0 | AA233: =Harmonischen!$C$76/100*SIN($C233*$AA$191*PI()/180) -> 0 | AB233: =Harmonischen!$C$77/100*SIN($C233*$AB$191*PI()/180) -> 0 | AD233: 0.8237931426
C234: 42 | D234: =Harmonischen!$C$53/100*SIN(C234*PI()/180) -> 0.6691306064 | E234: =Harmonischen!$C$54/100*SIN(C234*$E$191*PI()/180) -> 0 | F234: =Harmonischen!$C$55/100*SIN(C234*$F$191*PI()/180) -> 0.1618033989 | G234: =Harmonischen!$C$56/100*SIN(C234*$G$191*PI()/180) -> 0 | H234: =Harmonischen!$C$57/100*SIN(C234*$H$191*PI()/180) -> 0 | I234: =Harmonischen!$C$58/100*SIN(C234*$I$191*PI()/180) -> 0 | J234: =Harmonischen!$C$59/100*SIN(C234*$J$191*PI()/180) -> 0 | K234: =Harmonischen!$C$60/100*SIN(C234*$K$191*PI()/180) -> 0 | L234: =Harmonischen!$C$61/100*SIN(C234*$L$191*PI()/180) -> 0 | M234: =Harmonischen!$C$62/100*SIN(C234*$M$191*PI()/180) -> 0 | N234: =Harmonischen!$C$63/100*SIN($C234*$N$191*PI()/180) -> 0 | O234: =Harmonischen!$C$64/100*SIN($C234*$O$191*PI()/180) -> 0 | P234: =Harmonischen!$C$65/100*SIN($C234*$P$191*PI()/180) -> 0 | Q234: =Harmonischen!$C$66/100*SIN($C234*$Q$191*PI()/180) -> 0 | R234: =Harmonischen!$C$67/100*SIN($C234*$R$191*PI()/180) -> 0 | S234: =Harmonischen!$C$68/100*SIN($C234*$S$191*PI()/180) -> 0 | T234: =Harmonischen!$C$69/100*SIN($C234*$T$191*PI()/180) -> 0 | U234: =Harmonischen!$C$70/100*SIN($C234*$U$191*PI()/180) -> 0 | V234: =Harmonischen!$C$71/100*SIN($C234*$V$191*PI()/180) -> 0 | W234: =Harmonischen!$C$72/100*SIN($C234*$W$191*PI()/180) -> 0 | X234: =Harmonischen!$C$73/100*SIN($C234*$X$191*PI()/180) -> 0 | Y234: =Harmonischen!$C$74/100*SIN($C234*$Y$191*PI()/180) -> 0 | Z234: =Harmonischen!$C$75/100*SIN($C234*$Z$191*PI()/180) -> 0 | AA234: =Harmonischen!$C$76/100*SIN($C234*$AA$191*PI()/180) -> 0 | AB234: =Harmonischen!$C$77/100*SIN($C234*$AB$191*PI()/180) -> 0 | AD234: 0.8309340052
C235: 43 | D235: =Harmonischen!$C$53/100*SIN(C235*PI()/180) -> 0.6819983601 | E235: =Harmonischen!$C$54/100*SIN(C235*$E$191*PI()/180) -> 0 | F235: =Harmonischen!$C$55/100*SIN(C235*$F$191*PI()/180) -> 0.1554291923 | G235: =Harmonischen!$C$56/100*SIN(C235*$G$191*PI()/180) -> 0 | H235: =Harmonischen!$C$57/100*SIN(C235*$H$191*PI()/180) -> 0 | I235: =Harmonischen!$C$58/100*SIN(C235*$I$191*PI()/180) -> 0 | J235: =Harmonischen!$C$59/100*SIN(C235*$J$191*PI()/180) -> 0 | K235: =Harmonischen!$C$60/100*SIN(C235*$K$191*PI()/180) -> 0 | L235: =Harmonischen!$C$61/100*SIN(C235*$L$191*PI()/180) -> 0 | M235: =Harmonischen!$C$62/100*SIN(C235*$M$191*PI()/180) -> 0 | N235: =Harmonischen!$C$63/100*SIN($C235*$N$191*PI()/180) -> 0 | O235: =Harmonischen!$C$64/100*SIN($C235*$O$191*PI()/180) -> 0 | P235: =Harmonischen!$C$65/100*SIN($C235*$P$191*PI()/180) -> 0 | Q235: =Harmonischen!$C$66/100*SIN($C235*$Q$191*PI()/180) -> 0 | R235: =Harmonischen!$C$67/100*SIN($C235*$R$191*PI()/180) -> 0 | S235: =Harmonischen!$C$68/100*SIN($C235*$S$191*PI()/180) -> 0 | T235: =Harmonischen!$C$69/100*SIN($C235*$T$191*PI()/180) -> 0 | U235: =Harmonischen!$C$70/100*SIN($C235*$U$191*PI()/180) -> 0 | V235: =Harmonischen!$C$71/100*SIN($C235*$V$191*PI()/180) -> 0 | W235: =Harmonischen!$C$72/100*SIN($C235*$W$191*PI()/180) -> 0 | X235: =Harmonischen!$C$73/100*SIN($C235*$X$191*PI()/180) -> 0 | Y235: =Harmonischen!$C$74/100*SIN($C235*$Y$191*PI()/180) -> 0 | Z235: =Harmonischen!$C$75/100*SIN($C235*$Z$191*PI()/180) -> 0 | AA235: =Harmonischen!$C$76/100*SIN($C235*$AA$191*PI()/180) -> 0 | AB235: =Harmonischen!$C$77/100*SIN($C235*$AB$191*PI()/180) -> 0 | AD235: 0.8374275524
C236: 44 | D236: =Harmonischen!$C$53/100*SIN(C236*PI()/180) -> 0.6946583705 | E236: =Harmonischen!$C$54/100*SIN(C236*$E$191*PI()/180) -> 0 | F236: =Harmonischen!$C$55/100*SIN(C236*$F$191*PI()/180) -> 0.1486289651 | G236: =Harmonischen!$C$56/100*SIN(C236*$G$191*PI()/180) -> 0 | H236: =Harmonischen!$C$57/100*SIN(C236*$H$191*PI()/180) -> 0 | I236: =Harmonischen!$C$58/100*SIN(C236*$I$191*PI()/180) -> 0 | J236: =Harmonischen!$C$59/100*SIN(C236*$J$191*PI()/180) -> 0 | K236: =Harmonischen!$C$60/100*SIN(C236*$K$191*PI()/180) -> 0 | L236: =Harmonischen!$C$61/100*SIN(C236*$L$191*PI()/180) -> 0 | M236: =Harmonischen!$C$62/100*SIN(C236*$M$191*PI()/180) -> 0 | N236: =Harmonischen!$C$63/100*SIN($C236*$N$191*PI()/180) -> 0 | O236: =Harmonischen!$C$64/100*SIN($C236*$O$191*PI()/180) -> 0 | P236: =Harmonischen!$C$65/100*SIN($C236*$P$191*PI()/180) -> 0 | Q236: =Harmonischen!$C$66/100*SIN($C236*$Q$191*PI()/180) -> 0 | R236: =Harmonischen!$C$67/100*SIN($C236*$R$191*PI()/180) -> 0 | S236: =Harmonischen!$C$68/100*SIN($C236*$S$191*PI()/180) -> 0 | T236: =Harmonischen!$C$69/100*SIN($C236*$T$191*PI()/180) -> 0 | U236: =Harmonischen!$C$70/100*SIN($C236*$U$191*PI()/180) -> 0 | V236: =Harmonischen!$C$71/100*SIN($C236*$V$191*PI()/180) -> 0 | W236: =Harmonischen!$C$72/100*SIN($C236*$W$191*PI()/180) -> 0 | X236: =Harmonischen!$C$73/100*SIN($C236*$X$191*PI()/180) -> 0 | Y236: =Harmonischen!$C$74/100*SIN($C236*$Y$191*PI()/180) -> 0 | Z236: =Harmonischen!$C$75/100*SIN($C236*$Z$191*PI()/180) -> 0 | AA236: =Harmonischen!$C$76/100*SIN($C236*$AA$191*PI()/180) -> 0 | AB236: =Harmonischen!$C$77/100*SIN($C236*$AB$191*PI()/180) -> 0 | AD236: 0.8432873356
C237: 45 | D237: =Harmonischen!$C$53/100*SIN(C237*PI()/180) -> 0.7071067812 | E237: =Harmonischen!$C$54/100*SIN(C237*$E$191*PI()/180) -> 0 | F237: =Harmonischen!$C$55/100*SIN(C237*$F$191*PI()/180) -> 0.1414213562 | G237: =Harmonischen!$C$56/100*SIN(C237*$G$191*PI()/180) -> 0 | H237: =Harmonischen!$C$57/100*SIN(C237*$H$191*PI()/180) -> 0 | I237: =Harmonischen!$C$58/100*SIN(C237*$I$191*PI()/180) -> 0 | J237: =Harmonischen!$C$59/100*SIN(C237*$J$191*PI()/180) -> 0 | K237: =Harmonischen!$C$60/100*SIN(C237*$K$191*PI()/180) -> 0 | L237: =Harmonischen!$C$61/100*SIN(C237*$L$191*PI()/180) -> 0 | M237: =Harmonischen!$C$62/100*SIN(C237*$M$191*PI()/180) -> 0 | N237: =Harmonischen!$C$63/100*SIN($C237*$N$191*PI()/180) -> 0 | O237: =Harmonischen!$C$64/100*SIN($C237*$O$191*PI()/180) -> 0 | P237: =Harmonischen!$C$65/100*SIN($C237*$P$191*PI()/180) -> 0 | Q237: =Harmonischen!$C$66/100*SIN($C237*$Q$191*PI()/180) -> 0 | R237: =Harmonischen!$C$67/100*SIN($C237*$R$191*PI()/180) -> 0 | S237: =Harmonischen!$C$68/100*SIN($C237*$S$191*PI()/180) -> 0 | T237: =Harmonischen!$C$69/100*SIN($C237*$T$191*PI()/180) -> 0 | U237: =Harmonischen!$C$70/100*SIN($C237*$U$191*PI()/180) -> 0 | V237: =Harmonischen!$C$71/100*SIN($C237*$V$191*PI()/180) -> 0 | W237: =Harmonischen!$C$72/100*SIN($C237*$W$191*PI()/180) -> 0 | X237: =Harmonischen!$C$73/100*SIN($C237*$X$191*PI()/180) -> 0 | Y237: =Harmonischen!$C$74/100*SIN($C237*$Y$191*PI()/180) -> 0 | Z237: =Harmonischen!$C$75/100*SIN($C237*$Z$191*PI()/180) -> 0 | AA237: =Harmonischen!$C$76/100*SIN($C237*$AA$191*PI()/180) -> 0 | AB237: =Harmonischen!$C$77/100*SIN($C237*$AB$191*PI()/180) -> 0 | AD237: 0.8485281374
C238: 46 | D238: =Harmonischen!$C$53/100*SIN(C238*PI()/180) -> 0.7193398003 | E238: =Harmonischen!$C$54/100*SIN(C238*$E$191*PI()/180) -> 0 | F238: =Harmonischen!$C$55/100*SIN(C238*$F$191*PI()/180) -> 0.1338261213 | G238: =Harmonischen!$C$56/100*SIN(C238*$G$191*PI()/180) -> 0 | H238: =Harmonischen!$C$57/100*SIN(C238*$H$191*PI()/180) -> 0 | I238: =Harmonischen!$C$58/100*SIN(C238*$I$191*PI()/180) -> 0 | J238: =Harmonischen!$C$59/100*SIN(C238*$J$191*PI()/180) -> 0 | K238: =Harmonischen!$C$60/100*SIN(C238*$K$191*PI()/180) -> 0 | L238: =Harmonischen!$C$61/100*SIN(C238*$L$191*PI()/180) -> 0 | M238: =Harmonischen!$C$62/100*SIN(C238*$M$191*PI()/180) -> 0 | N238: =Harmonischen!$C$63/100*SIN($C238*$N$191*PI()/180) -> 0 | O238: =Harmonischen!$C$64/100*SIN($C238*$O$191*PI()/180) -> 0 | P238: =Harmonischen!$C$65/100*SIN($C238*$P$191*PI()/180) -> 0 | Q238: =Harmonischen!$C$66/100*SIN($C238*$Q$191*PI()/180) -> 0 | R238: =Harmonischen!$C$67/100*SIN($C238*$R$191*PI()/180) -> 0 | S238: =Harmonischen!$C$68/100*SIN($C238*$S$191*PI()/180) -> 0 | T238: =Harmonischen!$C$69/100*SIN($C238*$T$191*PI()/180) -> 0 | U238: =Harmonischen!$C$70/100*SIN($C238*$U$191*PI()/180) -> 0 | V238: =Harmonischen!$C$71/100*SIN($C238*$V$191*PI()/180) -> 0 | W238: =Harmonischen!$C$72/100*SIN($C238*$W$191*PI()/180) -> 0 | X238: =Harmonischen!$C$73/100*SIN($C238*$X$191*PI()/180) -> 0 | Y238: =Harmonischen!$C$74/100*SIN($C238*$Y$191*PI()/180) -> 0 | Z238: =Harmonischen!$C$75/100*SIN($C238*$Z$191*PI()/180) -> 0 | AA238: =Harmonischen!$C$76/100*SIN($C238*$AA$191*PI()/180) -> 0 | AB238: =Harmonischen!$C$77/100*SIN($C238*$AB$191*PI()/180) -> 0 | AD238: 0.8531659216
C239: 47 | D239: =Harmonischen!$C$53/100*SIN(C239*PI()/180) -> 0.7313537016 | E239: =Harmonischen!$C$54/100*SIN(C239*$E$191*PI()/180) -> 0 | F239: =Harmonischen!$C$55/100*SIN(C239*$F$191*PI()/180) -> 0.1258640782 | G239: =Harmonischen!$C$56/100*SIN(C239*$G$191*PI()/180) -> 0 | H239: =Harmonischen!$C$57/100*SIN(C239*$H$191*PI()/180) -> 0 | I239: =Harmonischen!$C$58/100*SIN(C239*$I$191*PI()/180) -> 0 | J239: =Harmonischen!$C$59/100*SIN(C239*$J$191*PI()/180) -> 0 | K239: =Harmonischen!$C$60/100*SIN(C239*$K$191*PI()/180) -> 0 | L239: =Harmonischen!$C$61/100*SIN(C239*$L$191*PI()/180) -> 0 | M239: =Harmonischen!$C$62/100*SIN(C239*$M$191*PI()/180) -> 0 | N239: =Harmonischen!$C$63/100*SIN($C239*$N$191*PI()/180) -> 0 | O239: =Harmonischen!$C$64/100*SIN($C239*$O$191*PI()/180) -> 0 | P239: =Harmonischen!$C$65/100*SIN($C239*$P$191*PI()/180) -> 0 | Q239: =Harmonischen!$C$66/100*SIN($C239*$Q$191*PI()/180) -> 0 | R239: =Harmonischen!$C$67/100*SIN($C239*$R$191*PI()/180) -> 0 | S239: =Harmonischen!$C$68/100*SIN($C239*$S$191*PI()/180) -> 0 | T239: =Harmonischen!$C$69/100*SIN($C239*$T$191*PI()/180) -> 0 | U239: =Harmonischen!$C$70/100*SIN($C239*$U$191*PI()/180) -> 0 | V239: =Harmonischen!$C$71/100*SIN($C239*$V$191*PI()/180) -> 0 | W239: =Harmonischen!$C$72/100*SIN($C239*$W$191*PI()/180) -> 0 | X239: =Harmonischen!$C$73/100*SIN($C239*$X$191*PI()/180) -> 0 | Y239: =Harmonischen!$C$74/100*SIN($C239*$Y$191*PI()/180) -> 0 | Z239: =Harmonischen!$C$75/100*SIN($C239*$Z$191*PI()/180) -> 0 | AA239: =Harmonischen!$C$76/100*SIN($C239*$AA$191*PI()/180) -> 0 | AB239: =Harmonischen!$C$77/100*SIN($C239*$AB$191*PI()/180) -> 0 | AD239: 0.8572177798
C240: 48 | D240: =Harmonischen!$C$53/100*SIN(C240*PI()/180) -> 0.7431448255 | E240: =Harmonischen!$C$54/100*SIN(C240*$E$191*PI()/180) -> 0 | F240: =Harmonischen!$C$55/100*SIN(C240*$F$191*PI()/180) -> 0.1175570505 | G240: =Harmonischen!$C$56/100*SIN(C240*$G$191*PI()/180) -> 0 | H240: =Harmonischen!$C$57/100*SIN(C240*$H$191*PI()/180) -> 0 | I240: =Harmonischen!$C$58/100*SIN(C240*$I$191*PI()/180) -> 0 | J240: =Harmonischen!$C$59/100*SIN(C240*$J$191*PI()/180) -> 0 | K240: =Harmonischen!$C$60/100*SIN(C240*$K$191*PI()/180) -> 0 | L240: =Harmonischen!$C$61/100*SIN(C240*$L$191*PI()/180) -> 0 | M240: =Harmonischen!$C$62/100*SIN(C240*$M$191*PI()/180) -> 0 | N240: =Harmonischen!$C$63/100*SIN($C240*$N$191*PI()/180) -> 0 | O240: =Harmonischen!$C$64/100*SIN($C240*$O$191*PI()/180) -> 0 | P240: =Harmonischen!$C$65/100*SIN($C240*$P$191*PI()/180) -> 0 | Q240: =Harmonischen!$C$66/100*SIN($C240*$Q$191*PI()/180) -> 0 | R240: =Harmonischen!$C$67/100*SIN($C240*$R$191*PI()/180) -> 0 | S240: =Harmonischen!$C$68/100*SIN($C240*$S$191*PI()/180) -> 0 | T240: =Harmonischen!$C$69/100*SIN($C240*$T$191*PI()/180) -> 0 | U240: =Harmonischen!$C$70/100*SIN($C240*$U$191*PI()/180) -> 0 | V240: =Harmonischen!$C$71/100*SIN($C240*$V$191*PI()/180) -> 0 | W240: =Harmonischen!$C$72/100*SIN($C240*$W$191*PI()/180) -> 0 | X240: =Harmonischen!$C$73/100*SIN($C240*$X$191*PI()/180) -> 0 | Y240: =Harmonischen!$C$74/100*SIN($C240*$Y$191*PI()/180) -> 0 | Z240: =Harmonischen!$C$75/100*SIN($C240*$Z$191*PI()/180) -> 0 | AA240: =Harmonischen!$C$76/100*SIN($C240*$AA$191*PI()/180) -> 0 | AB240: =Harmonischen!$C$77/100*SIN($C240*$AB$191*PI()/180) -> 0 | AD240: 0.8607018759
C241: 49 | D241: =Harmonischen!$C$53/100*SIN(C241*PI()/180) -> 0.7547095802 | E241: =Harmonischen!$C$54/100*SIN(C241*$E$191*PI()/180) -> 0 | F241: =Harmonischen!$C$55/100*SIN(C241*$F$191*PI()/180) -> 0.108927807 | G241: =Harmonischen!$C$56/100*SIN(C241*$G$191*PI()/180) -> 0 | H241: =Harmonischen!$C$57/100*SIN(C241*$H$191*PI()/180) -> 0 | I241: =Harmonischen!$C$58/100*SIN(C241*$I$191*PI()/180) -> 0 | J241: =Harmonischen!$C$59/100*SIN(C241*$J$191*PI()/180) -> 0 | K241: =Harmonischen!$C$60/100*SIN(C241*$K$191*PI()/180) -> 0 | L241: =Harmonischen!$C$61/100*SIN(C241*$L$191*PI()/180) -> 0 | M241: =Harmonischen!$C$62/100*SIN(C241*$M$191*PI()/180) -> 0 | N241: =Harmonischen!$C$63/100*SIN($C241*$N$191*PI()/180) -> 0 | O241: =Harmonischen!$C$64/100*SIN($C241*$O$191*PI()/180) -> 0 | P241: =Harmonischen!$C$65/100*SIN($C241*$P$191*PI()/180) -> 0 | Q241: =Harmonischen!$C$66/100*SIN($C241*$Q$191*PI()/180) -> 0 | R241: =Harmonischen!$C$67/100*SIN($C241*$R$191*PI()/180) -> 0 | S241: =Harmonischen!$C$68/100*SIN($C241*$S$191*PI()/180) -> 0 | T241: =Harmonischen!$C$69/100*SIN($C241*$T$191*PI()/180) -> 0 | U241: =Harmonischen!$C$70/100*SIN($C241*$U$191*PI()/180) -> 0 | V241: =Harmonischen!$C$71/100*SIN($C241*$V$191*PI()/180) -> 0 | W241: =Harmonischen!$C$72/100*SIN($C241*$W$191*PI()/180) -> 0 | X241: =Harmonischen!$C$73/100*SIN($C241*$X$191*PI()/180) -> 0 | Y241: =Harmonischen!$C$74/100*SIN($C241*$Y$191*PI()/180) -> 0 | Z241: =Harmonischen!$C$75/100*SIN($C241*$Z$191*PI()/180) -> 0 | AA241: =Harmonischen!$C$76/100*SIN($C241*$AA$191*PI()/180) -> 0 | AB241: =Harmonischen!$C$77/100*SIN($C241*$AB$191*PI()/180) -> 0 | AD241: 0.8636373872
C242: 50 | D242: =Harmonischen!$C$53/100*SIN(C242*PI()/180) -> 0.7660444431 | E242: =Harmonischen!$C$54/100*SIN(C242*$E$191*PI()/180) -> 0 | F242: =Harmonischen!$C$55/100*SIN(C242*$F$191*PI()/180) -> 0.1 | G242: =Harmonischen!$C$56/100*SIN(C242*$G$191*PI()/180) -> 0 | H242: =Harmonischen!$C$57/100*SIN(C242*$H$191*PI()/180) -> 0 | I242: =Harmonischen!$C$58/100*SIN(C242*$I$191*PI()/180) -> 0 | J242: =Harmonischen!$C$59/100*SIN(C242*$J$191*PI()/180) -> 0 | K242: =Harmonischen!$C$60/100*SIN(C242*$K$191*PI()/180) -> 0 | L242: =Harmonischen!$C$61/100*SIN(C242*$L$191*PI()/180) -> 0 | M242: =Harmonischen!$C$62/100*SIN(C242*$M$191*PI()/180) -> 0 | N242: =Harmonischen!$C$63/100*SIN($C242*$N$191*PI()/180) -> 0 | O242: =Harmonischen!$C$64/100*SIN($C242*$O$191*PI()/180) -> 0 | P242: =Harmonischen!$C$65/100*SIN($C242*$P$191*PI()/180) -> 0 | Q242: =Harmonischen!$C$66/100*SIN($C242*$Q$191*PI()/180) -> 0 | R242: =Harmonischen!$C$67/100*SIN($C242*$R$191*PI()/180) -> 0 | S242: =Harmonischen!$C$68/100*SIN($C242*$S$191*PI()/180) -> 0 | T242: =Harmonischen!$C$69/100*SIN($C242*$T$191*PI()/180) -> 0 | U242: =Harmonischen!$C$70/100*SIN($C242*$U$191*PI()/180) -> 0 | V242: =Harmonischen!$C$71/100*SIN($C242*$V$191*PI()/180) -> 0 | W242: =Harmonischen!$C$72/100*SIN($C242*$W$191*PI()/180) -> 0 | X242: =Harmonischen!$C$73/100*SIN($C242*$X$191*PI()/180) -> 0 | Y242: =Harmonischen!$C$74/100*SIN($C242*$Y$191*PI()/180) -> 0 | Z242: =Harmonischen!$C$75/100*SIN($C242*$Z$191*PI()/180) -> 0 | AA242: =Harmonischen!$C$76/100*SIN($C242*$AA$191*PI()/180) -> 0 | AB242: =Harmonischen!$C$77/100*SIN($C242*$AB$191*PI()/180) -> 0 | AD242: 0.8660444431
C243: 51 | D243: =Harmonischen!$C$53/100*SIN(C243*PI()/180) -> 0.7771459615 | E243: =Harmonischen!$C$54/100*SIN(C243*$E$191*PI()/180) -> 0 | F243: =Harmonischen!$C$55/100*SIN(C243*$F$191*PI()/180) -> 0.09079809995 | G243: =Harmonischen!$C$56/100*SIN(C243*$G$191*PI()/180) -> 0 | H243: =Harmonischen!$C$57/100*SIN(C243*$H$191*PI()/180) -> 0 | I243: =Harmonischen!$C$58/100*SIN(C243*$I$191*PI()/180) -> 0 | J243: =Harmonischen!$C$59/100*SIN(C243*$J$191*PI()/180) -> 0 | K243: =Harmonischen!$C$60/100*SIN(C243*$K$191*PI()/180) -> 0 | L243: =Harmonischen!$C$61/100*SIN(C243*$L$191*PI()/180) -> 0 | M243: =Harmonischen!$C$62/100*SIN(C243*$M$191*PI()/180) -> 0 | N243: =Harmonischen!$C$63/100*SIN($C243*$N$191*PI()/180) -> 0 | O243: =Harmonischen!$C$64/100*SIN($C243*$O$191*PI()/180) -> 0 | P243: =Harmonischen!$C$65/100*SIN($C243*$P$191*PI()/180) -> 0 | Q243: =Harmonischen!$C$66/100*SIN($C243*$Q$191*PI()/180) -> 0 | R243: =Harmonischen!$C$67/100*SIN($C243*$R$191*PI()/180) -> 0 | S243: =Harmonischen!$C$68/100*SIN($C243*$S$191*PI()/180) -> 0 | T243: =Harmonischen!$C$69/100*SIN($C243*$T$191*PI()/180) -> 0 | U243: =Harmonischen!$C$70/100*SIN($C243*$U$191*PI()/180) -> 0 | V243: =Harmonischen!$C$71/100*SIN($C243*$V$191*PI()/180) -> 0 | W243: =Harmonischen!$C$72/100*SIN($C243*$W$191*PI()/180) -> 0 | X243: =Harmonischen!$C$73/100*SIN($C243*$X$191*PI()/180) -> 0 | Y243: =Harmonischen!$C$74/100*SIN($C243*$Y$191*PI()/180) -> 0 | Z243: =Harmonischen!$C$75/100*SIN($C243*$Z$191*PI()/180) -> 0 | AA243: =Harmonischen!$C$76/100*SIN($C243*$AA$191*PI()/180) -> 0 | AB243: =Harmonischen!$C$77/100*SIN($C243*$AB$191*PI()/180) -> 0 | AD243: 0.8679440614
C244: 52 | D244: =Harmonischen!$C$53/100*SIN(C244*PI()/180) -> 0.7880107536 | E244: =Harmonischen!$C$54/100*SIN(C244*$E$191*PI()/180) -> 0 | F244: =Harmonischen!$C$55/100*SIN(C244*$F$191*PI()/180) -> 0.08134732862 | G244: =Harmonischen!$C$56/100*SIN(C244*$G$191*PI()/180) -> 0 | H244: =Harmonischen!$C$57/100*SIN(C244*$H$191*PI()/180) -> 0 | I244: =Harmonischen!$C$58/100*SIN(C244*$I$191*PI()/180) -> 0 | J244: =Harmonischen!$C$59/100*SIN(C244*$J$191*PI()/180) -> 0 | K244: =Harmonischen!$C$60/100*SIN(C244*$K$191*PI()/180) -> 0 | L244: =Harmonischen!$C$61/100*SIN(C244*$L$191*PI()/180) -> 0 | M244: =Harmonischen!$C$62/100*SIN(C244*$M$191*PI()/180) -> 0 | N244: =Harmonischen!$C$63/100*SIN($C244*$N$191*PI()/180) -> 0 | O244: =Harmonischen!$C$64/100*SIN($C244*$O$191*PI()/180) -> 0 | P244: =Harmonischen!$C$65/100*SIN($C244*$P$191*PI()/180) -> 0 | Q244: =Harmonischen!$C$66/100*SIN($C244*$Q$191*PI()/180) -> 0 | R244: =Harmonischen!$C$67/100*SIN($C244*$R$191*PI()/180) -> 0 | S244: =Harmonischen!$C$68/100*SIN($C244*$S$191*PI()/180) -> 0 | T244: =Harmonischen!$C$69/100*SIN($C244*$T$191*PI()/180) -> 0 | U244: =Harmonischen!$C$70/100*SIN($C244*$U$191*PI()/180) -> 0 | V244: =Harmonischen!$C$71/100*SIN($C244*$V$191*PI()/180) -> 0 | W244: =Harmonischen!$C$72/100*SIN($C244*$W$191*PI()/180) -> 0 | X244: =Harmonischen!$C$73/100*SIN($C244*$X$191*PI()/180) -> 0 | Y244: =Harmonischen!$C$74/100*SIN($C244*$Y$191*PI()/180) -> 0 | Z244: =Harmonischen!$C$75/100*SIN($C244*$Z$191*PI()/180) -> 0 | AA244: =Harmonischen!$C$76/100*SIN($C244*$AA$191*PI()/180) -> 0 | AB244: =Harmonischen!$C$77/100*SIN($C244*$AB$191*PI()/180) -> 0 | AD244: 0.8693580822
C245: 53 | D245: =Harmonischen!$C$53/100*SIN(C245*PI()/180) -> 0.79863551 | E245: =Harmonischen!$C$54/100*SIN(C245*$E$191*PI()/180) -> 0 | F245: =Harmonischen!$C$55/100*SIN(C245*$F$191*PI()/180) -> 0.07167358991 | G245: =Harmonischen!$C$56/100*SIN(C245*$G$191*PI()/180) -> 0 | H245: =Harmonischen!$C$57/100*SIN(C245*$H$191*PI()/180) -> 0 | I245: =Harmonischen!$C$58/100*SIN(C245*$I$191*PI()/180) -> 0 | J245: =Harmonischen!$C$59/100*SIN(C245*$J$191*PI()/180) -> 0 | K245: =Harmonischen!$C$60/100*SIN(C245*$K$191*PI()/180) -> 0 | L245: =Harmonischen!$C$61/100*SIN(C245*$L$191*PI()/180) -> 0 | M245: =Harmonischen!$C$62/100*SIN(C245*$M$191*PI()/180) -> 0 | N245: =Harmonischen!$C$63/100*SIN($C245*$N$191*PI()/180) -> 0 | O245: =Harmonischen!$C$64/100*SIN($C245*$O$191*PI()/180) -> 0 | P245: =Harmonischen!$C$65/100*SIN($C245*$P$191*PI()/180) -> 0 | Q245: =Harmonischen!$C$66/100*SIN($C245*$Q$191*PI()/180) -> 0 | R245: =Harmonischen!$C$67/100*SIN($C245*$R$191*PI()/180) -> 0 | S245: =Harmonischen!$C$68/100*SIN($C245*$S$191*PI()/180) -> 0 | T245: =Harmonischen!$C$69/100*SIN($C245*$T$191*PI()/180) -> 0 | U245: =Harmonischen!$C$70/100*SIN($C245*$U$191*PI()/180) -> 0 | V245: =Harmonischen!$C$71/100*SIN($C245*$V$191*PI()/180) -> 0 | W245: =Harmonischen!$C$72/100*SIN($C245*$W$191*PI()/180) -> 0 | X245: =Harmonischen!$C$73/100*SIN($C245*$X$191*PI()/180) -> 0 | Y245: =Harmonischen!$C$74/100*SIN($C245*$Y$191*PI()/180) -> 0 | Z245: =Harmonischen!$C$75/100*SIN($C245*$Z$191*PI()/180) -> 0 | AA245: =Harmonischen!$C$76/100*SIN($C245*$AA$191*PI()/180) -> 0 | AB245: =Harmonischen!$C$77/100*SIN($C245*$AB$191*PI()/180) -> 0 | AD245: 0.8703091
C246: 54 | D246: =Harmonischen!$C$53/100*SIN(C246*PI()/180) -> 0.8090169944 | E246: =Harmonischen!$C$54/100*SIN(C246*$E$191*PI()/180) -> 0 | F246: =Harmonischen!$C$55/100*SIN(C246*$F$191*PI()/180) -> 0.06180339887 | G246: =Harmonischen!$C$56/100*SIN(C246*$G$191*PI()/180) -> 0 | H246: =Harmonischen!$C$57/100*SIN(C246*$H$191*PI()/180) -> 0 | I246: =Harmonischen!$C$58/100*SIN(C246*$I$191*PI()/180) -> 0 | J246: =Harmonischen!$C$59/100*SIN(C246*$J$191*PI()/180) -> 0 | K246: =Harmonischen!$C$60/100*SIN(C246*$K$191*PI()/180) -> 0 | L246: =Harmonischen!$C$61/100*SIN(C246*$L$191*PI()/180) -> 0 | M246: =Harmonischen!$C$62/100*SIN(C246*$M$191*PI()/180) -> 0 | N246: =Harmonischen!$C$63/100*SIN($C246*$N$191*PI()/180) -> 0 | O246: =Harmonischen!$C$64/100*SIN($C246*$O$191*PI()/180) -> 0 | P246: =Harmonischen!$C$65/100*SIN($C246*$P$191*PI()/180) -> 0 | Q246: =Harmonischen!$C$66/100*SIN($C246*$Q$191*PI()/180) -> 0 | R246: =Harmonischen!$C$67/100*SIN($C246*$R$191*PI()/180) -> 0 | S246: =Harmonischen!$C$68/100*SIN($C246*$S$191*PI()/180) -> 0 | T246: =Harmonischen!$C$69/100*SIN($C246*$T$191*PI()/180) -> 0 | U246: =Harmonischen!$C$70/100*SIN($C246*$U$191*PI()/180) -> 0 | V246: =Harmonischen!$C$71/100*SIN($C246*$V$191*PI()/180) -> 0 | W246: =Harmonischen!$C$72/100*SIN($C246*$W$191*PI()/180) -> 0 | X246: =Harmonischen!$C$73/100*SIN($C246*$X$191*PI()/180) -> 0 | Y246: =Harmonischen!$C$74/100*SIN($C246*$Y$191*PI()/180) -> 0 | Z246: =Harmonischen!$C$75/100*SIN($C246*$Z$191*PI()/180) -> 0 | AA246: =Harmonischen!$C$76/100*SIN($C246*$AA$191*PI()/180) -> 0 | AB246: =Harmonischen!$C$77/100*SIN($C246*$AB$191*PI()/180) -> 0 | AD246: 0.8708203932
C247: 55 | D247: =Harmonischen!$C$53/100*SIN(C247*PI()/180) -> 0.8191520443 | E247: =Harmonischen!$C$54/100*SIN(C247*$E$191*PI()/180) -> 0 | F247: =Harmonischen!$C$55/100*SIN(C247*$F$191*PI()/180) -> 0.05176380902 | G247: =Harmonischen!$C$56/100*SIN(C247*$G$191*PI()/180) -> 0 | H247: =Harmonischen!$C$57/100*SIN(C247*$H$191*PI()/180) -> 0 | I247: =Harmonischen!$C$58/100*SIN(C247*$I$191*PI()/180) -> 0 | J247: =Harmonischen!$C$59/100*SIN(C247*$J$191*PI()/180) -> 0 | K247: =Harmonischen!$C$60/100*SIN(C247*$K$191*PI()/180) -> 0 | L247: =Harmonischen!$C$61/100*SIN(C247*$L$191*PI()/180) -> 0 | M247: =Harmonischen!$C$62/100*SIN(C247*$M$191*PI()/180) -> 0 | N247: =Harmonischen!$C$63/100*SIN($C247*$N$191*PI()/180) -> 0 | O247: =Harmonischen!$C$64/100*SIN($C247*$O$191*PI()/180) -> 0 | P247: =Harmonischen!$C$65/100*SIN($C247*$P$191*PI()/180) -> 0 | Q247: =Harmonischen!$C$66/100*SIN($C247*$Q$191*PI()/180) -> 0 | R247: =Harmonischen!$C$67/100*SIN($C247*$R$191*PI()/180) -> 0 | S247: =Harmonischen!$C$68/100*SIN($C247*$S$191*PI()/180) -> 0 | T247: =Harmonischen!$C$69/100*SIN($C247*$T$191*PI()/180) -> 0 | U247: =Harmonischen!$C$70/100*SIN($C247*$U$191*PI()/180) -> 0 | V247: =Harmonischen!$C$71/100*SIN($C247*$V$191*PI()/180) -> 0 | W247: =Harmonischen!$C$72/100*SIN($C247*$W$191*PI()/180) -> 0 | X247: =Harmonischen!$C$73/100*SIN($C247*$X$191*PI()/180) -> 0 | Y247: =Harmonischen!$C$74/100*SIN($C247*$Y$191*PI()/180) -> 0 | Z247: =Harmonischen!$C$75/100*SIN($C247*$Z$191*PI()/180) -> 0 | AA247: =Harmonischen!$C$76/100*SIN($C247*$AA$191*PI()/180) -> 0 | AB247: =Harmonischen!$C$77/100*SIN($C247*$AB$191*PI()/180) -> 0 | AD247: 0.8709158533
C248: 56 | D248: =Harmonischen!$C$53/100*SIN(C248*PI()/180) -> 0.8290375726 | E248: =Harmonischen!$C$54/100*SIN(C248*$E$191*PI()/180) -> 0 | F248: =Harmonischen!$C$55/100*SIN(C248*$F$191*PI()/180) -> 0.04158233816 | G248: =Harmonischen!$C$56/100*SIN(C248*$G$191*PI()/180) -> 0 | H248: =Harmonischen!$C$57/100*SIN(C248*$H$191*PI()/180) -> 0 | I248: =Harmonischen!$C$58/100*SIN(C248*$I$191*PI()/180) -> 0 | J248: =Harmonischen!$C$59/100*SIN(C248*$J$191*PI()/180) -> 0 | K248: =Harmonischen!$C$60/100*SIN(C248*$K$191*PI()/180) -> 0 | L248: =Harmonischen!$C$61/100*SIN(C248*$L$191*PI()/180) -> 0 | M248: =Harmonischen!$C$62/100*SIN(C248*$M$191*PI()/180) -> 0 | N248: =Harmonischen!$C$63/100*SIN($C248*$N$191*PI()/180) -> 0 | O248: =Harmonischen!$C$64/100*SIN($C248*$O$191*PI()/180) -> 0 | P248: =Harmonischen!$C$65/100*SIN($C248*$P$191*PI()/180) -> 0 | Q248: =Harmonischen!$C$66/100*SIN($C248*$Q$191*PI()/180) -> 0 | R248: =Harmonischen!$C$67/100*SIN($C248*$R$191*PI()/180) -> 0 | S248: =Harmonischen!$C$68/100*SIN($C248*$S$191*PI()/180) -> 0 | T248: =Harmonischen!$C$69/100*SIN($C248*$T$191*PI()/180) -> 0 | U248: =Harmonischen!$C$70/100*SIN($C248*$U$191*PI()/180) -> 0 | V248: =Harmonischen!$C$71/100*SIN($C248*$V$191*PI()/180) -> 0 | W248: =Harmonischen!$C$72/100*SIN($C248*$W$191*PI()/180) -> 0 | X248: =Harmonischen!$C$73/100*SIN($C248*$X$191*PI()/180) -> 0 | Y248: =Harmonischen!$C$74/100*SIN($C248*$Y$191*PI()/180) -> 0 | Z248: =Harmonischen!$C$75/100*SIN($C248*$Z$191*PI()/180) -> 0 | AA248: =Harmonischen!$C$76/100*SIN($C248*$AA$191*PI()/180) -> 0 | AB248: =Harmonischen!$C$77/100*SIN($C248*$AB$191*PI()/180) -> 0 | AD248: 0.8706199107
C249: 57 | D249: =Harmonischen!$C$53/100*SIN(C249*PI()/180) -> 0.8386705679 | E249: =Harmonischen!$C$54/100*SIN(C249*$E$191*PI()/180) -> 0 | F249: =Harmonischen!$C$55/100*SIN(C249*$F$191*PI()/180) -> 0.03128689301 | G249: =Harmonischen!$C$56/100*SIN(C249*$G$191*PI()/180) -> 0 | H249: =Harmonischen!$C$57/100*SIN(C249*$H$191*PI()/180) -> 0 | I249: =Harmonischen!$C$58/100*SIN(C249*$I$191*PI()/180) -> 0 | J249: =Harmonischen!$C$59/100*SIN(C249*$J$191*PI()/180) -> 0 | K249: =Harmonischen!$C$60/100*SIN(C249*$K$191*PI()/180) -> 0 | L249: =Harmonischen!$C$61/100*SIN(C249*$L$191*PI()/180) -> 0 | M249: =Harmonischen!$C$62/100*SIN(C249*$M$191*PI()/180) -> 0 | N249: =Harmonischen!$C$63/100*SIN($C249*$N$191*PI()/180) -> 0 | O249: =Harmonischen!$C$64/100*SIN($C249*$O$191*PI()/180) -> 0 | P249: =Harmonischen!$C$65/100*SIN($C249*$P$191*PI()/180) -> 0 | Q249: =Harmonischen!$C$66/100*SIN($C249*$Q$191*PI()/180) -> 0 | R249: =Harmonischen!$C$67/100*SIN($C249*$R$191*PI()/180) -> 0 | S249: =Harmonischen!$C$68/100*SIN($C249*$S$191*PI()/180) -> 0 | T249: =Harmonischen!$C$69/100*SIN($C249*$T$191*PI()/180) -> 0 | U249: =Harmonischen!$C$70/100*SIN($C249*$U$191*PI()/180) -> 0 | V249: =Harmonischen!$C$71/100*SIN($C249*$V$191*PI()/180) -> 0 | W249: =Harmonischen!$C$72/100*SIN($C249*$W$191*PI()/180) -> 0 | X249: =Harmonischen!$C$73/100*SIN($C249*$X$191*PI()/180) -> 0 | Y249: =Harmonischen!$C$74/100*SIN($C249*$Y$191*PI()/180) -> 0 | Z249: =Harmonischen!$C$75/100*SIN($C249*$Z$191*PI()/180) -> 0 | AA249: =Harmonischen!$C$76/100*SIN($C249*$AA$191*PI()/180) -> 0 | AB249: =Harmonischen!$C$77/100*SIN($C249*$AB$191*PI()/180) -> 0 | AD249: 0.869957461
C250: 58 | D250: =Harmonischen!$C$53/100*SIN(C250*PI()/180) -> 0.8480480962 | E250: =Harmonischen!$C$54/100*SIN(C250*$E$191*PI()/180) -> 0 | F250: =Harmonischen!$C$55/100*SIN(C250*$F$191*PI()/180) -> 0.02090569265 | G250: =Harmonischen!$C$56/100*SIN(C250*$G$191*PI()/180) -> 0 | H250: =Harmonischen!$C$57/100*SIN(C250*$H$191*PI()/180) -> 0 | I250: =Harmonischen!$C$58/100*SIN(C250*$I$191*PI()/180) -> 0 | J250: =Harmonischen!$C$59/100*SIN(C250*$J$191*PI()/180) -> 0 | K250: =Harmonischen!$C$60/100*SIN(C250*$K$191*PI()/180) -> 0 | L250: =Harmonischen!$C$61/100*SIN(C250*$L$191*PI()/180) -> 0 | M250: =Harmonischen!$C$62/100*SIN(C250*$M$191*PI()/180) -> 0 | N250: =Harmonischen!$C$63/100*SIN($C250*$N$191*PI()/180) -> 0 | O250: =Harmonischen!$C$64/100*SIN($C250*$O$191*PI()/180) -> 0 | P250: =Harmonischen!$C$65/100*SIN($C250*$P$191*PI()/180) -> 0 | Q250: =Harmonischen!$C$66/100*SIN($C250*$Q$191*PI()/180) -> 0 | R250: =Harmonischen!$C$67/100*SIN($C250*$R$191*PI()/180) -> 0 | S250: =Harmonischen!$C$68/100*SIN($C250*$S$191*PI()/180) -> 0 | T250: =Harmonischen!$C$69/100*SIN($C250*$T$191*PI()/180) -> 0 | U250: =Harmonischen!$C$70/100*SIN($C250*$U$191*PI()/180) -> 0 | V250: =Harmonischen!$C$71/100*SIN($C250*$V$191*PI()/180) -> 0 | W250: =Harmonischen!$C$72/100*SIN($C250*$W$191*PI()/180) -> 0 | X250: =Harmonischen!$C$73/100*SIN($C250*$X$191*PI()/180) -> 0 | Y250: =Harmonischen!$C$74/100*SIN($C250*$Y$191*PI()/180) -> 0 | Z250: =Harmonischen!$C$75/100*SIN($C250*$Z$191*PI()/180) -> 0 | AA250: =Harmonischen!$C$76/100*SIN($C250*$AA$191*PI()/180) -> 0 | AB250: =Harmonischen!$C$77/100*SIN($C250*$AB$191*PI()/180) -> 0 | AD250: 0.8689537888
C251: 59 | D251: =Harmonischen!$C$53/100*SIN(C251*PI()/180) -> 0.8571673007 | E251: =Harmonischen!$C$54/100*SIN(C251*$E$191*PI()/180) -> 0 | F251: =Harmonischen!$C$55/100*SIN(C251*$F$191*PI()/180) -> 0.01046719125 | G251: =Harmonischen!$C$56/100*SIN(C251*$G$191*PI()/180) -> 0 | H251: =Harmonischen!$C$57/100*SIN(C251*$H$191*PI()/180) -> 0 | I251: =Harmonischen!$C$58/100*SIN(C251*$I$191*PI()/180) -> 0 | J251: =Harmonischen!$C$59/100*SIN(C251*$J$191*PI()/180) -> 0 | K251: =Harmonischen!$C$60/100*SIN(C251*$K$191*PI()/180) -> 0 | L251: =Harmonischen!$C$61/100*SIN(C251*$L$191*PI()/180) -> 0 | M251: =Harmonischen!$C$62/100*SIN(C251*$M$191*PI()/180) -> 0 | N251: =Harmonischen!$C$63/100*SIN($C251*$N$191*PI()/180) -> 0 | O251: =Harmonischen!$C$64/100*SIN($C251*$O$191*PI()/180) -> 0 | P251: =Harmonischen!$C$65/100*SIN($C251*$P$191*PI()/180) -> 0 | Q251: =Harmonischen!$C$66/100*SIN($C251*$Q$191*PI()/180) -> 0 | R251: =Harmonischen!$C$67/100*SIN($C251*$R$191*PI()/180) -> 0 | S251: =Harmonischen!$C$68/100*SIN($C251*$S$191*PI()/180) -> 0 | T251: =Harmonischen!$C$69/100*SIN($C251*$T$191*PI()/180) -> 0 | U251: =Harmonischen!$C$70/100*SIN($C251*$U$191*PI()/180) -> 0 | V251: =Harmonischen!$C$71/100*SIN($C251*$V$191*PI()/180) -> 0 | W251: =Harmonischen!$C$72/100*SIN($C251*$W$191*PI()/180) -> 0 | X251: =Harmonischen!$C$73/100*SIN($C251*$X$191*PI()/180) -> 0 | Y251: =Harmonischen!$C$74/100*SIN($C251*$Y$191*PI()/180) -> 0 | Z251: =Harmonischen!$C$75/100*SIN($C251*$Z$191*PI()/180) -> 0 | AA251: =Harmonischen!$C$76/100*SIN($C251*$AA$191*PI()/180) -> 0 | AB251: =Harmonischen!$C$77/100*SIN($C251*$AB$191*PI()/180) -> 0 | AD251: 0.867634492
C252: 60 | D252: =Harmonischen!$C$53/100*SIN(C252*PI()/180) -> 0.8660254038 | E252: =Harmonischen!$C$54/100*SIN(C252*$E$191*PI()/180) -> 0 | F252: =Harmonischen!$C$55/100*SIN(C252*$F$191*PI()/180) -> 2.45029691e-17 | G252: =Harmonischen!$C$56/100*SIN(C252*$G$191*PI()/180) -> 0 | H252: =Harmonischen!$C$57/100*SIN(C252*$H$191*PI()/180) -> 0 | I252: =Harmonischen!$C$58/100*SIN(C252*$I$191*PI()/180) -> 0 | J252: =Harmonischen!$C$59/100*SIN(C252*$J$191*PI()/180) -> 0 | K252: =Harmonischen!$C$60/100*SIN(C252*$K$191*PI()/180) -> 0 | L252: =Harmonischen!$C$61/100*SIN(C252*$L$191*PI()/180) -> 0 | M252: =Harmonischen!$C$62/100*SIN(C252*$M$191*PI()/180) -> 0 | N252: =Harmonischen!$C$63/100*SIN($C252*$N$191*PI()/180) -> 0 | O252: =Harmonischen!$C$64/100*SIN($C252*$O$191*PI()/180) -> 0 | P252: =Harmonischen!$C$65/100*SIN($C252*$P$191*PI()/180) -> 0 | Q252: =Harmonischen!$C$66/100*SIN($C252*$Q$191*PI()/180) -> 0 | R252: =Harmonischen!$C$67/100*SIN($C252*$R$191*PI()/180) -> 0 | S252: =Harmonischen!$C$68/100*SIN($C252*$S$191*PI()/180) -> 0 | T252: =Harmonischen!$C$69/100*SIN($C252*$T$191*PI()/180) -> 0 | U252: =Harmonischen!$C$70/100*SIN($C252*$U$191*PI()/180) -> 0 | V252: =Harmonischen!$C$71/100*SIN($C252*$V$191*PI()/180) -> 0 | W252: =Harmonischen!$C$72/100*SIN($C252*$W$191*PI()/180) -> 0 | X252: =Harmonischen!$C$73/100*SIN($C252*$X$191*PI()/180) -> 0 | Y252: =Harmonischen!$C$74/100*SIN($C252*$Y$191*PI()/180) -> 0 | Z252: =Harmonischen!$C$75/100*SIN($C252*$Z$191*PI()/180) -> 0 | AA252: =Harmonischen!$C$76/100*SIN($C252*$AA$191*PI()/180) -> 0 | AB252: =Harmonischen!$C$77/100*SIN($C252*$AB$191*PI()/180) -> 0 | AD252: 0.8660254038
C253: 61 | D253: =Harmonischen!$C$53/100*SIN(C253*PI()/180) -> 0.8746197071 | E253: =Harmonischen!$C$54/100*SIN(C253*$E$191*PI()/180) -> 0 | F253: =Harmonischen!$C$55/100*SIN(C253*$F$191*PI()/180) -> -0.01046719125 | G253: =Harmonischen!$C$56/100*SIN(C253*$G$191*PI()/180) -> 0 | H253: =Harmonischen!$C$57/100*SIN(C253*$H$191*PI()/180) -> 0 | I253: =Harmonischen!$C$58/100*SIN(C253*$I$191*PI()/180) -> 0 | J253: =Harmonischen!$C$59/100*SIN(C253*$J$191*PI()/180) -> 0 | K253: =Harmonischen!$C$60/100*SIN(C253*$K$191*PI()/180) -> 0 | L253: =Harmonischen!$C$61/100*SIN(C253*$L$191*PI()/180) -> 0 | M253: =Harmonischen!$C$62/100*SIN(C253*$M$191*PI()/180) -> 0 | N253: =Harmonischen!$C$63/100*SIN($C253*$N$191*PI()/180) -> 0 | O253: =Harmonischen!$C$64/100*SIN($C253*$O$191*PI()/180) -> 0 | P253: =Harmonischen!$C$65/100*SIN($C253*$P$191*PI()/180) -> 0 | Q253: =Harmonischen!$C$66/100*SIN($C253*$Q$191*PI()/180) -> 0 | R253: =Harmonischen!$C$67/100*SIN($C253*$R$191*PI()/180) -> 0 | S253: =Harmonischen!$C$68/100*SIN($C253*$S$191*PI()/180) -> 0 | T253: =Harmonischen!$C$69/100*SIN($C253*$T$191*PI()/180) -> 0 | U253: =Harmonischen!$C$70/100*SIN($C253*$U$191*PI()/180) -> 0 | V253: =Harmonischen!$C$71/100*SIN($C253*$V$191*PI()/180) -> 0 | W253: =Harmonischen!$C$72/100*SIN($C253*$W$191*PI()/180) -> 0 | X253: =Harmonischen!$C$73/100*SIN($C253*$X$191*PI()/180) -> 0 | Y253: =Harmonischen!$C$74/100*SIN($C253*$Y$191*PI()/180) -> 0 | Z253: =Harmonischen!$C$75/100*SIN($C253*$Z$191*PI()/180) -> 0 | AA253: =Harmonischen!$C$76/100*SIN($C253*$AA$191*PI()/180) -> 0 | AB253: =Harmonischen!$C$77/100*SIN($C253*$AB$191*PI()/180) -> 0 | AD253: 0.8641525159
C254: 62 | D254: =Harmonischen!$C$53/100*SIN(C254*PI()/180) -> 0.8829475929 | E254: =Harmonischen!$C$54/100*SIN(C254*$E$191*PI()/180) -> 0 | F254: =Harmonischen!$C$55/100*SIN(C254*$F$191*PI()/180) -> -0.02090569265 | G254: =Harmonischen!$C$56/100*SIN(C254*$G$191*PI()/180) -> 0 | H254: =Harmonischen!$C$57/100*SIN(C254*$H$191*PI()/180) -> 0 | I254: =Harmonischen!$C$58/100*SIN(C254*$I$191*PI()/180) -> 0 | J254: =Harmonischen!$C$59/100*SIN(C254*$J$191*PI()/180) -> 0 | K254: =Harmonischen!$C$60/100*SIN(C254*$K$191*PI()/180) -> 0 | L254: =Harmonischen!$C$61/100*SIN(C254*$L$191*PI()/180) -> 0 | M254: =Harmonischen!$C$62/100*SIN(C254*$M$191*PI()/180) -> 0 | N254: =Harmonischen!$C$63/100*SIN($C254*$N$191*PI()/180) -> 0 | O254: =Harmonischen!$C$64/100*SIN($C254*$O$191*PI()/180) -> 0 | P254: =Harmonischen!$C$65/100*SIN($C254*$P$191*PI()/180) -> 0 | Q254: =Harmonischen!$C$66/100*SIN($C254*$Q$191*PI()/180) -> 0 | R254: =Harmonischen!$C$67/100*SIN($C254*$R$191*PI()/180) -> 0 | S254: =Harmonischen!$C$68/100*SIN($C254*$S$191*PI()/180) -> 0 | T254: =Harmonischen!$C$69/100*SIN($C254*$T$191*PI()/180) -> 0 | U254: =Harmonischen!$C$70/100*SIN($C254*$U$191*PI()/180) -> 0 | V254: =Harmonischen!$C$71/100*SIN($C254*$V$191*PI()/180) -> 0 | W254: =Harmonischen!$C$72/100*SIN($C254*$W$191*PI()/180) -> 0 | X254: =Harmonischen!$C$73/100*SIN($C254*$X$191*PI()/180) -> 0 | Y254: =Harmonischen!$C$74/100*SIN($C254*$Y$191*PI()/180) -> 0 | Z254: =Harmonischen!$C$75/100*SIN($C254*$Z$191*PI()/180) -> 0 | AA254: =Harmonischen!$C$76/100*SIN($C254*$AA$191*PI()/180) -> 0 | AB254: =Harmonischen!$C$77/100*SIN($C254*$AB$191*PI()/180) -> 0 | AD254: 0.8620419002
C255: 63 | D255: =Harmonischen!$C$53/100*SIN(C255*PI()/180) -> 0.8910065242 | E255: =Harmonischen!$C$54/100*SIN(C255*$E$191*PI()/180) -> 0 | F255: =Harmonischen!$C$55/100*SIN(C255*$F$191*PI()/180) -> -0.03128689301 | G255: =Harmonischen!$C$56/100*SIN(C255*$G$191*PI()/180) -> 0 | H255: =Harmonischen!$C$57/100*SIN(C255*$H$191*PI()/180) -> 0 | I255: =Harmonischen!$C$58/100*SIN(C255*$I$191*PI()/180) -> 0 | J255: =Harmonischen!$C$59/100*SIN(C255*$J$191*PI()/180) -> 0 | K255: =Harmonischen!$C$60/100*SIN(C255*$K$191*PI()/180) -> 0 | L255: =Harmonischen!$C$61/100*SIN(C255*$L$191*PI()/180) -> 0 | M255: =Harmonischen!$C$62/100*SIN(C255*$M$191*PI()/180) -> 0 | N255: =Harmonischen!$C$63/100*SIN($C255*$N$191*PI()/180) -> 0 | O255: =Harmonischen!$C$64/100*SIN($C255*$O$191*PI()/180) -> 0 | P255: =Harmonischen!$C$65/100*SIN($C255*$P$191*PI()/180) -> 0 | Q255: =Harmonischen!$C$66/100*SIN($C255*$Q$191*PI()/180) -> 0 | R255: =Harmonischen!$C$67/100*SIN($C255*$R$191*PI()/180) -> 0 | S255: =Harmonischen!$C$68/100*SIN($C255*$S$191*PI()/180) -> 0 | T255: =Harmonischen!$C$69/100*SIN($C255*$T$191*PI()/180) -> 0 | U255: =Harmonischen!$C$70/100*SIN($C255*$U$191*PI()/180) -> 0 | V255: =Harmonischen!$C$71/100*SIN($C255*$V$191*PI()/180) -> 0 | W255: =Harmonischen!$C$72/100*SIN($C255*$W$191*PI()/180) -> 0 | X255: =Harmonischen!$C$73/100*SIN($C255*$X$191*PI()/180) -> 0 | Y255: =Harmonischen!$C$74/100*SIN($C255*$Y$191*PI()/180) -> 0 | Z255: =Harmonischen!$C$75/100*SIN($C255*$Z$191*PI()/180) -> 0 | AA255: =Harmonischen!$C$76/100*SIN($C255*$AA$191*PI()/180) -> 0 | AB255: =Harmonischen!$C$77/100*SIN($C255*$AB$191*PI()/180) -> 0 | AD255: 0.8597196312
C256: 64 | D256: =Harmonischen!$C$53/100*SIN(C256*PI()/180) -> 0.8987940463 | E256: =Harmonischen!$C$54/100*SIN(C256*$E$191*PI()/180) -> 0 | F256: =Harmonischen!$C$55/100*SIN(C256*$F$191*PI()/180) -> -0.04158233816 | G256: =Harmonischen!$C$56/100*SIN(C256*$G$191*PI()/180) -> 0 | H256: =Harmonischen!$C$57/100*SIN(C256*$H$191*PI()/180) -> 0 | I256: =Harmonischen!$C$58/100*SIN(C256*$I$191*PI()/180) -> 0 | J256: =Harmonischen!$C$59/100*SIN(C256*$J$191*PI()/180) -> 0 | K256: =Harmonischen!$C$60/100*SIN(C256*$K$191*PI()/180) -> 0 | L256: =Harmonischen!$C$61/100*SIN(C256*$L$191*PI()/180) -> 0 | M256: =Harmonischen!$C$62/100*SIN(C256*$M$191*PI()/180) -> 0 | N256: =Harmonischen!$C$63/100*SIN($C256*$N$191*PI()/180) -> 0 | O256: =Harmonischen!$C$64/100*SIN($C256*$O$191*PI()/180) -> 0 | P256: =Harmonischen!$C$65/100*SIN($C256*$P$191*PI()/180) -> 0 | Q256: =Harmonischen!$C$66/100*SIN($C256*$Q$191*PI()/180) -> 0 | R256: =Harmonischen!$C$67/100*SIN($C256*$R$191*PI()/180) -> 0 | S256: =Harmonischen!$C$68/100*SIN($C256*$S$191*PI()/180) -> 0 | T256: =Harmonischen!$C$69/100*SIN($C256*$T$191*PI()/180) -> 0 | U256: =Harmonischen!$C$70/100*SIN($C256*$U$191*PI()/180) -> 0 | V256: =Harmonischen!$C$71/100*SIN($C256*$V$191*PI()/180) -> 0 | W256: =Harmonischen!$C$72/100*SIN($C256*$W$191*PI()/180) -> 0 | X256: =Harmonischen!$C$73/100*SIN($C256*$X$191*PI()/180) -> 0 | Y256: =Harmonischen!$C$74/100*SIN($C256*$Y$191*PI()/180) -> 0 | Z256: =Harmonischen!$C$75/100*SIN($C256*$Z$191*PI()/180) -> 0 | AA256: =Harmonischen!$C$76/100*SIN($C256*$AA$191*PI()/180) -> 0 | AB256: =Harmonischen!$C$77/100*SIN($C256*$AB$191*PI()/180) -> 0 | AD256: =SUM(D256:AB256) -> 0.8572117081
C257: 65 | D257: =Harmonischen!$C$53/100*SIN(C257*PI()/180) -> 0.906307787 | E257: =Harmonischen!$C$54/100*SIN(C257*$E$191*PI()/180) -> 0 | F257: =Harmonischen!$C$55/100*SIN(C257*$F$191*PI()/180) -> -0.05176380902 | G257: =Harmonischen!$C$56/100*SIN(C257*$G$191*PI()/180) -> 0 | H257: =Harmonischen!$C$57/100*SIN(C257*$H$191*PI()/180) -> 0 | I257: =Harmonischen!$C$58/100*SIN(C257*$I$191*PI()/180) -> 0 | J257: =Harmonischen!$C$59/100*SIN(C257*$J$191*PI()/180) -> 0 | K257: =Harmonischen!$C$60/100*SIN(C257*$K$191*PI()/180) -> 0 | L257: =Harmonischen!$C$61/100*SIN(C257*$L$191*PI()/180) -> 0 | M257: =Harmonischen!$C$62/100*SIN(C257*$M$191*PI()/180) -> 0 | N257: =Harmonischen!$C$63/100*SIN($C257*$N$191*PI()/180) -> 0 | O257: =Harmonischen!$C$64/100*SIN($C257*$O$191*PI()/180) -> 0 | P257: =Harmonischen!$C$65/100*SIN($C257*$P$191*PI()/180) -> 0 | Q257: =Harmonischen!$C$66/100*SIN($C257*$Q$191*PI()/180) -> 0 | R257: =Harmonischen!$C$67/100*SIN($C257*$R$191*PI()/180) -> 0 | S257: =Harmonischen!$C$68/100*SIN($C257*$S$191*PI()/180) -> 0 | T257: =Harmonischen!$C$69/100*SIN($C257*$T$191*PI()/180) -> 0 | U257: =Harmonischen!$C$70/100*SIN($C257*$U$191*PI()/180) -> 0 | V257: =Harmonischen!$C$71/100*SIN($C257*$V$191*PI()/180) -> 0 | W257: =Harmonischen!$C$72/100*SIN($C257*$W$191*PI()/180) -> 0 | X257: =Harmonischen!$C$73/100*SIN($C257*$X$191*PI()/180) -> 0 | Y257: =Harmonischen!$C$74/100*SIN($C257*$Y$191*PI()/180) -> 0 | Z257: =Harmonischen!$C$75/100*SIN($C257*$Z$191*PI()/180) -> 0 | AA257: =Harmonischen!$C$76/100*SIN($C257*$AA$191*PI()/180) -> 0 | AB257: =Harmonischen!$C$77/100*SIN($C257*$AB$191*PI()/180) -> 0 | AD257: 0.854543978
C258: 66 | D258: =Harmonischen!$C$53/100*SIN(C258*PI()/180) -> 0.9135454576 | E258: =Harmonischen!$C$54/100*SIN(C258*$E$191*PI()/180) -> 0 | F258: =Harmonischen!$C$55/100*SIN(C258*$F$191*PI()/180) -> -0.06180339887 | G258: =Harmonischen!$C$56/100*SIN(C258*$G$191*PI()/180) -> 0 | H258: =Harmonischen!$C$57/100*SIN(C258*$H$191*PI()/180) -> 0 | I258: =Harmonischen!$C$58/100*SIN(C258*$I$191*PI()/180) -> 0 | J258: =Harmonischen!$C$59/100*SIN(C258*$J$191*PI()/180) -> 0 | K258: =Harmonischen!$C$60/100*SIN(C258*$K$191*PI()/180) -> 0 | L258: =Harmonischen!$C$61/100*SIN(C258*$L$191*PI()/180) -> 0 | M258: =Harmonischen!$C$62/100*SIN(C258*$M$191*PI()/180) -> 0 | N258: =Harmonischen!$C$63/100*SIN($C258*$N$191*PI()/180) -> 0 | O258: =Harmonischen!$C$64/100*SIN($C258*$O$191*PI()/180) -> 0 | P258: =Harmonischen!$C$65/100*SIN($C258*$P$191*PI()/180) -> 0 | Q258: =Harmonischen!$C$66/100*SIN($C258*$Q$191*PI()/180) -> 0 | R258: =Harmonischen!$C$67/100*SIN($C258*$R$191*PI()/180) -> 0 | S258: =Harmonischen!$C$68/100*SIN($C258*$S$191*PI()/180) -> 0 | T258: =Harmonischen!$C$69/100*SIN($C258*$T$191*PI()/180) -> 0 | U258: =Harmonischen!$C$70/100*SIN($C258*$U$191*PI()/180) -> 0 | V258: =Harmonischen!$C$71/100*SIN($C258*$V$191*PI()/180) -> 0 | W258: =Harmonischen!$C$72/100*SIN($C258*$W$191*PI()/180) -> 0 | X258: =Harmonischen!$C$73/100*SIN($C258*$X$191*PI()/180) -> 0 | Y258: =Harmonischen!$C$74/100*SIN($C258*$Y$191*PI()/180) -> 0 | Z258: =Harmonischen!$C$75/100*SIN($C258*$Z$191*PI()/180) -> 0 | AA258: =Harmonischen!$C$76/100*SIN($C258*$AA$191*PI()/180) -> 0 | AB258: =Harmonischen!$C$77/100*SIN($C258*$AB$191*PI()/180) -> 0 | AD258: 0.8517420588
C259: 67 | D259: =Harmonischen!$C$53/100*SIN(C259*PI()/180) -> 0.9205048535 | E259: =Harmonischen!$C$54/100*SIN(C259*$E$191*PI()/180) -> 0 | F259: =Harmonischen!$C$55/100*SIN(C259*$F$191*PI()/180) -> -0.07167358991 | G259: =Harmonischen!$C$56/100*SIN(C259*$G$191*PI()/180) -> 0 | H259: =Harmonischen!$C$57/100*SIN(C259*$H$191*PI()/180) -> 0 | I259: =Harmonischen!$C$58/100*SIN(C259*$I$191*PI()/180) -> 0 | J259: =Harmonischen!$C$59/100*SIN(C259*$J$191*PI()/180) -> 0 | K259: =Harmonischen!$C$60/100*SIN(C259*$K$191*PI()/180) -> 0 | L259: =Harmonischen!$C$61/100*SIN(C259*$L$191*PI()/180) -> 0 | M259: =Harmonischen!$C$62/100*SIN(C259*$M$191*PI()/180) -> 0 | N259: =Harmonischen!$C$63/100*SIN($C259*$N$191*PI()/180) -> 0 | O259: =Harmonischen!$C$64/100*SIN($C259*$O$191*PI()/180) -> 0 | P259: =Harmonischen!$C$65/100*SIN($C259*$P$191*PI()/180) -> 0 | Q259: =Harmonischen!$C$66/100*SIN($C259*$Q$191*PI()/180) -> 0 | R259: =Harmonischen!$C$67/100*SIN($C259*$R$191*PI()/180) -> 0 | S259: =Harmonischen!$C$68/100*SIN($C259*$S$191*PI()/180) -> 0 | T259: =Harmonischen!$C$69/100*SIN($C259*$T$191*PI()/180) -> 0 | U259: =Harmonischen!$C$70/100*SIN($C259*$U$191*PI()/180) -> 0 | V259: =Harmonischen!$C$71/100*SIN($C259*$V$191*PI()/180) -> 0 | W259: =Harmonischen!$C$72/100*SIN($C259*$W$191*PI()/180) -> 0 | X259: =Harmonischen!$C$73/100*SIN($C259*$X$191*PI()/180) -> 0 | Y259: =Harmonischen!$C$74/100*SIN($C259*$Y$191*PI()/180) -> 0 | Z259: =Harmonischen!$C$75/100*SIN($C259*$Z$191*PI()/180) -> 0 | AA259: =Harmonischen!$C$76/100*SIN($C259*$AA$191*PI()/180) -> 0 | AB259: =Harmonischen!$C$77/100*SIN($C259*$AB$191*PI()/180) -> 0 | AD259: 0.8488312635
C260: 68 | D260: =Harmonischen!$C$53/100*SIN(C260*PI()/180) -> 0.9271838546 | E260: =Harmonischen!$C$54/100*SIN(C260*$E$191*PI()/180) -> 0 | F260: =Harmonischen!$C$55/100*SIN(C260*$F$191*PI()/180) -> -0.08134732862 | G260: =Harmonischen!$C$56/100*SIN(C260*$G$191*PI()/180) -> 0 | H260: =Harmonischen!$C$57/100*SIN(C260*$H$191*PI()/180) -> 0 | I260: =Harmonischen!$C$58/100*SIN(C260*$I$191*PI()/180) -> 0 | J260: =Harmonischen!$C$59/100*SIN(C260*$J$191*PI()/180) -> 0 | K260: =Harmonischen!$C$60/100*SIN(C260*$K$191*PI()/180) -> 0 | L260: =Harmonischen!$C$61/100*SIN(C260*$L$191*PI()/180) -> 0 | M260: =Harmonischen!$C$62/100*SIN(C260*$M$191*PI()/180) -> 0 | N260: =Harmonischen!$C$63/100*SIN($C260*$N$191*PI()/180) -> 0 | O260: =Harmonischen!$C$64/100*SIN($C260*$O$191*PI()/180) -> 0 | P260: =Harmonischen!$C$65/100*SIN($C260*$P$191*PI()/180) -> 0 | Q260: =Harmonischen!$C$66/100*SIN($C260*$Q$191*PI()/180) -> 0 | R260: =Harmonischen!$C$67/100*SIN($C260*$R$191*PI()/180) -> 0 | S260: =Harmonischen!$C$68/100*SIN($C260*$S$191*PI()/180) -> 0 | T260: =Harmonischen!$C$69/100*SIN($C260*$T$191*PI()/180) -> 0 | U260: =Harmonischen!$C$70/100*SIN($C260*$U$191*PI()/180) -> 0 | V260: =Harmonischen!$C$71/100*SIN($C260*$V$191*PI()/180) -> 0 | W260: =Harmonischen!$C$72/100*SIN($C260*$W$191*PI()/180) -> 0 | X260: =Harmonischen!$C$73/100*SIN($C260*$X$191*PI()/180) -> 0 | Y260: =Harmonischen!$C$74/100*SIN($C260*$Y$191*PI()/180) -> 0 | Z260: =Harmonischen!$C$75/100*SIN($C260*$Z$191*PI()/180) -> 0 | AA260: =Harmonischen!$C$76/100*SIN($C260*$AA$191*PI()/180) -> 0 | AB260: =Harmonischen!$C$77/100*SIN($C260*$AB$191*PI()/180) -> 0 | AD260: 0.845836526
C261: 69 | D261: =Harmonischen!$C$53/100*SIN(C261*PI()/180) -> 0.9335804265 | E261: =Harmonischen!$C$54/100*SIN(C261*$E$191*PI()/180) -> 0 | F261: =Harmonischen!$C$55/100*SIN(C261*$F$191*PI()/180) -> -0.09079809995 | G261: =Harmonischen!$C$56/100*SIN(C261*$G$191*PI()/180) -> 0 | H261: =Harmonischen!$C$57/100*SIN(C261*$H$191*PI()/180) -> 0 | I261: =Harmonischen!$C$58/100*SIN(C261*$I$191*PI()/180) -> 0 | J261: =Harmonischen!$C$59/100*SIN(C261*$J$191*PI()/180) -> 0 | K261: =Harmonischen!$C$60/100*SIN(C261*$K$191*PI()/180) -> 0 | L261: =Harmonischen!$C$61/100*SIN(C261*$L$191*PI()/180) -> 0 | M261: =Harmonischen!$C$62/100*SIN(C261*$M$191*PI()/180) -> 0 | N261: =Harmonischen!$C$63/100*SIN($C261*$N$191*PI()/180) -> 0 | O261: =Harmonischen!$C$64/100*SIN($C261*$O$191*PI()/180) -> 0 | P261: =Harmonischen!$C$65/100*SIN($C261*$P$191*PI()/180) -> 0 | Q261: =Harmonischen!$C$66/100*SIN($C261*$Q$191*PI()/180) -> 0 | R261: =Harmonischen!$C$67/100*SIN($C261*$R$191*PI()/180) -> 0 | S261: =Harmonischen!$C$68/100*SIN($C261*$S$191*PI()/180) -> 0 | T261: =Harmonischen!$C$69/100*SIN($C261*$T$191*PI()/180) -> 0 | U261: =Harmonischen!$C$70/100*SIN($C261*$U$191*PI()/180) -> 0 | V261: =Harmonischen!$C$71/100*SIN($C261*$V$191*PI()/180) -> 0 | W261: =Harmonischen!$C$72/100*SIN($C261*$W$191*PI()/180) -> 0 | X261: =Harmonischen!$C$73/100*SIN($C261*$X$191*PI()/180) -> 0 | Y261: =Harmonischen!$C$74/100*SIN($C261*$Y$191*PI()/180) -> 0 | Z261: =Harmonischen!$C$75/100*SIN($C261*$Z$191*PI()/180) -> 0 | AA261: =Harmonischen!$C$76/100*SIN($C261*$AA$191*PI()/180) -> 0 | AB261: =Harmonischen!$C$77/100*SIN($C261*$AB$191*PI()/180) -> 0 | AD261: 0.8427823265
C262: 70 | D262: =Harmonischen!$C$53/100*SIN(C262*PI()/180) -> 0.9396926208 | E262: =Harmonischen!$C$54/100*SIN(C262*$E$191*PI()/180) -> 0 | F262: =Harmonischen!$C$55/100*SIN(C262*$F$191*PI()/180) -> -0.1 | G262: =Harmonischen!$C$56/100*SIN(C262*$G$191*PI()/180) -> 0 | H262: =Harmonischen!$C$57/100*SIN(C262*$H$191*PI()/180) -> 0 | I262: =Harmonischen!$C$58/100*SIN(C262*$I$191*PI()/180) -> 0 | J262: =Harmonischen!$C$59/100*SIN(C262*$J$191*PI()/180) -> 0 | K262: =Harmonischen!$C$60/100*SIN(C262*$K$191*PI()/180) -> 0 | L262: =Harmonischen!$C$61/100*SIN(C262*$L$191*PI()/180) -> 0 | M262: =Harmonischen!$C$62/100*SIN(C262*$M$191*PI()/180) -> 0 | N262: =Harmonischen!$C$63/100*SIN($C262*$N$191*PI()/180) -> 0 | O262: =Harmonischen!$C$64/100*SIN($C262*$O$191*PI()/180) -> 0 | P262: =Harmonischen!$C$65/100*SIN($C262*$P$191*PI()/180) -> 0 | Q262: =Harmonischen!$C$66/100*SIN($C262*$Q$191*PI()/180) -> 0 | R262: =Harmonischen!$C$67/100*SIN($C262*$R$191*PI()/180) -> 0 | S262: =Harmonischen!$C$68/100*SIN($C262*$S$191*PI()/180) -> 0 | T262: =Harmonischen!$C$69/100*SIN($C262*$T$191*PI()/180) -> 0 | U262: =Harmonischen!$C$70/100*SIN($C262*$U$191*PI()/180) -> 0 | V262: =Harmonischen!$C$71/100*SIN($C262*$V$191*PI()/180) -> 0 | W262: =Harmonischen!$C$72/100*SIN($C262*$W$191*PI()/180) -> 0 | X262: =Harmonischen!$C$73/100*SIN($C262*$X$191*PI()/180) -> 0 | Y262: =Harmonischen!$C$74/100*SIN($C262*$Y$191*PI()/180) -> 0 | Z262: =Harmonischen!$C$75/100*SIN($C262*$Z$191*PI()/180) -> 0 | AA262: =Harmonischen!$C$76/100*SIN($C262*$AA$191*PI()/180) -> 0 | AB262: =Harmonischen!$C$77/100*SIN($C262*$AB$191*PI()/180) -> 0 | AD262: 0.8396926208
C263: 71 | D263: =Harmonischen!$C$53/100*SIN(C263*PI()/180) -> 0.9455185756 | E263: =Harmonischen!$C$54/100*SIN(C263*$E$191*PI()/180) -> 0 | F263: =Harmonischen!$C$55/100*SIN(C263*$F$191*PI()/180) -> -0.108927807 | G263: =Harmonischen!$C$56/100*SIN(C263*$G$191*PI()/180) -> 0 | H263: =Harmonischen!$C$57/100*SIN(C263*$H$191*PI()/180) -> 0 | I263: =Harmonischen!$C$58/100*SIN(C263*$I$191*PI()/180) -> 0 | J263: =Harmonischen!$C$59/100*SIN(C263*$J$191*PI()/180) -> 0 | K263: =Harmonischen!$C$60/100*SIN(C263*$K$191*PI()/180) -> 0 | L263: =Harmonischen!$C$61/100*SIN(C263*$L$191*PI()/180) -> 0 | M263: =Harmonischen!$C$62/100*SIN(C263*$M$191*PI()/180) -> 0 | N263: =Harmonischen!$C$63/100*SIN($C263*$N$191*PI()/180) -> 0 | O263: =Harmonischen!$C$64/100*SIN($C263*$O$191*PI()/180) -> 0 | P263: =Harmonischen!$C$65/100*SIN($C263*$P$191*PI()/180) -> 0 | Q263: =Harmonischen!$C$66/100*SIN($C263*$Q$191*PI()/180) -> 0 | R263: =Harmonischen!$C$67/100*SIN($C263*$R$191*PI()/180) -> 0 | S263: =Harmonischen!$C$68/100*SIN($C263*$S$191*PI()/180) -> 0 | T263: =Harmonischen!$C$69/100*SIN($C263*$T$191*PI()/180) -> 0 | U263: =Harmonischen!$C$70/100*SIN($C263*$U$191*PI()/180) -> 0 | V263: =Harmonischen!$C$71/100*SIN($C263*$V$191*PI()/180) -> 0 | W263: =Harmonischen!$C$72/100*SIN($C263*$W$191*PI()/180) -> 0 | X263: =Harmonischen!$C$73/100*SIN($C263*$X$191*PI()/180) -> 0 | Y263: =Harmonischen!$C$74/100*SIN($C263*$Y$191*PI()/180) -> 0 | Z263: =Harmonischen!$C$75/100*SIN($C263*$Z$191*PI()/180) -> 0 | AA263: =Harmonischen!$C$76/100*SIN($C263*$AA$191*PI()/180) -> 0 | AB263: =Harmonischen!$C$77/100*SIN($C263*$AB$191*PI()/180) -> 0 | AD263: 0.8365907686
C264: 72 | D264: =Harmonischen!$C$53/100*SIN(C264*PI()/180) -> 0.9510565163 | E264: =Harmonischen!$C$54/100*SIN(C264*$E$191*PI()/180) -> 0 | F264: =Harmonischen!$C$55/100*SIN(C264*$F$191*PI()/180) -> -0.1175570505 | G264: =Harmonischen!$C$56/100*SIN(C264*$G$191*PI()/180) -> 0 | H264: =Harmonischen!$C$57/100*SIN(C264*$H$191*PI()/180) -> 0 | I264: =Harmonischen!$C$58/100*SIN(C264*$I$191*PI()/180) -> 0 | J264: =Harmonischen!$C$59/100*SIN(C264*$J$191*PI()/180) -> 0 | K264: =Harmonischen!$C$60/100*SIN(C264*$K$191*PI()/180) -> 0 | L264: =Harmonischen!$C$61/100*SIN(C264*$L$191*PI()/180) -> 0 | M264: =Harmonischen!$C$62/100*SIN(C264*$M$191*PI()/180) -> 0 | N264: =Harmonischen!$C$63/100*SIN($C264*$N$191*PI()/180) -> 0 | O264: =Harmonischen!$C$64/100*SIN($C264*$O$191*PI()/180) -> 0 | P264: =Harmonischen!$C$65/100*SIN($C264*$P$191*PI()/180) -> 0 | Q264: =Harmonischen!$C$66/100*SIN($C264*$Q$191*PI()/180) -> 0 | R264: =Harmonischen!$C$67/100*SIN($C264*$R$191*PI()/180) -> 0 | S264: =Harmonischen!$C$68/100*SIN($C264*$S$191*PI()/180) -> 0 | T264: =Harmonischen!$C$69/100*SIN($C264*$T$191*PI()/180) -> 0 | U264: =Harmonischen!$C$70/100*SIN($C264*$U$191*PI()/180) -> 0 | V264: =Harmonischen!$C$71/100*SIN($C264*$V$191*PI()/180) -> 0 | W264: =Harmonischen!$C$72/100*SIN($C264*$W$191*PI()/180) -> 0 | X264: =Harmonischen!$C$73/100*SIN($C264*$X$191*PI()/180) -> 0 | Y264: =Harmonischen!$C$74/100*SIN($C264*$Y$191*PI()/180) -> 0 | Z264: =Harmonischen!$C$75/100*SIN($C264*$Z$191*PI()/180) -> 0 | AA264: =Harmonischen!$C$76/100*SIN($C264*$AA$191*PI()/180) -> 0 | AB264: =Harmonischen!$C$77/100*SIN($C264*$AB$191*PI()/180) -> 0 | AD264: 0.8334994658
C265: 73 | D265: =Harmonischen!$C$53/100*SIN(C265*PI()/180) -> 0.956304756 | E265: =Harmonischen!$C$54/100*SIN(C265*$E$191*PI()/180) -> 0 | F265: =Harmonischen!$C$55/100*SIN(C265*$F$191*PI()/180) -> -0.1258640782 | G265: =Harmonischen!$C$56/100*SIN(C265*$G$191*PI()/180) -> 0 | H265: =Harmonischen!$C$57/100*SIN(C265*$H$191*PI()/180) -> 0 | I265: =Harmonischen!$C$58/100*SIN(C265*$I$191*PI()/180) -> 0 | J265: =Harmonischen!$C$59/100*SIN(C265*$J$191*PI()/180) -> 0 | K265: =Harmonischen!$C$60/100*SIN(C265*$K$191*PI()/180) -> 0 | L265: =Harmonischen!$C$61/100*SIN(C265*$L$191*PI()/180) -> 0 | M265: =Harmonischen!$C$62/100*SIN(C265*$M$191*PI()/180) -> 0 | N265: =Harmonischen!$C$63/100*SIN($C265*$N$191*PI()/180) -> 0 | O265: =Harmonischen!$C$64/100*SIN($C265*$O$191*PI()/180) -> 0 | P265: =Harmonischen!$C$65/100*SIN($C265*$P$191*PI()/180) -> 0 | Q265: =Harmonischen!$C$66/100*SIN($C265*$Q$191*PI()/180) -> 0 | R265: =Harmonischen!$C$67/100*SIN($C265*$R$191*PI()/180) -> 0 | S265: =Harmonischen!$C$68/100*SIN($C265*$S$191*PI()/180) -> 0 | T265: =Harmonischen!$C$69/100*SIN($C265*$T$191*PI()/180) -> 0 | U265: =Harmonischen!$C$70/100*SIN($C265*$U$191*PI()/180) -> 0 | V265: =Harmonischen!$C$71/100*SIN($C265*$V$191*PI()/180) -> 0 | W265: =Harmonischen!$C$72/100*SIN($C265*$W$191*PI()/180) -> 0 | X265: =Harmonischen!$C$73/100*SIN($C265*$X$191*PI()/180) -> 0 | Y265: =Harmonischen!$C$74/100*SIN($C265*$Y$191*PI()/180) -> 0 | Z265: =Harmonischen!$C$75/100*SIN($C265*$Z$191*PI()/180) -> 0 | AA265: =Harmonischen!$C$76/100*SIN($C265*$AA$191*PI()/180) -> 0 | AB265: =Harmonischen!$C$77/100*SIN($C265*$AB$191*PI()/180) -> 0 | AD265: 0.8304406778
C266: 74 | D266: =Harmonischen!$C$53/100*SIN(C266*PI()/180) -> 0.9612616959 | E266: =Harmonischen!$C$54/100*SIN(C266*$E$191*PI()/180) -> 0 | F266: =Harmonischen!$C$55/100*SIN(C266*$F$191*PI()/180) -> -0.1338261213 | G266: =Harmonischen!$C$56/100*SIN(C266*$G$191*PI()/180) -> 0 | H266: =Harmonischen!$C$57/100*SIN(C266*$H$191*PI()/180) -> 0 | I266: =Harmonischen!$C$58/100*SIN(C266*$I$191*PI()/180) -> 0 | J266: =Harmonischen!$C$59/100*SIN(C266*$J$191*PI()/180) -> 0 | K266: =Harmonischen!$C$60/100*SIN(C266*$K$191*PI()/180) -> 0 | L266: =Harmonischen!$C$61/100*SIN(C266*$L$191*PI()/180) -> 0 | M266: =Harmonischen!$C$62/100*SIN(C266*$M$191*PI()/180) -> 0 | N266: =Harmonischen!$C$63/100*SIN($C266*$N$191*PI()/180) -> 0 | O266: =Harmonischen!$C$64/100*SIN($C266*$O$191*PI()/180) -> 0 | P266: =Harmonischen!$C$65/100*SIN($C266*$P$191*PI()/180) -> 0 | Q266: =Harmonischen!$C$66/100*SIN($C266*$Q$191*PI()/180) -> 0 | R266: =Harmonischen!$C$67/100*SIN($C266*$R$191*PI()/180) -> 0 | S266: =Harmonischen!$C$68/100*SIN($C266*$S$191*PI()/180) -> 0 | T266: =Harmonischen!$C$69/100*SIN($C266*$T$191*PI()/180) -> 0 | U266: =Harmonischen!$C$70/100*SIN($C266*$U$191*PI()/180) -> 0 | V266: =Harmonischen!$C$71/100*SIN($C266*$V$191*PI()/180) -> 0 | W266: =Harmonischen!$C$72/100*SIN($C266*$W$191*PI()/180) -> 0 | X266: =Harmonischen!$C$73/100*SIN($C266*$X$191*PI()/180) -> 0 | Y266: =Harmonischen!$C$74/100*SIN($C266*$Y$191*PI()/180) -> 0 | Z266: =Harmonischen!$C$75/100*SIN($C266*$Z$191*PI()/180) -> 0 | AA266: =Harmonischen!$C$76/100*SIN($C266*$AA$191*PI()/180) -> 0 | AB266: =Harmonischen!$C$77/100*SIN($C266*$AB$191*PI()/180) -> 0 | AD266: 0.8274355747
C267: 75 | D267: =Harmonischen!$C$53/100*SIN(C267*PI()/180) -> 0.9659258263 | E267: =Harmonischen!$C$54/100*SIN(C267*$E$191*PI()/180) -> 0 | F267: =Harmonischen!$C$55/100*SIN(C267*$F$191*PI()/180) -> -0.1414213562 | G267: =Harmonischen!$C$56/100*SIN(C267*$G$191*PI()/180) -> 0 | H267: =Harmonischen!$C$57/100*SIN(C267*$H$191*PI()/180) -> 0 | I267: =Harmonischen!$C$58/100*SIN(C267*$I$191*PI()/180) -> 0 | J267: =Harmonischen!$C$59/100*SIN(C267*$J$191*PI()/180) -> 0 | K267: =Harmonischen!$C$60/100*SIN(C267*$K$191*PI()/180) -> 0 | L267: =Harmonischen!$C$61/100*SIN(C267*$L$191*PI()/180) -> 0 | M267: =Harmonischen!$C$62/100*SIN(C267*$M$191*PI()/180) -> 0 | N267: =Harmonischen!$C$63/100*SIN($C267*$N$191*PI()/180) -> 0 | O267: =Harmonischen!$C$64/100*SIN($C267*$O$191*PI()/180) -> 0 | P267: =Harmonischen!$C$65/100*SIN($C267*$P$191*PI()/180) -> 0 | Q267: =Harmonischen!$C$66/100*SIN($C267*$Q$191*PI()/180) -> 0 | R267: =Harmonischen!$C$67/100*SIN($C267*$R$191*PI()/180) -> 0 | S267: =Harmonischen!$C$68/100*SIN($C267*$S$191*PI()/180) -> 0 | T267: =Harmonischen!$C$69/100*SIN($C267*$T$191*PI()/180) -> 0 | U267: =Harmonischen!$C$70/100*SIN($C267*$U$191*PI()/180) -> 0 | V267: =Harmonischen!$C$71/100*SIN($C267*$V$191*PI()/180) -> 0 | W267: =Harmonischen!$C$72/100*SIN($C267*$W$191*PI()/180) -> 0 | X267: =Harmonischen!$C$73/100*SIN($C267*$X$191*PI()/180) -> 0 | Y267: =Harmonischen!$C$74/100*SIN($C267*$Y$191*PI()/180) -> 0 | Z267: =Harmonischen!$C$75/100*SIN($C267*$Z$191*PI()/180) -> 0 | AA267: =Harmonischen!$C$76/100*SIN($C267*$AA$191*PI()/180) -> 0 | AB267: =Harmonischen!$C$77/100*SIN($C267*$AB$191*PI()/180) -> 0 | AD267: 0.8245044701
C268: 76 | D268: =Harmonischen!$C$53/100*SIN(C268*PI()/180) -> 0.9702957263 | E268: =Harmonischen!$C$54/100*SIN(C268*$E$191*PI()/180) -> 0 | F268: =Harmonischen!$C$55/100*SIN(C268*$F$191*PI()/180) -> -0.1486289651 | G268: =Harmonischen!$C$56/100*SIN(C268*$G$191*PI()/180) -> 0 | H268: =Harmonischen!$C$57/100*SIN(C268*$H$191*PI()/180) -> 0 | I268: =Harmonischen!$C$58/100*SIN(C268*$I$191*PI()/180) -> 0 | J268: =Harmonischen!$C$59/100*SIN(C268*$J$191*PI()/180) -> 0 | K268: =Harmonischen!$C$60/100*SIN(C268*$K$191*PI()/180) -> 0 | L268: =Harmonischen!$C$61/100*SIN(C268*$L$191*PI()/180) -> 0 | M268: =Harmonischen!$C$62/100*SIN(C268*$M$191*PI()/180) -> 0 | N268: =Harmonischen!$C$63/100*SIN($C268*$N$191*PI()/180) -> 0 | O268: =Harmonischen!$C$64/100*SIN($C268*$O$191*PI()/180) -> 0 | P268: =Harmonischen!$C$65/100*SIN($C268*$P$191*PI()/180) -> 0 | Q268: =Harmonischen!$C$66/100*SIN($C268*$Q$191*PI()/180) -> 0 | R268: =Harmonischen!$C$67/100*SIN($C268*$R$191*PI()/180) -> 0 | S268: =Harmonischen!$C$68/100*SIN($C268*$S$191*PI()/180) -> 0 | T268: =Harmonischen!$C$69/100*SIN($C268*$T$191*PI()/180) -> 0 | U268: =Harmonischen!$C$70/100*SIN($C268*$U$191*PI()/180) -> 0 | V268: =Harmonischen!$C$71/100*SIN($C268*$V$191*PI()/180) -> 0 | W268: =Harmonischen!$C$72/100*SIN($C268*$W$191*PI()/180) -> 0 | X268: =Harmonischen!$C$73/100*SIN($C268*$X$191*PI()/180) -> 0 | Y268: =Harmonischen!$C$74/100*SIN($C268*$Y$191*PI()/180) -> 0 | Z268: =Harmonischen!$C$75/100*SIN($C268*$Z$191*PI()/180) -> 0 | AA268: =Harmonischen!$C$76/100*SIN($C268*$AA$191*PI()/180) -> 0 | AB268: =Harmonischen!$C$77/100*SIN($C268*$AB$191*PI()/180) -> 0 | AD268: 0.8216667612
C269: 77 | D269: =Harmonischen!$C$53/100*SIN(C269*PI()/180) -> 0.9743700648 | E269: =Harmonischen!$C$54/100*SIN(C269*$E$191*PI()/180) -> 0 | F269: =Harmonischen!$C$55/100*SIN(C269*$F$191*PI()/180) -> -0.1554291923 | G269: =Harmonischen!$C$56/100*SIN(C269*$G$191*PI()/180) -> 0 | H269: =Harmonischen!$C$57/100*SIN(C269*$H$191*PI()/180) -> 0 | I269: =Harmonischen!$C$58/100*SIN(C269*$I$191*PI()/180) -> 0 | J269: =Harmonischen!$C$59/100*SIN(C269*$J$191*PI()/180) -> 0 | K269: =Harmonischen!$C$60/100*SIN(C269*$K$191*PI()/180) -> 0 | L269: =Harmonischen!$C$61/100*SIN(C269*$L$191*PI()/180) -> 0 | M269: =Harmonischen!$C$62/100*SIN(C269*$M$191*PI()/180) -> 0 | N269: =Harmonischen!$C$63/100*SIN($C269*$N$191*PI()/180) -> 0 | O269: =Harmonischen!$C$64/100*SIN($C269*$O$191*PI()/180) -> 0 | P269: =Harmonischen!$C$65/100*SIN($C269*$P$191*PI()/180) -> 0 | Q269: =Harmonischen!$C$66/100*SIN($C269*$Q$191*PI()/180) -> 0 | R269: =Harmonischen!$C$67/100*SIN($C269*$R$191*PI()/180) -> 0 | S269: =Harmonischen!$C$68/100*SIN($C269*$S$191*PI()/180) -> 0 | T269: =Harmonischen!$C$69/100*SIN($C269*$T$191*PI()/180) -> 0 | U269: =Harmonischen!$C$70/100*SIN($C269*$U$191*PI()/180) -> 0 | V269: =Harmonischen!$C$71/100*SIN($C269*$V$191*PI()/180) -> 0 | W269: =Harmonischen!$C$72/100*SIN($C269*$W$191*PI()/180) -> 0 | X269: =Harmonischen!$C$73/100*SIN($C269*$X$191*PI()/180) -> 0 | Y269: =Harmonischen!$C$74/100*SIN($C269*$Y$191*PI()/180) -> 0 | Z269: =Harmonischen!$C$75/100*SIN($C269*$Z$191*PI()/180) -> 0 | AA269: =Harmonischen!$C$76/100*SIN($C269*$AA$191*PI()/180) -> 0 | AB269: =Harmonischen!$C$77/100*SIN($C269*$AB$191*PI()/180) -> 0 | AD269: 0.8189408725
C270: 78 | D270: =Harmonischen!$C$53/100*SIN(C270*PI()/180) -> 0.9781476007 | E270: =Harmonischen!$C$54/100*SIN(C270*$E$191*PI()/180) -> 0 | F270: =Harmonischen!$C$55/100*SIN(C270*$F$191*PI()/180) -> -0.1618033989 | G270: =Harmonischen!$C$56/100*SIN(C270*$G$191*PI()/180) -> 0 | H270: =Harmonischen!$C$57/100*SIN(C270*$H$191*PI()/180) -> 0 | I270: =Harmonischen!$C$58/100*SIN(C270*$I$191*PI()/180) -> 0 | J270: =Harmonischen!$C$59/100*SIN(C270*$J$191*PI()/180) -> 0 | K270: =Harmonischen!$C$60/100*SIN(C270*$K$191*PI()/180) -> 0 | L270: =Harmonischen!$C$61/100*SIN(C270*$L$191*PI()/180) -> 0 | M270: =Harmonischen!$C$62/100*SIN(C270*$M$191*PI()/180) -> 0 | N270: =Harmonischen!$C$63/100*SIN($C270*$N$191*PI()/180) -> 0 | O270: =Harmonischen!$C$64/100*SIN($C270*$O$191*PI()/180) -> 0 | P270: =Harmonischen!$C$65/100*SIN($C270*$P$191*PI()/180) -> 0 | Q270: =Harmonischen!$C$66/100*SIN($C270*$Q$191*PI()/180) -> 0 | R270: =Harmonischen!$C$67/100*SIN($C270*$R$191*PI()/180) -> 0 | S270: =Harmonischen!$C$68/100*SIN($C270*$S$191*PI()/180) -> 0 | T270: =Harmonischen!$C$69/100*SIN($C270*$T$191*PI()/180) -> 0 | U270: =Harmonischen!$C$70/100*SIN($C270*$U$191*PI()/180) -> 0 | V270: =Harmonischen!$C$71/100*SIN($C270*$V$191*PI()/180) -> 0 | W270: =Harmonischen!$C$72/100*SIN($C270*$W$191*PI()/180) -> 0 | X270: =Harmonischen!$C$73/100*SIN($C270*$X$191*PI()/180) -> 0 | Y270: =Harmonischen!$C$74/100*SIN($C270*$Y$191*PI()/180) -> 0 | Z270: =Harmonischen!$C$75/100*SIN($C270*$Z$191*PI()/180) -> 0 | AA270: =Harmonischen!$C$76/100*SIN($C270*$AA$191*PI()/180) -> 0 | AB270: =Harmonischen!$C$77/100*SIN($C270*$AB$191*PI()/180) -> 0 | AD270: 0.8163442019
C271: 79 | D271: =Harmonischen!$C$53/100*SIN(C271*PI()/180) -> 0.9816271834 | E271: =Harmonischen!$C$54/100*SIN(C271*$E$191*PI()/180) -> 0 | F271: =Harmonischen!$C$55/100*SIN(C271*$F$191*PI()/180) -> -0.1677341136 | G271: =Harmonischen!$C$56/100*SIN(C271*$G$191*PI()/180) -> 0 | H271: =Harmonischen!$C$57/100*SIN(C271*$H$191*PI()/180) -> 0 | I271: =Harmonischen!$C$58/100*SIN(C271*$I$191*PI()/180) -> 0 | J271: =Harmonischen!$C$59/100*SIN(C271*$J$191*PI()/180) -> 0 | K271: =Harmonischen!$C$60/100*SIN(C271*$K$191*PI()/180) -> 0 | L271: =Harmonischen!$C$61/100*SIN(C271*$L$191*PI()/180) -> 0 | M271: =Harmonischen!$C$62/100*SIN(C271*$M$191*PI()/180) -> 0 | N271: =Harmonischen!$C$63/100*SIN($C271*$N$191*PI()/180) -> 0 | O271: =Harmonischen!$C$64/100*SIN($C271*$O$191*PI()/180) -> 0 | P271: =Harmonischen!$C$65/100*SIN($C271*$P$191*PI()/180) -> 0 | Q271: =Harmonischen!$C$66/100*SIN($C271*$Q$191*PI()/180) -> 0 | R271: =Harmonischen!$C$67/100*SIN($C271*$R$191*PI()/180) -> 0 | S271: =Harmonischen!$C$68/100*SIN($C271*$S$191*PI()/180) -> 0 | T271: =Harmonischen!$C$69/100*SIN($C271*$T$191*PI()/180) -> 0 | U271: =Harmonischen!$C$70/100*SIN($C271*$U$191*PI()/180) -> 0 | V271: =Harmonischen!$C$71/100*SIN($C271*$V$191*PI()/180) -> 0 | W271: =Harmonischen!$C$72/100*SIN($C271*$W$191*PI()/180) -> 0 | X271: =Harmonischen!$C$73/100*SIN($C271*$X$191*PI()/180) -> 0 | Y271: =Harmonischen!$C$74/100*SIN($C271*$Y$191*PI()/180) -> 0 | Z271: =Harmonischen!$C$75/100*SIN($C271*$Z$191*PI()/180) -> 0 | AA271: =Harmonischen!$C$76/100*SIN($C271*$AA$191*PI()/180) -> 0 | AB271: =Harmonischen!$C$77/100*SIN($C271*$AB$191*PI()/180) -> 0 | AD271: 0.8138930699
C272: 80 | D272: =Harmonischen!$C$53/100*SIN(C272*PI()/180) -> 0.984807753 | E272: =Harmonischen!$C$54/100*SIN(C272*$E$191*PI()/180) -> 0 | F272: =Harmonischen!$C$55/100*SIN(C272*$F$191*PI()/180) -> -0.1732050808 | G272: =Harmonischen!$C$56/100*SIN(C272*$G$191*PI()/180) -> 0 | H272: =Harmonischen!$C$57/100*SIN(C272*$H$191*PI()/180) -> 0 | I272: =Harmonischen!$C$58/100*SIN(C272*$I$191*PI()/180) -> 0 | J272: =Harmonischen!$C$59/100*SIN(C272*$J$191*PI()/180) -> 0 | K272: =Harmonischen!$C$60/100*SIN(C272*$K$191*PI()/180) -> 0 | L272: =Harmonischen!$C$61/100*SIN(C272*$L$191*PI()/180) -> 0 | M272: =Harmonischen!$C$62/100*SIN(C272*$M$191*PI()/180) -> 0 | N272: =Harmonischen!$C$63/100*SIN($C272*$N$191*PI()/180) -> 0 | O272: =Harmonischen!$C$64/100*SIN($C272*$O$191*PI()/180) -> 0 | P272: =Harmonischen!$C$65/100*SIN($C272*$P$191*PI()/180) -> 0 | Q272: =Harmonischen!$C$66/100*SIN($C272*$Q$191*PI()/180) -> 0 | R272: =Harmonischen!$C$67/100*SIN($C272*$R$191*PI()/180) -> 0 | S272: =Harmonischen!$C$68/100*SIN($C272*$S$191*PI()/180) -> 0 | T272: =Harmonischen!$C$69/100*SIN($C272*$T$191*PI()/180) -> 0 | U272: =Harmonischen!$C$70/100*SIN($C272*$U$191*PI()/180) -> 0 | V272: =Harmonischen!$C$71/100*SIN($C272*$V$191*PI()/180) -> 0 | W272: =Harmonischen!$C$72/100*SIN($C272*$W$191*PI()/180) -> 0 | X272: =Harmonischen!$C$73/100*SIN($C272*$X$191*PI()/180) -> 0 | Y272: =Harmonischen!$C$74/100*SIN($C272*$Y$191*PI()/180) -> 0 | Z272: =Harmonischen!$C$75/100*SIN($C272*$Z$191*PI()/180) -> 0 | AA272: =Harmonischen!$C$76/100*SIN($C272*$AA$191*PI()/180) -> 0 | AB272: =Harmonischen!$C$77/100*SIN($C272*$AB$191*PI()/180) -> 0 | AD272: 0.8116026723
C273: 81 | D273: =Harmonischen!$C$53/100*SIN(C273*PI()/180) -> 0.9876883406 | E273: =Harmonischen!$C$54/100*SIN(C273*$E$191*PI()/180) -> 0 | F273: =Harmonischen!$C$55/100*SIN(C273*$F$191*PI()/180) -> -0.1782013048 | G273: =Harmonischen!$C$56/100*SIN(C273*$G$191*PI()/180) -> 0 | H273: =Harmonischen!$C$57/100*SIN(C273*$H$191*PI()/180) -> 0 | I273: =Harmonischen!$C$58/100*SIN(C273*$I$191*PI()/180) -> 0 | J273: =Harmonischen!$C$59/100*SIN(C273*$J$191*PI()/180) -> 0 | K273: =Harmonischen!$C$60/100*SIN(C273*$K$191*PI()/180) -> 0 | L273: =Harmonischen!$C$61/100*SIN(C273*$L$191*PI()/180) -> 0 | M273: =Harmonischen!$C$62/100*SIN(C273*$M$191*PI()/180) -> 0 | N273: =Harmonischen!$C$63/100*SIN($C273*$N$191*PI()/180) -> 0 | O273: =Harmonischen!$C$64/100*SIN($C273*$O$191*PI()/180) -> 0 | P273: =Harmonischen!$C$65/100*SIN($C273*$P$191*PI()/180) -> 0 | Q273: =Harmonischen!$C$66/100*SIN($C273*$Q$191*PI()/180) -> 0 | R273: =Harmonischen!$C$67/100*SIN($C273*$R$191*PI()/180) -> 0 | S273: =Harmonischen!$C$68/100*SIN($C273*$S$191*PI()/180) -> 0 | T273: =Harmonischen!$C$69/100*SIN($C273*$T$191*PI()/180) -> 0 | U273: =Harmonischen!$C$70/100*SIN($C273*$U$191*PI()/180) -> 0 | V273: =Harmonischen!$C$71/100*SIN($C273*$V$191*PI()/180) -> 0 | W273: =Harmonischen!$C$72/100*SIN($C273*$W$191*PI()/180) -> 0 | X273: =Harmonischen!$C$73/100*SIN($C273*$X$191*PI()/180) -> 0 | Y273: =Harmonischen!$C$74/100*SIN($C273*$Y$191*PI()/180) -> 0 | Z273: =Harmonischen!$C$75/100*SIN($C273*$Z$191*PI()/180) -> 0 | AA273: =Harmonischen!$C$76/100*SIN($C273*$AA$191*PI()/180) -> 0 | AB273: =Harmonischen!$C$77/100*SIN($C273*$AB$191*PI()/180) -> 0 | AD273: 0.8094870358
C274: 82 | D274: =Harmonischen!$C$53/100*SIN(C274*PI()/180) -> 0.9902680687 | E274: =Harmonischen!$C$54/100*SIN(C274*$E$191*PI()/180) -> 0 | F274: =Harmonischen!$C$55/100*SIN(C274*$F$191*PI()/180) -> -0.1827090915 | G274: =Harmonischen!$C$56/100*SIN(C274*$G$191*PI()/180) -> 0 | H274: =Harmonischen!$C$57/100*SIN(C274*$H$191*PI()/180) -> 0 | I274: =Harmonischen!$C$58/100*SIN(C274*$I$191*PI()/180) -> 0 | J274: =Harmonischen!$C$59/100*SIN(C274*$J$191*PI()/180) -> 0 | K274: =Harmonischen!$C$60/100*SIN(C274*$K$191*PI()/180) -> 0 | L274: =Harmonischen!$C$61/100*SIN(C274*$L$191*PI()/180) -> 0 | M274: =Harmonischen!$C$62/100*SIN(C274*$M$191*PI()/180) -> 0 | N274: =Harmonischen!$C$63/100*SIN($C274*$N$191*PI()/180) -> 0 | O274: =Harmonischen!$C$64/100*SIN($C274*$O$191*PI()/180) -> 0 | P274: =Harmonischen!$C$65/100*SIN($C274*$P$191*PI()/180) -> 0 | Q274: =Harmonischen!$C$66/100*SIN($C274*$Q$191*PI()/180) -> 0 | R274: =Harmonischen!$C$67/100*SIN($C274*$R$191*PI()/180) -> 0 | S274: =Harmonischen!$C$68/100*SIN($C274*$S$191*PI()/180) -> 0 | T274: =Harmonischen!$C$69/100*SIN($C274*$T$191*PI()/180) -> 0 | U274: =Harmonischen!$C$70/100*SIN($C274*$U$191*PI()/180) -> 0 | V274: =Harmonischen!$C$71/100*SIN($C274*$V$191*PI()/180) -> 0 | W274: =Harmonischen!$C$72/100*SIN($C274*$W$191*PI()/180) -> 0 | X274: =Harmonischen!$C$73/100*SIN($C274*$X$191*PI()/180) -> 0 | Y274: =Harmonischen!$C$74/100*SIN($C274*$Y$191*PI()/180) -> 0 | Z274: =Harmonischen!$C$75/100*SIN($C274*$Z$191*PI()/180) -> 0 | AA274: =Harmonischen!$C$76/100*SIN($C274*$AA$191*PI()/180) -> 0 | AB274: =Harmonischen!$C$77/100*SIN($C274*$AB$191*PI()/180) -> 0 | AD274: 0.8075589772
C275: 83 | D275: =Harmonischen!$C$53/100*SIN(C275*PI()/180) -> 0.9925461516 | E275: =Harmonischen!$C$54/100*SIN(C275*$E$191*PI()/180) -> 0 | F275: =Harmonischen!$C$55/100*SIN(C275*$F$191*PI()/180) -> -0.1867160853 | G275: =Harmonischen!$C$56/100*SIN(C275*$G$191*PI()/180) -> 0 | H275: =Harmonischen!$C$57/100*SIN(C275*$H$191*PI()/180) -> 0 | I275: =Harmonischen!$C$58/100*SIN(C275*$I$191*PI()/180) -> 0 | J275: =Harmonischen!$C$59/100*SIN(C275*$J$191*PI()/180) -> 0 | K275: =Harmonischen!$C$60/100*SIN(C275*$K$191*PI()/180) -> 0 | L275: =Harmonischen!$C$61/100*SIN(C275*$L$191*PI()/180) -> 0 | M275: =Harmonischen!$C$62/100*SIN(C275*$M$191*PI()/180) -> 0 | N275: =Harmonischen!$C$63/100*SIN($C275*$N$191*PI()/180) -> 0 | O275: =Harmonischen!$C$64/100*SIN($C275*$O$191*PI()/180) -> 0 | P275: =Harmonischen!$C$65/100*SIN($C275*$P$191*PI()/180) -> 0 | Q275: =Harmonischen!$C$66/100*SIN($C275*$Q$191*PI()/180) -> 0 | R275: =Harmonischen!$C$67/100*SIN($C275*$R$191*PI()/180) -> 0 | S275: =Harmonischen!$C$68/100*SIN($C275*$S$191*PI()/180) -> 0 | T275: =Harmonischen!$C$69/100*SIN($C275*$T$191*PI()/180) -> 0 | U275: =Harmonischen!$C$70/100*SIN($C275*$U$191*PI()/180) -> 0 | V275: =Harmonischen!$C$71/100*SIN($C275*$V$191*PI()/180) -> 0 | W275: =Harmonischen!$C$72/100*SIN($C275*$W$191*PI()/180) -> 0 | X275: =Harmonischen!$C$73/100*SIN($C275*$X$191*PI()/180) -> 0 | Y275: =Harmonischen!$C$74/100*SIN($C275*$Y$191*PI()/180) -> 0 | Z275: =Harmonischen!$C$75/100*SIN($C275*$Z$191*PI()/180) -> 0 | AA275: =Harmonischen!$C$76/100*SIN($C275*$AA$191*PI()/180) -> 0 | AB275: =Harmonischen!$C$77/100*SIN($C275*$AB$191*PI()/180) -> 0 | AD275: 0.8058300663
C276: 84 | D276: =Harmonischen!$C$53/100*SIN(C276*PI()/180) -> 0.9945218954 | E276: =Harmonischen!$C$54/100*SIN(C276*$E$191*PI()/180) -> 0 | F276: =Harmonischen!$C$55/100*SIN(C276*$F$191*PI()/180) -> -0.1902113033 | G276: =Harmonischen!$C$56/100*SIN(C276*$G$191*PI()/180) -> 0 | H276: =Harmonischen!$C$57/100*SIN(C276*$H$191*PI()/180) -> 0 | I276: =Harmonischen!$C$58/100*SIN(C276*$I$191*PI()/180) -> 0 | J276: =Harmonischen!$C$59/100*SIN(C276*$J$191*PI()/180) -> 0 | K276: =Harmonischen!$C$60/100*SIN(C276*$K$191*PI()/180) -> 0 | L276: =Harmonischen!$C$61/100*SIN(C276*$L$191*PI()/180) -> 0 | M276: =Harmonischen!$C$62/100*SIN(C276*$M$191*PI()/180) -> 0 | N276: =Harmonischen!$C$63/100*SIN($C276*$N$191*PI()/180) -> 0 | O276: =Harmonischen!$C$64/100*SIN($C276*$O$191*PI()/180) -> 0 | P276: =Harmonischen!$C$65/100*SIN($C276*$P$191*PI()/180) -> 0 | Q276: =Harmonischen!$C$66/100*SIN($C276*$Q$191*PI()/180) -> 0 | R276: =Harmonischen!$C$67/100*SIN($C276*$R$191*PI()/180) -> 0 | S276: =Harmonischen!$C$68/100*SIN($C276*$S$191*PI()/180) -> 0 | T276: =Harmonischen!$C$69/100*SIN($C276*$T$191*PI()/180) -> 0 | U276: =Harmonischen!$C$70/100*SIN($C276*$U$191*PI()/180) -> 0 | V276: =Harmonischen!$C$71/100*SIN($C276*$V$191*PI()/180) -> 0 | W276: =Harmonischen!$C$72/100*SIN($C276*$W$191*PI()/180) -> 0 | X276: =Harmonischen!$C$73/100*SIN($C276*$X$191*PI()/180) -> 0 | Y276: =Harmonischen!$C$74/100*SIN($C276*$Y$191*PI()/180) -> 0 | Z276: =Harmonischen!$C$75/100*SIN($C276*$Z$191*PI()/180) -> 0 | AA276: =Harmonischen!$C$76/100*SIN($C276*$AA$191*PI()/180) -> 0 | AB276: =Harmonischen!$C$77/100*SIN($C276*$AB$191*PI()/180) -> 0 | AD276: 0.8043105921
C277: 85 | D277: =Harmonischen!$C$53/100*SIN(C277*PI()/180) -> 0.9961946981 | E277: =Harmonischen!$C$54/100*SIN(C277*$E$191*PI()/180) -> 0 | F277: =Harmonischen!$C$55/100*SIN(C277*$F$191*PI()/180) -> -0.1931851653 | G277: =Harmonischen!$C$56/100*SIN(C277*$G$191*PI()/180) -> 0 | H277: =Harmonischen!$C$57/100*SIN(C277*$H$191*PI()/180) -> 0 | I277: =Harmonischen!$C$58/100*SIN(C277*$I$191*PI()/180) -> 0 | J277: =Harmonischen!$C$59/100*SIN(C277*$J$191*PI()/180) -> 0 | K277: =Harmonischen!$C$60/100*SIN(C277*$K$191*PI()/180) -> 0 | L277: =Harmonischen!$C$61/100*SIN(C277*$L$191*PI()/180) -> 0 | M277: =Harmonischen!$C$62/100*SIN(C277*$M$191*PI()/180) -> 0 | N277: =Harmonischen!$C$63/100*SIN($C277*$N$191*PI()/180) -> 0 | O277: =Harmonischen!$C$64/100*SIN($C277*$O$191*PI()/180) -> 0 | P277: =Harmonischen!$C$65/100*SIN($C277*$P$191*PI()/180) -> 0 | Q277: =Harmonischen!$C$66/100*SIN($C277*$Q$191*PI()/180) -> 0 | R277: =Harmonischen!$C$67/100*SIN($C277*$R$191*PI()/180) -> 0 | S277: =Harmonischen!$C$68/100*SIN($C277*$S$191*PI()/180) -> 0 | T277: =Harmonischen!$C$69/100*SIN($C277*$T$191*PI()/180) -> 0 | U277: =Harmonischen!$C$70/100*SIN($C277*$U$191*PI()/180) -> 0 | V277: =Harmonischen!$C$71/100*SIN($C277*$V$191*PI()/180) -> 0 | W277: =Harmonischen!$C$72/100*SIN($C277*$W$191*PI()/180) -> 0 | X277: =Harmonischen!$C$73/100*SIN($C277*$X$191*PI()/180) -> 0 | Y277: =Harmonischen!$C$74/100*SIN($C277*$Y$191*PI()/180) -> 0 | Z277: =Harmonischen!$C$75/100*SIN($C277*$Z$191*PI()/180) -> 0 | AA277: =Harmonischen!$C$76/100*SIN($C277*$AA$191*PI()/180) -> 0 | AB277: =Harmonischen!$C$77/100*SIN($C277*$AB$191*PI()/180) -> 0 | AD277: 0.8030095328
C278: 86 | D278: =Harmonischen!$C$53/100*SIN(C278*PI()/180) -> 0.9975640503 | E278: =Harmonischen!$C$54/100*SIN(C278*$E$191*PI()/180) -> 0 | F278: =Harmonischen!$C$55/100*SIN(C278*$F$191*PI()/180) -> -0.1956295201 | G278: =Harmonischen!$C$56/100*SIN(C278*$G$191*PI()/180) -> 0 | H278: =Harmonischen!$C$57/100*SIN(C278*$H$191*PI()/180) -> 0 | I278: =Harmonischen!$C$58/100*SIN(C278*$I$191*PI()/180) -> 0 | J278: =Harmonischen!$C$59/100*SIN(C278*$J$191*PI()/180) -> 0 | K278: =Harmonischen!$C$60/100*SIN(C278*$K$191*PI()/180) -> 0 | L278: =Harmonischen!$C$61/100*SIN(C278*$L$191*PI()/180) -> 0 | M278: =Harmonischen!$C$62/100*SIN(C278*$M$191*PI()/180) -> 0 | N278: =Harmonischen!$C$63/100*SIN($C278*$N$191*PI()/180) -> 0 | O278: =Harmonischen!$C$64/100*SIN($C278*$O$191*PI()/180) -> 0 | P278: =Harmonischen!$C$65/100*SIN($C278*$P$191*PI()/180) -> 0 | Q278: =Harmonischen!$C$66/100*SIN($C278*$Q$191*PI()/180) -> 0 | R278: =Harmonischen!$C$67/100*SIN($C278*$R$191*PI()/180) -> 0 | S278: =Harmonischen!$C$68/100*SIN($C278*$S$191*PI()/180) -> 0 | T278: =Harmonischen!$C$69/100*SIN($C278*$T$191*PI()/180) -> 0 | U278: =Harmonischen!$C$70/100*SIN($C278*$U$191*PI()/180) -> 0 | V278: =Harmonischen!$C$71/100*SIN($C278*$V$191*PI()/180) -> 0 | W278: =Harmonischen!$C$72/100*SIN($C278*$W$191*PI()/180) -> 0 | X278: =Harmonischen!$C$73/100*SIN($C278*$X$191*PI()/180) -> 0 | Y278: =Harmonischen!$C$74/100*SIN($C278*$Y$191*PI()/180) -> 0 | Z278: =Harmonischen!$C$75/100*SIN($C278*$Z$191*PI()/180) -> 0 | AA278: =Harmonischen!$C$76/100*SIN($C278*$AA$191*PI()/180) -> 0 | AB278: =Harmonischen!$C$77/100*SIN($C278*$AB$191*PI()/180) -> 0 | AD278: 0.8019345301
C279: 87 | D279: =Harmonischen!$C$53/100*SIN(C279*PI()/180) -> 0.9986295348 | E279: =Harmonischen!$C$54/100*SIN(C279*$E$191*PI()/180) -> 0 | F279: =Harmonischen!$C$55/100*SIN(C279*$F$191*PI()/180) -> -0.1975376681 | G279: =Harmonischen!$C$56/100*SIN(C279*$G$191*PI()/180) -> 0 | H279: =Harmonischen!$C$57/100*SIN(C279*$H$191*PI()/180) -> 0 | I279: =Harmonischen!$C$58/100*SIN(C279*$I$191*PI()/180) -> 0 | J279: =Harmonischen!$C$59/100*SIN(C279*$J$191*PI()/180) -> 0 | K279: =Harmonischen!$C$60/100*SIN(C279*$K$191*PI()/180) -> 0 | L279: =Harmonischen!$C$61/100*SIN(C279*$L$191*PI()/180) -> 0 | M279: =Harmonischen!$C$62/100*SIN(C279*$M$191*PI()/180) -> 0 | N279: =Harmonischen!$C$63/100*SIN($C279*$N$191*PI()/180) -> 0 | O279: =Harmonischen!$C$64/100*SIN($C279*$O$191*PI()/180) -> 0 | P279: =Harmonischen!$C$65/100*SIN($C279*$P$191*PI()/180) -> 0 | Q279: =Harmonischen!$C$66/100*SIN($C279*$Q$191*PI()/180) -> 0 | R279: =Harmonischen!$C$67/100*SIN($C279*$R$191*PI()/180) -> 0 | S279: =Harmonischen!$C$68/100*SIN($C279*$S$191*PI()/180) -> 0 | T279: =Harmonischen!$C$69/100*SIN($C279*$T$191*PI()/180) -> 0 | U279: =Harmonischen!$C$70/100*SIN($C279*$U$191*PI()/180) -> 0 | V279: =Harmonischen!$C$71/100*SIN($C279*$V$191*PI()/180) -> 0 | W279: =Harmonischen!$C$72/100*SIN($C279*$W$191*PI()/180) -> 0 | X279: =Harmonischen!$C$73/100*SIN($C279*$X$191*PI()/180) -> 0 | Y279: =Harmonischen!$C$74/100*SIN($C279*$Y$191*PI()/180) -> 0 | Z279: =Harmonischen!$C$75/100*SIN($C279*$Z$191*PI()/180) -> 0 | AA279: =Harmonischen!$C$76/100*SIN($C279*$AA$191*PI()/180) -> 0 | AB279: =Harmonischen!$C$77/100*SIN($C279*$AB$191*PI()/180) -> 0 | AD279: 0.8010918666
C280: 88 | D280: =Harmonischen!$C$53/100*SIN(C280*PI()/180) -> 0.999390827 | E280: =Harmonischen!$C$54/100*SIN(C280*$E$191*PI()/180) -> 0 | F280: =Harmonischen!$C$55/100*SIN(C280*$F$191*PI()/180) -> -0.1989043791 | G280: =Harmonischen!$C$56/100*SIN(C280*$G$191*PI()/180) -> 0 | H280: =Harmonischen!$C$57/100*SIN(C280*$H$191*PI()/180) -> 0 | I280: =Harmonischen!$C$58/100*SIN(C280*$I$191*PI()/180) -> 0 | J280: =Harmonischen!$C$59/100*SIN(C280*$J$191*PI()/180) -> 0 | K280: =Harmonischen!$C$60/100*SIN(C280*$K$191*PI()/180) -> 0 | L280: =Harmonischen!$C$61/100*SIN(C280*$L$191*PI()/180) -> 0 | M280: =Harmonischen!$C$62/100*SIN(C280*$M$191*PI()/180) -> 0 | N280: =Harmonischen!$C$63/100*SIN($C280*$N$191*PI()/180) -> 0 | O280: =Harmonischen!$C$64/100*SIN($C280*$O$191*PI()/180) -> 0 | P280: =Harmonischen!$C$65/100*SIN($C280*$P$191*PI()/180) -> 0 | Q280: =Harmonischen!$C$66/100*SIN($C280*$Q$191*PI()/180) -> 0 | R280: =Harmonischen!$C$67/100*SIN($C280*$R$191*PI()/180) -> 0 | S280: =Harmonischen!$C$68/100*SIN($C280*$S$191*PI()/180) -> 0 | T280: =Harmonischen!$C$69/100*SIN($C280*$T$191*PI()/180) -> 0 | U280: =Harmonischen!$C$70/100*SIN($C280*$U$191*PI()/180) -> 0 | V280: =Harmonischen!$C$71/100*SIN($C280*$V$191*PI()/180) -> 0 | W280: =Harmonischen!$C$72/100*SIN($C280*$W$191*PI()/180) -> 0 | X280: =Harmonischen!$C$73/100*SIN($C280*$X$191*PI()/180) -> 0 | Y280: =Harmonischen!$C$74/100*SIN($C280*$Y$191*PI()/180) -> 0 | Z280: =Harmonischen!$C$75/100*SIN($C280*$Z$191*PI()/180) -> 0 | AA280: =Harmonischen!$C$76/100*SIN($C280*$AA$191*PI()/180) -> 0 | AB280: =Harmonischen!$C$77/100*SIN($C280*$AB$191*PI()/180) -> 0 | AD280: 0.8004864479
C281: 89 | D281: =Harmonischen!$C$53/100*SIN(C281*PI()/180) -> 0.9998476952 | E281: =Harmonischen!$C$54/100*SIN(C281*$E$191*PI()/180) -> 0 | F281: =Harmonischen!$C$55/100*SIN(C281*$F$191*PI()/180) -> -0.199725907 | G281: =Harmonischen!$C$56/100*SIN(C281*$G$191*PI()/180) -> 0 | H281: =Harmonischen!$C$57/100*SIN(C281*$H$191*PI()/180) -> 0 | I281: =Harmonischen!$C$58/100*SIN(C281*$I$191*PI()/180) -> 0 | J281: =Harmonischen!$C$59/100*SIN(C281*$J$191*PI()/180) -> 0 | K281: =Harmonischen!$C$60/100*SIN(C281*$K$191*PI()/180) -> 0 | L281: =Harmonischen!$C$61/100*SIN(C281*$L$191*PI()/180) -> 0 | M281: =Harmonischen!$C$62/100*SIN(C281*$M$191*PI()/180) -> 0 | N281: =Harmonischen!$C$63/100*SIN($C281*$N$191*PI()/180) -> 0 | O281: =Harmonischen!$C$64/100*SIN($C281*$O$191*PI()/180) -> 0 | P281: =Harmonischen!$C$65/100*SIN($C281*$P$191*PI()/180) -> 0 | Q281: =Harmonischen!$C$66/100*SIN($C281*$Q$191*PI()/180) -> 0 | R281: =Harmonischen!$C$67/100*SIN($C281*$R$191*PI()/180) -> 0 | S281: =Harmonischen!$C$68/100*SIN($C281*$S$191*PI()/180) -> 0 | T281: =Harmonischen!$C$69/100*SIN($C281*$T$191*PI()/180) -> 0 | U281: =Harmonischen!$C$70/100*SIN($C281*$U$191*PI()/180) -> 0 | V281: =Harmonischen!$C$71/100*SIN($C281*$V$191*PI()/180) -> 0 | W281: =Harmonischen!$C$72/100*SIN($C281*$W$191*PI()/180) -> 0 | X281: =Harmonischen!$C$73/100*SIN($C281*$X$191*PI()/180) -> 0 | Y281: =Harmonischen!$C$74/100*SIN($C281*$Y$191*PI()/180) -> 0 | Z281: =Harmonischen!$C$75/100*SIN($C281*$Z$191*PI()/180) -> 0 | AA281: =Harmonischen!$C$76/100*SIN($C281*$AA$191*PI()/180) -> 0 | AB281: =Harmonischen!$C$77/100*SIN($C281*$AB$191*PI()/180) -> 0 | AD281: 0.8001217882
C282: 90 | D282: =Harmonischen!$C$53/100*SIN(C282*PI()/180) -> 1 | E282: =Harmonischen!$C$54/100*SIN(C282*$E$191*PI()/180) -> 0 | F282: =Harmonischen!$C$55/100*SIN(C282*$F$191*PI()/180) -> -0.2 | G282: =Harmonischen!$C$56/100*SIN(C282*$G$191*PI()/180) -> 0 | H282: =Harmonischen!$C$57/100*SIN(C282*$H$191*PI()/180) -> 0 | I282: =Harmonischen!$C$58/100*SIN(C282*$I$191*PI()/180) -> 0 | J282: =Harmonischen!$C$59/100*SIN(C282*$J$191*PI()/180) -> 0 | K282: =Harmonischen!$C$60/100*SIN(C282*$K$191*PI()/180) -> 0 | L282: =Harmonischen!$C$61/100*SIN(C282*$L$191*PI()/180) -> 0 | M282: =Harmonischen!$C$62/100*SIN(C282*$M$191*PI()/180) -> 0 | N282: =Harmonischen!$C$63/100*SIN($C282*$N$191*PI()/180) -> 0 | O282: =Harmonischen!$C$64/100*SIN($C282*$O$191*PI()/180) -> 0 | P282: =Harmonischen!$C$65/100*SIN($C282*$P$191*PI()/180) -> 0 | Q282: =Harmonischen!$C$66/100*SIN($C282*$Q$191*PI()/180) -> 0 | R282: =Harmonischen!$C$67/100*SIN($C282*$R$191*PI()/180) -> 0 | S282: =Harmonischen!$C$68/100*SIN($C282*$S$191*PI()/180) -> 0 | T282: =Harmonischen!$C$69/100*SIN($C282*$T$191*PI()/180) -> 0 | U282: =Harmonischen!$C$70/100*SIN($C282*$U$191*PI()/180) -> 0 | V282: =Harmonischen!$C$71/100*SIN($C282*$V$191*PI()/180) -> 0 | W282: =Harmonischen!$C$72/100*SIN($C282*$W$191*PI()/180) -> 0 | X282: =Harmonischen!$C$73/100*SIN($C282*$X$191*PI()/180) -> 0 | Y282: =Harmonischen!$C$74/100*SIN($C282*$Y$191*PI()/180) -> 0 | Z282: =Harmonischen!$C$75/100*SIN($C282*$Z$191*PI()/180) -> 0 | AA282: =Harmonischen!$C$76/100*SIN($C282*$AA$191*PI()/180) -> 0 | AB282: =Harmonischen!$C$77/100*SIN($C282*$AB$191*PI()/180) -> 0 | AD282: 0.8
C283: 91 | D283: =Harmonischen!$C$53/100*SIN(C283*PI()/180) -> 0.9998476952 | E283: =Harmonischen!$C$54/100*SIN(C283*$E$191*PI()/180) -> 0 | F283: =Harmonischen!$C$55/100*SIN(C283*$F$191*PI()/180) -> -0.199725907 | G283: =Harmonischen!$C$56/100*SIN(C283*$G$191*PI()/180) -> 0 | H283: =Harmonischen!$C$57/100*SIN(C283*$H$191*PI()/180) -> 0 | I283: =Harmonischen!$C$58/100*SIN(C283*$I$191*PI()/180) -> 0 | J283: =Harmonischen!$C$59/100*SIN(C283*$J$191*PI()/180) -> 0 | K283: =Harmonischen!$C$60/100*SIN(C283*$K$191*PI()/180) -> 0 | L283: =Harmonischen!$C$61/100*SIN(C283*$L$191*PI()/180) -> 0 | M283: =Harmonischen!$C$62/100*SIN(C283*$M$191*PI()/180) -> 0 | N283: =Harmonischen!$C$63/100*SIN($C283*$N$191*PI()/180) -> 0 | O283: =Harmonischen!$C$64/100*SIN($C283*$O$191*PI()/180) -> 0 | P283: =Harmonischen!$C$65/100*SIN($C283*$P$191*PI()/180) -> 0 | Q283: =Harmonischen!$C$66/100*SIN($C283*$Q$191*PI()/180) -> 0 | R283: =Harmonischen!$C$67/100*SIN($C283*$R$191*PI()/180) -> 0 | S283: =Harmonischen!$C$68/100*SIN($C283*$S$191*PI()/180) -> 0 | T283: =Harmonischen!$C$69/100*SIN($C283*$T$191*PI()/180) -> 0 | U283: =Harmonischen!$C$70/100*SIN($C283*$U$191*PI()/180) -> 0 | V283: =Harmonischen!$C$71/100*SIN($C283*$V$191*PI()/180) -> 0 | W283: =Harmonischen!$C$72/100*SIN($C283*$W$191*PI()/180) -> 0 | X283: =Harmonischen!$C$73/100*SIN($C283*$X$191*PI()/180) -> 0 | Y283: =Harmonischen!$C$74/100*SIN($C283*$Y$191*PI()/180) -> 0 | Z283: =Harmonischen!$C$75/100*SIN($C283*$Z$191*PI()/180) -> 0 | AA283: =Harmonischen!$C$76/100*SIN($C283*$AA$191*PI()/180) -> 0 | AB283: =Harmonischen!$C$77/100*SIN($C283*$AB$191*PI()/180) -> 0 | AD283: 0.8001217882
C284: 92 | D284: =Harmonischen!$C$53/100*SIN(C284*PI()/180) -> 0.999390827 | E284: =Harmonischen!$C$54/100*SIN(C284*$E$191*PI()/180) -> 0 | F284: =Harmonischen!$C$55/100*SIN(C284*$F$191*PI()/180) -> -0.1989043791 | G284: =Harmonischen!$C$56/100*SIN(C284*$G$191*PI()/180) -> 0 | H284: =Harmonischen!$C$57/100*SIN(C284*$H$191*PI()/180) -> 0 | I284: =Harmonischen!$C$58/100*SIN(C284*$I$191*PI()/180) -> 0 | J284: =Harmonischen!$C$59/100*SIN(C284*$J$191*PI()/180) -> 0 | K284: =Harmonischen!$C$60/100*SIN(C284*$K$191*PI()/180) -> 0 | L284: =Harmonischen!$C$61/100*SIN(C284*$L$191*PI()/180) -> 0 | M284: =Harmonischen!$C$62/100*SIN(C284*$M$191*PI()/180) -> 0 | N284: =Harmonischen!$C$63/100*SIN($C284*$N$191*PI()/180) -> 0 | O284: =Harmonischen!$C$64/100*SIN($C284*$O$191*PI()/180) -> 0 | P284: =Harmonischen!$C$65/100*SIN($C284*$P$191*PI()/180) -> 0 | Q284: =Harmonischen!$C$66/100*SIN($C284*$Q$191*PI()/180) -> 0 | R284: =Harmonischen!$C$67/100*SIN($C284*$R$191*PI()/180) -> 0 | S284: =Harmonischen!$C$68/100*SIN($C284*$S$191*PI()/180) -> 0 | T284: =Harmonischen!$C$69/100*SIN($C284*$T$191*PI()/180) -> 0 | U284: =Harmonischen!$C$70/100*SIN($C284*$U$191*PI()/180) -> 0 | V284: =Harmonischen!$C$71/100*SIN($C284*$V$191*PI()/180) -> 0 | W284: =Harmonischen!$C$72/100*SIN($C284*$W$191*PI()/180) -> 0 | X284: =Harmonischen!$C$73/100*SIN($C284*$X$191*PI()/180) -> 0 | Y284: =Harmonischen!$C$74/100*SIN($C284*$Y$191*PI()/180) -> 0 | Z284: =Harmonischen!$C$75/100*SIN($C284*$Z$191*PI()/180) -> 0 | AA284: =Harmonischen!$C$76/100*SIN($C284*$AA$191*PI()/180) -> 0 | AB284: =Harmonischen!$C$77/100*SIN($C284*$AB$191*PI()/180) -> 0 | AD284: 0.8004864479
C285: 93 | D285: =Harmonischen!$C$53/100*SIN(C285*PI()/180) -> 0.9986295348 | E285: =Harmonischen!$C$54/100*SIN(C285*$E$191*PI()/180) -> 0 | F285: =Harmonischen!$C$55/100*SIN(C285*$F$191*PI()/180) -> -0.1975376681 | G285: =Harmonischen!$C$56/100*SIN(C285*$G$191*PI()/180) -> 0 | H285: =Harmonischen!$C$57/100*SIN(C285*$H$191*PI()/180) -> 0 | I285: =Harmonischen!$C$58/100*SIN(C285*$I$191*PI()/180) -> 0 | J285: =Harmonischen!$C$59/100*SIN(C285*$J$191*PI()/180) -> 0 | K285: =Harmonischen!$C$60/100*SIN(C285*$K$191*PI()/180) -> 0 | L285: =Harmonischen!$C$61/100*SIN(C285*$L$191*PI()/180) -> 0 | M285: =Harmonischen!$C$62/100*SIN(C285*$M$191*PI()/180) -> 0 | N285: =Harmonischen!$C$63/100*SIN($C285*$N$191*PI()/180) -> 0 | O285: =Harmonischen!$C$64/100*SIN($C285*$O$191*PI()/180) -> 0 | P285: =Harmonischen!$C$65/100*SIN($C285*$P$191*PI()/180) -> 0 | Q285: =Harmonischen!$C$66/100*SIN($C285*$Q$191*PI()/180) -> 0 | R285: =Harmonischen!$C$67/100*SIN($C285*$R$191*PI()/180) -> 0 | S285: =Harmonischen!$C$68/100*SIN($C285*$S$191*PI()/180) -> 0 | T285: =Harmonischen!$C$69/100*SIN($C285*$T$191*PI()/180) -> 0 | U285: =Harmonischen!$C$70/100*SIN($C285*$U$191*PI()/180) -> 0 | V285: =Harmonischen!$C$71/100*SIN($C285*$V$191*PI()/180) -> 0 | W285: =Harmonischen!$C$72/100*SIN($C285*$W$191*PI()/180) -> 0 | X285: =Harmonischen!$C$73/100*SIN($C285*$X$191*PI()/180) -> 0 | Y285: =Harmonischen!$C$74/100*SIN($C285*$Y$191*PI()/180) -> 0 | Z285: =Harmonischen!$C$75/100*SIN($C285*$Z$191*PI()/180) -> 0 | AA285: =Harmonischen!$C$76/100*SIN($C285*$AA$191*PI()/180) -> 0 | AB285: =Harmonischen!$C$77/100*SIN($C285*$AB$191*PI()/180) -> 0 | AD285: 0.8010918666
C286: 94 | D286: =Harmonischen!$C$53/100*SIN(C286*PI()/180) -> 0.9975640503 | E286: =Harmonischen!$C$54/100*SIN(C286*$E$191*PI()/180) -> 0 | F286: =Harmonischen!$C$55/100*SIN(C286*$F$191*PI()/180) -> -0.1956295201 | G286: =Harmonischen!$C$56/100*SIN(C286*$G$191*PI()/180) -> 0 | H286: =Harmonischen!$C$57/100*SIN(C286*$H$191*PI()/180) -> 0 | I286: =Harmonischen!$C$58/100*SIN(C286*$I$191*PI()/180) -> 0 | J286: =Harmonischen!$C$59/100*SIN(C286*$J$191*PI()/180) -> 0 | K286: =Harmonischen!$C$60/100*SIN(C286*$K$191*PI()/180) -> 0 | L286: =Harmonischen!$C$61/100*SIN(C286*$L$191*PI()/180) -> 0 | M286: =Harmonischen!$C$62/100*SIN(C286*$M$191*PI()/180) -> 0 | N286: =Harmonischen!$C$63/100*SIN($C286*$N$191*PI()/180) -> 0 | O286: =Harmonischen!$C$64/100*SIN($C286*$O$191*PI()/180) -> 0 | P286: =Harmonischen!$C$65/100*SIN($C286*$P$191*PI()/180) -> 0 | Q286: =Harmonischen!$C$66/100*SIN($C286*$Q$191*PI()/180) -> 0 | R286: =Harmonischen!$C$67/100*SIN($C286*$R$191*PI()/180) -> 0 | S286: =Harmonischen!$C$68/100*SIN($C286*$S$191*PI()/180) -> 0 | T286: =Harmonischen!$C$69/100*SIN($C286*$T$191*PI()/180) -> 0 | U286: =Harmonischen!$C$70/100*SIN($C286*$U$191*PI()/180) -> 0 | V286: =Harmonischen!$C$71/100*SIN($C286*$V$191*PI()/180) -> 0 | W286: =Harmonischen!$C$72/100*SIN($C286*$W$191*PI()/180) -> 0 | X286: =Harmonischen!$C$73/100*SIN($C286*$X$191*PI()/180) -> 0 | Y286: =Harmonischen!$C$74/100*SIN($C286*$Y$191*PI()/180) -> 0 | Z286: =Harmonischen!$C$75/100*SIN($C286*$Z$191*PI()/180) -> 0 | AA286: =Harmonischen!$C$76/100*SIN($C286*$AA$191*PI()/180) -> 0 | AB286: =Harmonischen!$C$77/100*SIN($C286*$AB$191*PI()/180) -> 0 | AD286: 0.8019345301
C287: 95 | D287: =Harmonischen!$C$53/100*SIN(C287*PI()/180) -> 0.9961946981 | E287: =Harmonischen!$C$54/100*SIN(C287*$E$191*PI()/180) -> 0 | F287: =Harmonischen!$C$55/100*SIN(C287*$F$191*PI()/180) -> -0.1931851653 | G287: =Harmonischen!$C$56/100*SIN(C287*$G$191*PI()/180) -> 0 | H287: =Harmonischen!$C$57/100*SIN(C287*$H$191*PI()/180) -> 0 | I287: =Harmonischen!$C$58/100*SIN(C287*$I$191*PI()/180) -> 0 | J287: =Harmonischen!$C$59/100*SIN(C287*$J$191*PI()/180) -> 0 | K287: =Harmonischen!$C$60/100*SIN(C287*$K$191*PI()/180) -> 0 | L287: =Harmonischen!$C$61/100*SIN(C287*$L$191*PI()/180) -> 0 | M287: =Harmonischen!$C$62/100*SIN(C287*$M$191*PI()/180) -> 0 | N287: =Harmonischen!$C$63/100*SIN($C287*$N$191*PI()/180) -> 0 | O287: =Harmonischen!$C$64/100*SIN($C287*$O$191*PI()/180) -> 0 | P287: =Harmonischen!$C$65/100*SIN($C287*$P$191*PI()/180) -> 0 | Q287: =Harmonischen!$C$66/100*SIN($C287*$Q$191*PI()/180) -> 0 | R287: =Harmonischen!$C$67/100*SIN($C287*$R$191*PI()/180) -> 0 | S287: =Harmonischen!$C$68/100*SIN($C287*$S$191*PI()/180) -> 0 | T287: =Harmonischen!$C$69/100*SIN($C287*$T$191*PI()/180) -> 0 | U287: =Harmonischen!$C$70/100*SIN($C287*$U$191*PI()/180) -> 0 | V287: =Harmonischen!$C$71/100*SIN($C287*$V$191*PI()/180) -> 0 | W287: =Harmonischen!$C$72/100*SIN($C287*$W$191*PI()/180) -> 0 | X287: =Harmonischen!$C$73/100*SIN($C287*$X$191*PI()/180) -> 0 | Y287: =Harmonischen!$C$74/100*SIN($C287*$Y$191*PI()/180) -> 0 | Z287: =Harmonischen!$C$75/100*SIN($C287*$Z$191*PI()/180) -> 0 | AA287: =Harmonischen!$C$76/100*SIN($C287*$AA$191*PI()/180) -> 0 | AB287: =Harmonischen!$C$77/100*SIN($C287*$AB$191*PI()/180) -> 0 | AD287: 0.8030095328
C288: 96 | D288: =Harmonischen!$C$53/100*SIN(C288*PI()/180) -> 0.9945218954 | E288: =Harmonischen!$C$54/100*SIN(C288*$E$191*PI()/180) -> 0 | F288: =Harmonischen!$C$55/100*SIN(C288*$F$191*PI()/180) -> -0.1902113033 | G288: =Harmonischen!$C$56/100*SIN(C288*$G$191*PI()/180) -> 0 | H288: =Harmonischen!$C$57/100*SIN(C288*$H$191*PI()/180) -> 0 | I288: =Harmonischen!$C$58/100*SIN(C288*$I$191*PI()/180) -> 0 | J288: =Harmonischen!$C$59/100*SIN(C288*$J$191*PI()/180) -> 0 | K288: =Harmonischen!$C$60/100*SIN(C288*$K$191*PI()/180) -> 0 | L288: =Harmonischen!$C$61/100*SIN(C288*$L$191*PI()/180) -> 0 | M288: =Harmonischen!$C$62/100*SIN(C288*$M$191*PI()/180) -> 0 | N288: =Harmonischen!$C$63/100*SIN($C288*$N$191*PI()/180) -> 0 | O288: =Harmonischen!$C$64/100*SIN($C288*$O$191*PI()/180) -> 0 | P288: =Harmonischen!$C$65/100*SIN($C288*$P$191*PI()/180) -> 0 | Q288: =Harmonischen!$C$66/100*SIN($C288*$Q$191*PI()/180) -> 0 | R288: =Harmonischen!$C$67/100*SIN($C288*$R$191*PI()/180) -> 0 | S288: =Harmonischen!$C$68/100*SIN($C288*$S$191*PI()/180) -> 0 | T288: =Harmonischen!$C$69/100*SIN($C288*$T$191*PI()/180) -> 0 | U288: =Harmonischen!$C$70/100*SIN($C288*$U$191*PI()/180) -> 0 | V288: =Harmonischen!$C$71/100*SIN($C288*$V$191*PI()/180) -> 0 | W288: =Harmonischen!$C$72/100*SIN($C288*$W$191*PI()/180) -> 0 | X288: =Harmonischen!$C$73/100*SIN($C288*$X$191*PI()/180) -> 0 | Y288: =Harmonischen!$C$74/100*SIN($C288*$Y$191*PI()/180) -> 0 | Z288: =Harmonischen!$C$75/100*SIN($C288*$Z$191*PI()/180) -> 0 | AA288: =Harmonischen!$C$76/100*SIN($C288*$AA$191*PI()/180) -> 0 | AB288: =Harmonischen!$C$77/100*SIN($C288*$AB$191*PI()/180) -> 0 | AD288: 0.8043105921
C289: 97 | D289: =Harmonischen!$C$53/100*SIN(C289*PI()/180) -> 0.9925461516 | E289: =Harmonischen!$C$54/100*SIN(C289*$E$191*PI()/180) -> 0 | F289: =Harmonischen!$C$55/100*SIN(C289*$F$191*PI()/180) -> -0.1867160853 | G289: =Harmonischen!$C$56/100*SIN(C289*$G$191*PI()/180) -> 0 | H289: =Harmonischen!$C$57/100*SIN(C289*$H$191*PI()/180) -> 0 | I289: =Harmonischen!$C$58/100*SIN(C289*$I$191*PI()/180) -> 0 | J289: =Harmonischen!$C$59/100*SIN(C289*$J$191*PI()/180) -> 0 | K289: =Harmonischen!$C$60/100*SIN(C289*$K$191*PI()/180) -> 0 | L289: =Harmonischen!$C$61/100*SIN(C289*$L$191*PI()/180) -> 0 | M289: =Harmonischen!$C$62/100*SIN(C289*$M$191*PI()/180) -> 0 | N289: =Harmonischen!$C$63/100*SIN($C289*$N$191*PI()/180) -> 0 | O289: =Harmonischen!$C$64/100*SIN($C289*$O$191*PI()/180) -> 0 | P289: =Harmonischen!$C$65/100*SIN($C289*$P$191*PI()/180) -> 0 | Q289: =Harmonischen!$C$66/100*SIN($C289*$Q$191*PI()/180) -> 0 | R289: =Harmonischen!$C$67/100*SIN($C289*$R$191*PI()/180) -> 0 | S289: =Harmonischen!$C$68/100*SIN($C289*$S$191*PI()/180) -> 0 | T289: =Harmonischen!$C$69/100*SIN($C289*$T$191*PI()/180) -> 0 | U289: =Harmonischen!$C$70/100*SIN($C289*$U$191*PI()/180) -> 0 | V289: =Harmonischen!$C$71/100*SIN($C289*$V$191*PI()/180) -> 0 | W289: =Harmonischen!$C$72/100*SIN($C289*$W$191*PI()/180) -> 0 | X289: =Harmonischen!$C$73/100*SIN($C289*$X$191*PI()/180) -> 0 | Y289: =Harmonischen!$C$74/100*SIN($C289*$Y$191*PI()/180) -> 0 | Z289: =Harmonischen!$C$75/100*SIN($C289*$Z$191*PI()/180) -> 0 | AA289: =Harmonischen!$C$76/100*SIN($C289*$AA$191*PI()/180) -> 0 | AB289: =Harmonischen!$C$77/100*SIN($C289*$AB$191*PI()/180) -> 0 | AD289: 0.8058300663
C290: 98 | D290: =Harmonischen!$C$53/100*SIN(C290*PI()/180) -> 0.9902680687 | E290: =Harmonischen!$C$54/100*SIN(C290*$E$191*PI()/180) -> 0 | F290: =Harmonischen!$C$55/100*SIN(C290*$F$191*PI()/180) -> -0.1827090915 | G290: =Harmonischen!$C$56/100*SIN(C290*$G$191*PI()/180) -> 0 | H290: =Harmonischen!$C$57/100*SIN(C290*$H$191*PI()/180) -> 0 | I290: =Harmonischen!$C$58/100*SIN(C290*$I$191*PI()/180) -> 0 | J290: =Harmonischen!$C$59/100*SIN(C290*$J$191*PI()/180) -> 0 | K290: =Harmonischen!$C$60/100*SIN(C290*$K$191*PI()/180) -> 0 | L290: =Harmonischen!$C$61/100*SIN(C290*$L$191*PI()/180) -> 0 | M290: =Harmonischen!$C$62/100*SIN(C290*$M$191*PI()/180) -> 0 | N290: =Harmonischen!$C$63/100*SIN($C290*$N$191*PI()/180) -> 0 | O290: =Harmonischen!$C$64/100*SIN($C290*$O$191*PI()/180) -> 0 | P290: =Harmonischen!$C$65/100*SIN($C290*$P$191*PI()/180) -> 0 | Q290: =Harmonischen!$C$66/100*SIN($C290*$Q$191*PI()/180) -> 0 | R290: =Harmonischen!$C$67/100*SIN($C290*$R$191*PI()/180) -> 0 | S290: =Harmonischen!$C$68/100*SIN($C290*$S$191*PI()/180) -> 0 | T290: =Harmonischen!$C$69/100*SIN($C290*$T$191*PI()/180) -> 0 | U290: =Harmonischen!$C$70/100*SIN($C290*$U$191*PI()/180) -> 0 | V290: =Harmonischen!$C$71/100*SIN($C290*$V$191*PI()/180) -> 0 | W290: =Harmonischen!$C$72/100*SIN($C290*$W$191*PI()/180) -> 0 | X290: =Harmonischen!$C$73/100*SIN($C290*$X$191*PI()/180) -> 0 | Y290: =Harmonischen!$C$74/100*SIN($C290*$Y$191*PI()/180) -> 0 | Z290: =Harmonischen!$C$75/100*SIN($C290*$Z$191*PI()/180) -> 0 | AA290: =Harmonischen!$C$76/100*SIN($C290*$AA$191*PI()/180) -> 0 | AB290: =Harmonischen!$C$77/100*SIN($C290*$AB$191*PI()/180) -> 0 | AD290: 0.8075589772
C291: 99 | D291: =Harmonischen!$C$53/100*SIN(C291*PI()/180) -> 0.9876883406 | E291: =Harmonischen!$C$54/100*SIN(C291*$E$191*PI()/180) -> 0 | F291: =Harmonischen!$C$55/100*SIN(C291*$F$191*PI()/180) -> -0.1782013048 | G291: =Harmonischen!$C$56/100*SIN(C291*$G$191*PI()/180) -> 0 | H291: =Harmonischen!$C$57/100*SIN(C291*$H$191*PI()/180) -> 0 | I291: =Harmonischen!$C$58/100*SIN(C291*$I$191*PI()/180) -> 0 | J291: =Harmonischen!$C$59/100*SIN(C291*$J$191*PI()/180) -> 0 | K291: =Harmonischen!$C$60/100*SIN(C291*$K$191*PI()/180) -> 0 | L291: =Harmonischen!$C$61/100*SIN(C291*$L$191*PI()/180) -> 0 | M291: =Harmonischen!$C$62/100*SIN(C291*$M$191*PI()/180) -> 0 | N291: =Harmonischen!$C$63/100*SIN($C291*$N$191*PI()/180) -> 0 | O291: =Harmonischen!$C$64/100*SIN($C291*$O$191*PI()/180) -> 0 | P291: =Harmonischen!$C$65/100*SIN($C291*$P$191*PI()/180) -> 0 | Q291: =Harmonischen!$C$66/100*SIN($C291*$Q$191*PI()/180) -> 0 | R291: =Harmonischen!$C$67/100*SIN($C291*$R$191*PI()/180) -> 0 | S291: =Harmonischen!$C$68/100*SIN($C291*$S$191*PI()/180) -> 0 | T291: =Harmonischen!$C$69/100*SIN($C291*$T$191*PI()/180) -> 0 | U291: =Harmonischen!$C$70/100*SIN($C291*$U$191*PI()/180) -> 0 | V291: =Harmonischen!$C$71/100*SIN($C291*$V$191*PI()/180) -> 0 | W291: =Harmonischen!$C$72/100*SIN($C291*$W$191*PI()/180) -> 0 | X291: =Harmonischen!$C$73/100*SIN($C291*$X$191*PI()/180) -> 0 | Y291: =Harmonischen!$C$74/100*SIN($C291*$Y$191*PI()/180) -> 0 | Z291: =Harmonischen!$C$75/100*SIN($C291*$Z$191*PI()/180) -> 0 | AA291: =Harmonischen!$C$76/100*SIN($C291*$AA$191*PI()/180) -> 0 | AB291: =Harmonischen!$C$77/100*SIN($C291*$AB$191*PI()/180) -> 0 | AD291: 0.8094870358
... 261 more rows

Sheet Sheet1 (2) (hidden)
A1: voorbeeld IEC60909 deel 4 pagina 37
B13: netgegevens
B14: Un | C14: 20 | D14: kV
B15: Iq | C15: 10 | D15: kA
B16: c | C16: 1.1
B17: Rq | C17: 0.1 | D17: Xq
B18: Xq | C18: 0.995 | D18: Zq
B27: de impedantie van het net
B28: Zq | C28: =C16*C14/3^0.5/C15 -> 1.270170592
B30: Trafo gegevens
B31: St | C31: 630 | D31: kVA
B32: Uhv | C32: 20 | D32: kV
B33: Ulv | C33: 0.41 | D33: kV
B34: uk | C34: 4 | D34: % | I34: Z= c_ * U_grid / Ik/ √ 3 | K34: 1.270170592 | L34: Ω | N34: =(C32/C33)^2 -> 2379.53599 | O34: =K34/N34 -> 0.0005337891914
B35: Pt | C35: 6.5 | D35: kW | I35: met de verhouding R/X die is gegeven | J35: r/x | K35: 0.1 | N35: =(C33/C34)^2 -> 0.01050625 | O35: =K35/N35 -> 9.518143962
B36: R0/Rt | C36: 1 | I36: R= √ ( z^2/(1+(R/X)^2) | J36: r | K36: 0.1263866977 | L36: Ω | N36: =(C34/C35)^2 -> 0.3786982249 | O36: =K36/N36 -> 0.3337398737
B37: X0/Xt | C37: 0.95 | I37: en X is dan | J37: x | K37: 1.263866977 | L37: Ω | N37: =(C35/C36)^2 -> 42.25 | O37: =K37/N37 -> 0.02991401129
B42: tr^2
B45: getransformeerd naar LV zijde
B46: ZqLV | C46: =C28/N34 -> 0.0005337891914 | D46: Ω
B47: Xq | C47: =C46*C18 -> 0.0005311202454 | D47: Ω
B48: Rq | C48: =C17*C47 -> 5.311202454e-05 | D48: Ω
B51: Berekening impedantie transformator
B67: Zt | C67: =C34/100*C33^2/C31 -> 1.067301587e-05 | E67: =(2.68^2+10.054^2)^0.5 -> 10.40506204
B69: Rt

Sheet netberekening maximaal (hidden)
B2: Zie examples of short circuit calc in cahier Technique Schneider Electric no 158 page 28
B3: In het geel zijn de ingegeven waarden | C3: Drie fasen sluiting | J3: eenfase sluiting. | P3: Eenfase met aardscherm
B5: voor middenspanning c | D5: 1.1
B7: Deze waarde geldt voor het hele systeem | C7: Sbase | D7: 300 | E7: MVA
B9: Temperatuur waarbij Rcable is gemeten | C9: Tcable | D9: 90 | E9: [°C]
B10: Temp van geleider aan het einde van de kortsluiting | C10: T max | D10: 250 | E10: [°C]
B11: Minimum of maximum afhankelijk | C11: (XLPE) | D11: =OperatingTemperature(E6,D10) -> 20 | E11: [°C]
B13: Gegevens van het net | C13: U_grid | D13: 20 | E13: kV
C14: S_Grid | D14: 132 | E14: MVA
C15: R/X | D15: 0.125
B17: Hieruit volgt | C17: Ik | D17: =S_Grid/3^0.5/U_grid -> 3.810511777 | E17: kA
B18: de spanning op dit punt | C18: U BASE | D18: =U_grid -> 20 | E18: kV | O18: U BASE | P18: 0.4 | Q18: kV
B19: ZBase =UBase^2/S_gridBase | C19: Z BASE | D19: =D18^2/S_gridBase -> 1.333333333 | E19: Ω | O19: Z BASE | P19: =P18^2/S_gridBase -> 0.0005333333333 | Q19: Ω
B20: Voor Z volgt
B21: Z= c_ * U_grid / Ik/ √ 3 | D21: =IF(U_grid<=1,c_LS,c_MS)*U_grid/D17/3^0.5 -> 3.333333333 | E21: Ω
B22: met de verhouding R/X die is gegeven | C22: R/X | D22: =D15 -> 0.125
B23: R= √ ( z^2/(1+(R/X)^2) | C23: r | D23: =D24*D22 -> 0.4134491153 | E23: Ω | G23: =D23/D19 -> 0.3100868365 | H23: pu | O23: =G23 -> 0.3100868365 | Q23: =O23*P19 -> 0.0001653796461
B24: en X is dan | C24: x | D24: =D21/(1+D22^2)^0.5 -> 3.307592922 | E24: Ω | G24: =D24/D19 -> 2.480694692 | H24: pu | O24: =G24 -> 2.480694692 | Q24: =O24*P19 -> 0.001323037169
B27: Kabelgegevens
B28: length | C28: L_cable | D28: 0 | E28: m | I28: =C28 -> L_cable | J28: 0 | K28: m
B29: diameter | C29: A_cable | D29: 185 | E29: mm2 | I29: A_cable | J29: 185 | K29: mm2
B30: kind | C30: soort | D30: al | E30: =IF(D30="Al",4,2) -> 4 | I30: soort | J30: al | K30: =IF(J30="Al",4,2) -> 4
B31: phases | C31: fasen | D31: 3 | I31: fasen | J31: 3
B32: parallel | C32: parallel | D32: 2 | I32: parallel | J32: 2
B33: (see Elek Energieverteilung seite 297)
B34: Rcable bij bedrijfstemperatuur | C34: R | D34: =VLOOKUP(D29,weerstand,E30+1) -> 0.208 | E34: Ω/km | I34: =C34 -> R | J34: =D34 -> 0.208 | K34: Ω/km
B35: reactantie | C35: X | D35: =VLOOKUP(D29,weerstand,E30) -> 0.068 | E35: Ω/km | I35: =C35 -> X | J35: =D35 -> 0.068 | K35: Ω/km
C37: Ro/Rl | D37: 3.7 | I37: =C37 -> Ro/Rl | J37: 3.7
C38: Xo/X | D38: 1.81 | I38: =C38 -> Xo/X | J38: 1.81
B41: de spanning op dit punt! | C41: U BASE | D41: =D18 -> 20 | I41: =C41 -> U BASE | J41: =D41 -> 20
C42: Z BASE | D42: =D41^2/S_gridBase -> 1.333333333 | I42: =C42 -> Z BASE | J42: =J41^2/S_gridBase -> 1.333333333
B43: correctie factor low voltage | C43: c | D43: =c_MS -> 1.1 | I43: =C43 -> c | J43: =D43 -> 1.1
B45: en de weerstand | C45: Rcable | D45: =D34*D28/1000/D32 -> 0 | E45: Ω | G45: =X_cable2/D42 -> 0.000312 | H45: pu | I45: =C45 -> Rcable | J45: =J34*J28/1000/J32*J37 -> 0 | K45: Ω | M45: =J45/J42 -> 0 | N45: pu
B46: wordt de reactantie | C46: Xcable | D46: =D35*D28/1000/D32 -> 0 | E46: Ω | G46: =R_cable2/D42 -> 0.000102 | H46: pu | I46: =C46 -> Xcable | J46: =J35*J28/1000/J32*J38 -> 0 | K46: Ω | M46: =J46/J42 -> 0 | N46: pu
B48: Ter controle staan hier de impdanties terug gerekend vanuit de pu waarden
B49: R * Zbase | D49: =G49*D42 -> 0.4138651153 | E49: Ω | G49: =G45+G23 -> 0.3103988365 | H49: pu
B50: X * Zbase | D50: =G50*D42 -> 3.307728922 | E50: Ω | G50: =G46+G24 -> 2.480796692 | H50: pu
B52: Z totaal | D52: =G52*D42 -> 3.333519905 | E52: Ω | G52: =(G50^2+G49^2)^0.5 -> 2.500139929 | H52: pu
B53: Voor de kortsluitstroom op het eind van de kabel geldt | D53: =Kortsluitstroom(D43,D41,D52) -> 3.810298508 | E53: kA
C54: Ip | D54: =SQRT(2)*D53*(1.022+0.96899*EXP(-3.0301*D49/D50)) -> 9.081005521
B57: Transformator
C58: U BASE | D58: =U_grid -> 20 | I58: =C58 -> U BASE | J58: 20
C59: Z BASE | D59: =D58^2/S_gridBase -> 1.333333333 | I59: Z BASE | J59: 1.333333333
B60: Nominaal vermogen | C60: S_T1 | D60: 10 | E60: MVA | I60: S_T1 | J60: 10 | K60: MVA
B61: kortsluitspanning | C61: Uk_T1 | D61: 8 | E61: % | I61: Uk_T1 | J61: 8 | K61: %
B62: Primaire spanning | C62: Up_T1 | D62: =U_grid -> 20 | E62: =E13 -> kV | I62: Up_T1 | J62: 20 | K62: =K13 -> 0
B63: Secundaire spanning | C63: Us_T1 | D63: 10.75 | E63: kV | I63: Us_T1 | J63: 10.75 | K63: kV | O63: =(4.83^2+1.25^2)^0.5 -> 4.98912818
B64: verhouding zero sequence/ positive seq | C64: R0/Rt | D64: 1 | I64: R0/Rt | J64: 1
B65: verhouding zero sequence/ positive seq | C65: X0/Xt | D65: 0.95 | I65: X0/Xt | J65: 0.95
B68: Verlies | C68: Pk | D68: 100 | E68: kW | I68: =C68 -> Pk | J68: =D68 -> 100 | K68: kW
I69: =C69 -> 0 | J69: =D69 -> 0
B70: I_nominal transformer [A] primary | D70: =S_T1/Up_T1/(3^0.5)*1000 -> 288.6751346 | E70: A | J70: =S_T1/Up_T1/(3^0.5)*1000 -> 288.6751346 | K70: A
B71: I_nominal transformer [A] secundary | D71: =S_T1*1000/Us_T1/(3^0.5) -> 537.0700179 | E71: A | J71: =S_T1*1000/Us_T1/(3^0.5) -> 537.0700179 | K71: A
B72: Kortsluitstroom trafo zonder kabel | D72: =S_T1/3^0.5/Uk_T1/Us_T1*100 -> 6.713375223 | E72: A | J72: =S_T1/3^0.5/Uk_T1/Us_T1*100 -> 6.713375223 | K72: kA
C73: U BASE | D73: =Us_T1 -> 10.75 | I73: =C73 -> U BASE | J73: =Us_T1 -> 10.75
C74: Z BASE | D74: =D73^2/S_gridBase -> 0.3852083333 | I74: =C74 -> Z BASE | J74: =J73^2/S_gridBase -> 0.3852083333
B78: De Z van de transformator | C78: Zt | D78: =Uk_T1/100*Us_T1^2/S_T1*1000 -> 924.5 | E78: Ω
B79: De Rt van de transformator | C79: Rt | D79: =D68*Us_T1^2/(S_T1^2)*1000 -> 115562.5 | E79: Ω | I79: Ro | J79: =D79*J64 -> 115562.5 | K79: Ω
B80: en hieruit volgt de Xt | C80: Xt | D80: =(D78^2-D79^2)^0.5 ->  | E80: Ω | I80: Xo | J80: =D80*J65 ->  | K80: Ω
O81: =D91/D90 -> 
C82: ur | D82: =D68/S_T1/1000*100 -> 1 | E82: % | I82: =C82 -> ur | J82: =J68/S_T1/1000*100 -> 1 | K82: %
C83: ux | D83: =(Uk_T1^2-D82^2)^0.5 -> 7.937253933 | E83: % | I83: =C83 -> ux | J83: =(Uk_T1^2-J82^2)^0.5 -> 7.937253933 | K83: %
C84: xt | D84: =D80*S_T1/Us_T1^2/1000 ->  | I84: =C84 -> xt | J84: =J83/100 -> 0.07937253933
B85: correctie factor low voltage | C85: c | D85: 1.1 | I85: =C85 -> c | J85: =D85 -> 1.1
C86: Kt | D86: =0.95*1.05/(1+(0.6*D84)) ->  | I86: =C86 -> Kt | J86: 1
B87: 0.95*D85/(1+0.6*D84)
C88: Z_T1 | D88: =D78*D86 ->  | E88: Ω
O89: Z | Q89: =D95 ->  | R89: Ω
C90: Rt*Kt | D90: =D79*D86 ->  | E90: Ω | G90: =D90/D74 ->  | H90: pu | I90: R0*Kt | J90: =J79*J86 -> 115562.5 | K90: Ω | M90: =J90/J74 -> 300000 | N90: pu | Q90: =D96 ->  | R90: jΩ
C91: Xt*Kt | D91: =D80*D86 ->  | E91: Ω | G91: =D91/D74 ->  | H91: pu | I91: X0*Kt | J91: =J80*J86 ->  | K91: Ω | M91: =J91/J74 ->  | N91: pu | O91: Zo | Q91: =J90 -> 115562.5 | R91: Ω
Q92: =J91 ->  | R92: jΩ
B93: De totale impedantie is dan | O93: 2Z+Zo | Q93: =Q89*2+Q91 ->  | R93: Ω
C94: X/R | D94: =(D96/D95)^-1 ->  | Q94: =Q90*2+Q92 ->  | R94: jΩ
C95: R | D95: =G95*D$74 ->  | G95: =G90+G49 ->  | H95: pu | Q95: =(Q93^2+Q94^2)^0.5 ->  | R95: Ω
C96: X | D96: =G96*D$74 ->  | G96: =G91+G50 ->  | H96: pu
B97: en voor Z geldt dan | C97: Z | D97: =SQRT(D95^2+D96^2) ->  | E97: Ω | G97: =(G96^2+G95^2)^0.5 -> 
B98: en voor de kortsluitstroom c * Us_T1 / √ 3 / Z | C98: Ik | D98: =Kortsluitstroom(D85,D73,D97) ->  | E98: kA | O98: Ik | P98: =3^0.5*J85*J73/Q95 ->  | Q98: kA
C99: Ip | D99: =SQRT(2)*D98*(1.022+0.96899*EXP(-3.0301*D95/D96)) ->  | E99: kA | O99: Ip | P99: =SQRT(2)*P98*(1.022+0.96899*EXP(-3.0301*Q93/Q94)) ->  | Q99: kA
B101: Kabelgegevens
B102: length | C102: L_cable | D102: 4 | E102: m | I102: =C102 -> L_cable | J102: 4 | K102: m | O102: L_cable | P102: =J102 -> 4 | Q102: m
B103: diameter | C103: A_cable | D103: 185 | E103: mm2 | I103: A_cable | J103: 185 | K103: mm2 | O103: =I103 -> A_cable | P103: =J103 -> 185 | Q103: mm2
B104: kind | C104: soort | D104: al | E104: =IF(D104="Al",4,2) -> 4 | I104: soort | J104: al | K104: =IF(J104="Al",4,2) -> 4 | O104: A_scherm | P104: 50 | Q104: mm2
B105: phases | C105: fasen | D105: 3 | I105: fasen | J105: 3
B106: parallel | C106: parallel | D106: 2 | I106: parallel | J106: 2
B107: (see Elek Energieverteilung seite 297)
B108: Rcable bij bedrijfstemperatuur | C108: R | D108: =VLOOKUP(D103,weerstand,E104+1) -> 0.208 | E108: Ω/km | I108: =C108 -> R | J108: =D108 -> 0.208 | K108: Ω/km | O108: Rfase | P108: =1/57/P103*1000 -> 0.09483167378 | Q108: Ω/km
B109: reactantie | C109: X | D109: =VLOOKUP(D103,weerstand,E104) -> 0.068 | E109: Ω/km | I109: =C109 -> X | J109: =D109 -> 0.068 | K109: Ω/km | O109: Xfase | P109: =D109 -> 0.068 | Q109: Ω/km
O110: Rscherm | P110: =1/57/P104*1000 -> 0.350877193 | Q110: Ω/km
C111: Ro/Rl | D111: 4.23 | I111: =C111 -> Ro/Rl | J111: =D111 -> 4.23 | O111: Xscherm | P111: =3*P109 -> 0.204 | Q111: Ω/km
C112: Xo/X | D112: 1.21 | I112: =C112 -> Xo/X | J112: =D112 -> 1.21
B115: de spanning op dit punt! | C115: U BASE | D115: =Us_T1 -> 10.75 | I115: =C115 -> U BASE | J115: =D115 -> 10.75
C116: Z BASE | D116: =D115^2/S_gridBase -> 0.3852083333 | I116: =C116 -> Z BASE | J116: =J115^2/S_gridBase -> 0.3852083333
B117: correctie factor low voltage | C117: c | D117: 1.05 | I117: =C117 -> c | J117: =D117 -> 1.05
B119: en de weerstand | C119: Rcable | D119: =_R20_2*D102/1000/D106 -> 0.000416 | E119: Ω | G119: =X_cable2/D116 -> 0.0010799351 | H119: pu | I119: =C119 -> Rcable | J119: =X_cable2*J111 -> 0.00175968 | K119: Ω | M119: =J119/J116 -> 0.004568125473 | N119: pu | O119: Rfase | P119: =P108*P$102/1000 -> 0.0003793266951 | Q119: Ω
B120: wordt de reactantie | C120: Xcable | D120: =D109*D102/1000/D106 -> 0.000136 | E120: Ω | G120: =R_cable2/D116 -> 0.0003530557058 | H120: pu | I120: =C120 -> Xcable | J120: =R_cable2*J112 -> 0.00016456 | K120: Ω | M120: =J120/J116 -> 0.000427197404 | N120: pu | O120: Xfase | P120: =P109*P$102/1000 -> 0.000272 | Q120: Ω
O121: Rscherm | P121: =P110*P$102/1000 -> 0.001403508772 | Q121: Ω
B122: Ter controle staan hier de impdanties terug gerekend vanuit de pu waarden
B123: R * Zbase | D123: =G123*D116 ->  | E123: Ω | G123: =G119+G95 ->  | H123: pu | I123: Z1=Z2=Zk | J123: =D123 ->  | K123: Ω | O123: Ro | P123: =P119+3*P121 -> 0.004589853011 | Q123: Ω
B124: X * Zbase | D124: =G124*D116 ->  | E124: Ω | G124: =G120+G96 ->  | H124: pu | J124: =D124 ->  | K124: Ω | O124: Xo | P124: =P111*P$102/1000 -> 0.000816 | Q124: Ω
B126: spanning | D126: 0.4 | E126: kV | I126: Z0 | J126: =M126*J116 -> 115562.5018 | K126: Ω | M126: =M119+M90+M45 -> 300000.0046 | N126: pu | O126: Zo | P126: =(P123^2+P124^2)^0.5 -> 0.004661824392 | Q126: Ω
B127: Z totaal | D127: =G127*D116 ->  | E127: Ω | G127: =(G124^2+G123^2)^0.5 ->  | H127: pu | J127: =M127*J116 ->  | K127: Ω | M127: =M120+M91+M46 ->  | N127: pu
B128: Voor de kortsluitstroom op het eind van de kabel geldt | D128: =Kortsluitstroom(D117,D126,D127) ->  | E128: kA | I128: Z1+Z2+Z0 | J128: =J123*2+J126 ->  | K128: Ω | O128: Zk | P128: =J123 ->  | Q128: Ω
C129: Ip | D129: =SQRT(2)*D128*(1.02+0.98*EXP(-3*D123/D124)) ->  | E129: kA | J129: =J124*2+J127 ->  | K129: Ω | P129: =J124 ->  | Q129: Ω
I130: Zo | J130: =(J128^2+J129^2)^0.5 ->  | K130: Ω | O130: 2Zk+Zo | P130: =2*P128+P123 ->  | Q130: Ω
I131: Iko" | J131: =J117*D126*3^0.5/J130 ->  | K131: kA | P131: =2*P129+P124 ->  | Q131: Ω
I132: Ip | J132: =SQRT(2)*J131*(1.02+0.98*EXP(-3*D123/D124)) ->  | K132: kA | P132: =(P130^2+P131^2)^0.5 ->  | Q132: Ω
I134: eenfasen sluitig | L134: Ik=3*U/(2*Z1+Zo) | O134: Ik"o | P134: =3^0.5*J117*J115/P132 ->  | Q134: kA
B142: Voor een eenfase naar aarde sluiting
B143: Ik
B147: Voor een driefasen sluiting
B148: twee fasen aarde sluiting | C148: Ik=3*U/(Z1+2*Zo)
B151: twee fasen sluiting | C151: Ik=U/(2*Z1)

Sheet Tabellen (2) (hidden)
C2: Table from Quercus book materiaalgegevens
C3: pag 66/177 and 69/177
I4: 10 kV kabel
D5: koper | F5: Al | J5: koper | L5: Al
C6: mm2 | D6: X | E6: R | F6: X | G6: R | I6: mm2 | J6: X | K6: R | L6: X | M6: R
C7: 25 | D7: 0.153 | E7: 0.927 | I7: 16 | J7: 0.14 | K7: 1.15 | O7: C-factor | P7: maximum | Q7: minimum
C8: 35 | D8: 0.093 | E8: 0.59 | G8: 1.113 | I8: 25 | J8: 0.13 | K8: 0.927 | O8: >100V to 1000V | P8: 1.05 | Q8: 0.95
C9: 50 | D9: 0.138 | E9: 0.493 | G9: 0.822 | I9: 35 | J9: 0.093 | K9: 0.59 | M9: 1.113 | O9: >1000 to 35kV | P9: 1.1 | Q9: 1
C10: 70 | D10: 0.129 | E10: 0.342 | F10: 0.141 | G10: 0.568 | I10: 50 | J10: 0.138 | K10: 0.493 | M10: 0.822 | O10: >35kV | P10: 1.1 | Q10: 1
C11: 95 | D11: 0.123 | E11: 0.247 | F11: 0.134 | G11: 0.411 | I11: 70 | J11: 0.129 | K11: 0.342 | L11: 0.141 | M11: 0.568
C12: 120 | D12: 0.119 | E12: 0.196 | F12: 0.13 | G12: 0.325 | I12: 95 | J12: 0.104 | K12: 0.247 | L12: 0.134 | M12: 0.411
C13: 150 | D13: 0.114 | E13: 0.159 | F13: 0.127 | G13: 0.265 | I13: 120 | J13: 0.119 | K13: 0.196 | L13: 0.13 | M13: 0.325
C14: 185 | D14: 0.111 | E14: 0.128 | F14: 0.068 | G14: 0.208 | I14: 150 | J14: 0.114 | K14: 0.159 | L14: 0.127 | M14: 0.265
C15: 240 | D15: 0.106 | E15: 0.099 | F15: 0.118 | G15: 0.162 | I15: 185 | J15: 0.111 | K15: 0.128 | L15: 0.122 | M15: 0.212
C16: 300 | D16: 0.103 | E16: 0.08 | F16: 0.114 | G16: 0.13 | I16: 240 | J16: 0.106 | K16: 0.099 | L16: 0.118 | M16: 0.162
C17: 400 | D17: 0.099 | E17: 0.065 | F17: 0.111 | G17: 0.103 | I17: 300 | J17: 0.103 | K17: 0.08 | L17: 0.114 | M17: 0.13
C18: 500 | D18: 0.095 | E18: 0.053 | F18: 0.107 | G18: 0.082 | I18: 400 | J18: 0.099 | K18: 0.065 | L18: 0.111 | M18: 0.103
C19: 630 | D19: 0.0097 | E19: 0.0361 | F19: 0.103 | G19: 0.065 | I19: 500 | J19: 0.095 | K19: 0.053 | L19: 0.107 | M19: 0.082
C20: 800 | F20: 0.101 | G20: 0.053 | I20: 630 | J20: 0.0097 | K20: 0.0361 | L20: 0.103 | M20: 0.065
I21: 800 | L21: 0.101 | M21: 0.053
C25: Nom [MVA] | D25: %Rpos | E25: %jXpos | F25: %Rzero | G25: %jXzero | H25: X/R
C26: 0.1 | D26: 2.1 | E26: 3.4044 | F26: 2.1 | G26: 3.4044 | H26: =E26/D26 -> 1.621142857 | I26: Transformer Cooling Characteristic | J26: Capacity Factor (may be changed)
C27: 0.16 | D27: 1.4688 | E27: 3.7206 | F27: 1.4688 | G27: 3.7206 | H27: 2.533088235 | I27: Dry Type | K27: 1
C28: 0.25 | D28: 1.3 | E28: 3.7829 | F28: 1.3 | G28: 3.7829 | H28: 2.909923077 | I28: Oil/Air Cooled (OA) | K28: 1.15
C29: 0.315 | D29: 1.2381 | E29: 3.8036 | F29: 1.2381 | G29: 3.8036 | H29: 3.072126646 | I29: Oil/Air/Forced Air (OAFA) | K29: 1.25
C30: 0.4 | D30: 1.15 | E30: 3.8311 | F30: 1.15 | G30: 3.8311 | H30: 3.331391304 | I30: Oil/Forced Air (FA) | K30: 1.33
C31: 0.5 | D31: 1.1 | E31: 3.8458 | F31: 1.1 | G31: 3.8458 | H31: 3.496181818
C32: 0.63 | D32: 1.0317 | E32: 3.8646 | F32: 1.0317 | G32: 3.8646 | H32: 3.745856354 | I32: full load size = nominal kVA * transformer capacity
C33: 0.8 | D33: 1.275 | E33: 4.3156 | F33: 1.275 | G33: 4.3156 | H33: 3.384784314
C34: 1 | D34: 1.21 | E34: 4.8514 | F34: 1.21 | G34: 4.8514 | H34: 4.009421488
C35: 1.25 | D35: 1.2 | E35: 5.3675 | F35: 1.2 | G35: 5.3675 | H35: 4.472916667
C36: 1.6 | D36: 1.1313 | E36: 5.8924 | F36: 1.1313 | G36: 5.8924 | H36: 5.20852117
C37: 2 | D37: 1.1 | E37: 6.4062 | F37: 1.1 | G37: 6.4062 | H37: 5.823818182
C38: 2.5 | D38: 1.12 | E38: 6.9098 | F38: 1.12 | G38: 6.9098 | H38: 6.169464286
C39: 3.15 | D39: 1.0476 | E39: 6.9212 | F39: 1.0476 | G39: 6.9212 | H39: 6.606720122
C40: 4 | D40: 1 | E40: 7.08 | F40: 1 | G40: 7.08 | H40: 7.08
C41: 5 | D41: 1 | E41: 7.08 | F41: 1 | G41: 7.08 | H41: 7.08
C42: 7.5 | D42: 0.854 | E42: 7.08 | F42: 0.854 | G42: 7.08 | H42: 8.290398126
C43: 8 | D43: 0.854 | E43: 8.29 | F43: 0.854 | G43: 8.29 | H43: 9.707259953
C44: 10 | D44: 0.854 | E44: 8.29 | F44: 0.854 | G44: 8.29 | H44: 9.707259953

Sheet Netberekening (hidden)
B2: Doorrekenen van een net op basis van pu waarden
B3: Het basisvermogen bedraagt
E4: Sbase | F4: 100 | G4: MVA | K4: De waarden in pu
E5: spanningsfactor | F5: 1.1
D6: Gegevens van het net
E7: Unet | F7: 25 | G7: kV | H7: Lijnspanning)
E8: Sgrid | F8: 800 | G8: MVA | H8: (kortsluitvermogen)
E9: R/X | F9: 0.1
D10: Hieruit volgt
F11: a | G11: kV | H11: Fasespanning | I11: Unet/√3
E12: X/R | F12: =1/F9 -> 10
E13: Z | F13: =F7^2/F8*F5 -> 0.859375 | G13: ohm | H13: (uit kortsluitvermogen) | I13: 3*Ufase2/Sgrid* c | L13: Znetpu | M13: =F13/F18 -> 0.125 | N13: pu | P13: Znet/Zbase
E14: Rnet | F14: =(F13^2/(1+(F12)^2))^0.5 -> 0.08551100853 | G14: ohm | H14: (uit kortsluitvermogen) | L14: Rnetpu | M14: =F14/F18 -> 0.01243796488 | N14: pu | O14: bepaald op basis van Sgrid | P14: Rnet/Zbase
E15: Xnet | F15: =F14*F12 -> 0.8551100853 | G15: ohm | H15: (uit kortsluitvermogen) | L15: Xnetpu | M15: =F15/F18 -> 0.1243796488 | N15: pu | O15: bepaald op basis van Sgrid | P15: Xnet/Zbase
E17: Ubase | F17: =F11 -> a | G17: kV | I17: Unet/√3 | L17: Unetpu | M17: =1 -> 1 | N17: pu
C18: =F5*F17^2/F4 ->  | E18: Zbase | F18: =F7^2/F4*F5 -> 6.875 | G18: Ohm | I18: 3*Ufase2/Sbase
E19: Ibase | F19: =F4/F7/3^0.5 -> 2.309401077 | G19: kA | H19: Lijnstroom | I19: Sbase/(3*Ufase)
E20: Iknet | F20: =F5*F7/3^0.5/F13 -> 18.47520861 | G20: kA | I20: Ikpu*Ibase | L20: Ikpu | M20: =M17/M13 -> 8 | N20: pu | P20: Unetpu/Znetpu
F21: =F19*M20 -> 18.47520861
D23: Kabel | E23: diameter | F23: 25 | G23: mm2
E24: lengte | F24: 0 | G24: m
E25: soort | F25: Koper | G25: =IF(F25="Aluminium",4,2) -> 2
E27: Rkabel | F27: =VLOOKUP(F23,weerstand,G25+1) -> 0.927 | G27: ohm/km
E28: Xkabel | F28: =VLOOKUP(F23,weerstand,G25) -> 0.153 | G28: ohm/km
E30: Rkabel | F30: =F27*F24/1000 -> 0 | G30: ohm | L30: Rkabelpu | M30: =F30/F18 -> 0 | N30: pu | O30: Rtotaalpu | P30: =M14+M30 -> 0.01243796488 | Q30: pu
E31: Xkabel | F31: =F28*F24/1000 -> 0 | G31: ohm | L31: Xkabelpu | M31: =F31/F18 -> 0 | N31: pu | O31: Xtotaalpu | P31: =M15+M31 -> 0.1243796488 | Q31: pu
L32: Zpu | M32: =(M30^2+M31^2)^0.5 -> 0 | N32: pu | O32: Ztotaal | P32: =(P30^2+P31^2)^0.5 -> 0.125 | Q32: pu
E34: Ik | F34: =P34*F19 -> 18.47520861 | G34: kA | O34: Ikpu | P34: =M17/P32 -> 8 | Q34: pu
E35: Ik*1,1 | F35: =F34*1.1 -> 20.32272948 | G35: kA
E39: Nominaal vermogen | F39: 20 | G39: MVA
E40: primaire spanning | F40: =F7 -> 25 | G40: kV
E41: secundaire spanning | F41: 10 | G41: kV
E42: kortsluitspanning | F42: 10 | G42: %
E43: X/R | F43: 5
E44: Inom primair | F44: =F39/F40/3^0.5*1000 -> 461.8802154 | G44: A | I44: S / (Up*√3)
E45: Inom sec | F45: =F39/F41/3^0.5*1000 -> 1154.700538 | G45: A | I45: S / (Us*√3)
E46: UbaseS | F46: =F41/3^0.5 -> 5.773502692 | G46: kV | I46: Us / √3
E48: IbaseS | F48: =F4/3/F46 -> 5.773502692
E49: ZbaseS | F49: =3*F46^2/F4 -> 1 | G49: ohm | I49: 3 * UbaseS / Sbase
D51: =F46/F51 -> 11.54700538 | E51: Ztrafo | F51: =3*F46^2/F39/100*F42 -> 0.5 | G51: ohm | H51: !!kortsluitimpedantie | I51: 3 * UbaseS2 * uk / (S * 100) | L51: Ztrafopu | M51: =F51/F49 -> 0.5 | N51: pu
E52: Rtrafo | F52: =(F51^2/(1+(F43)^2))^0.5 -> 0.09805806757 | G52: ohm | L52: Rtrafopu | M52: =F52/F49 -> 0.09805806757 | N52: pu | O52: Rtotaalpu | P52: =M52+P30 -> 0.1104960324 | Q52: pu
E53: Xtrafo | F53: =F52*F43 -> 0.4902903378 | G53: ohm | L53: Xtrafopu | M53: =F53/F49 -> 0.4902903378 | N53: pu | O53: Xtotaalpu | P53: =M53+P31 -> 0.6146699866 | Q53: pu
O54: Ztotaal | P54: =(P52^2+P53^2)^0.5 -> 0.6245226702 | Q54: pu
E56: Ik | F56: =P56*F48 -> 9.244664713 | G56: kA | O56: Ikpu | P56: =1/P54 -> 1.601222898 | Q56: pu
E57: Ik*1,1 | F57: =F56*1.1 -> 10.16913118 | G57: kA
E61: Nominaal vermogen | F61: 75 | G61: kW
E62: rendement | F62: 0.93 | G62: %
E63: power factor | F63: 0.85 | G63: %
E64: LRA/FLA | F64: =1/0.1538 -> 6.501950585
E65: X/R | F65: 10
E66: Ul | F66: =F41 -> 10 | G66: kV
E67: Ubase | F67: =F66/3^0.5 -> 5.773502692 | G67: kV
E70: ZbaseMotor | F70: =3*F67^2/F4 -> 1 | G70: ohm
E71: Inom | F71: =F61/3/F67/F62/F63 -> 5.477706539 | G71: A
E72: Isc | F72: =F71*F64 -> 35.61577724 | G72: A
E74: Z | F74: =F67/F72*1000 -> 162.1052 | H74: =F67/F74 -> 0.03561577724 | L74: ZpuMotor | M74: =F74/F70 -> 162.1052
E75: Rtrafo | F75: =(F74^2/(1+(F65)^2))^0.5 -> 16.13007027 | G75: ohm | L75: Rpumotor | M75: =F75/F70 -> 16.13007027
E76: Xtrafo | F76: =F75*F65 -> 161.3007027 | G76: ohm | L76: XpuMotor | M76: =F76/F70 -> 161.3007027

Sheet generator (hidden)
E1: formules
A2: een generator met een spanning van | B2: Un | C2: 10 | D2: kV
A3: en een vermogen van | B3: Pn | C3: 20000 | D3: kVA
A4: heeft een nominale stroom van | B4: In | C4: =Pn/Un/3^0.5 -> 1154.700538 | D4: A | E4: Pn/Un/√3
A5: bij een sub react in pu van | B5: xd_dubb | C5: 2.5 | D5: pu
A6: een spanningsfactor c van | B6: c | C6: 1.1
A7: is de bronspanning | B7: Uq | C7: =Un*c_/3^0.5 -> 6.350852961 | D7: kV | E7: Un*c_/√3
A8: en Xd" in ohm | B8: Xd | C8: =xd_dubb*Un^2/Pn*1000 -> 12.5 | D8: ohm | E8: xd_dubb*Un2/Pn*1000
A9: Bij cos phi van | B9: cos phi | C9: 0.85
A10: is het El. vermogen | B10: Pe | C10: =Pn*cos_phi -> 17000 | D10: kW | E10: Pn*cos_phi
A13: Bij een rendement van | B13: rend | C13: 95.2 | D13: %
A14: is het verlies | B14: Pverlies | C14: =Pe-rend*Pe/100 -> 816 | D14: kW | E14: Pe-rend*Pe/100
A15: de weerstand R is dan | B15: Ra | C15: =Pverlies/3/In^2*1000 -> 0.204 | D15: ohm | E15: Pverlies/3/In2*1000
A16: De totale Z is dan | B16: Z | C16: =(Ra^2+Xd^2)^0.5 -> 12.50166453 | D16: ohm | E16: √(Ra2+Xd2)
A18: Voor Ik" volgt dan. (incl spann.fact c) | B18: Ik | C18: =Uq/Z -> 0.5080005903 | D18: kA | E18: Uq/Z

Sheet Tabellen (hidden)
C2: Table from Quercus book materiaalgegevens
C3: pag 66/177 and 69/177
I4: 10 kV kabel
D5: koper | F5: Al | J5: koper | L5: Al
C6: mm2 | D6: X | E6: R | F6: X | G6: R | I6: mm2 | J6: X | K6: R | L6: X | M6: R
C7: 25 | D7: 0.153 | E7: 0.927 | I7: 25 | J7: 0.153 | K7: 0.927
A8: 35 | C8: 35 | D8: 0.1676 | E8: 0.6682 | G8: 1.113 | I8: 35 | J8: 0.093 | K8: 0.59 | M8: 1.113
A9: Koper | C9: 50 | D9: 0.138 | E9: 0.493 | G9: 0.822 | I9: 50 | J9: 0.138 | K9: 0.493 | M9: 0.822
A10: Koper | C10: 70 | D10: 0.129 | E10: 0.342 | F10: 0.141 | G10: 0.568 | I10: 70 | J10: 0.129 | K10: 0.342 | L10: 0.141 | M10: 0.568
A11: Aluminium | C11: 95 | D11: 0.123 | E11: 0.247 | F11: 0.134 | G11: 0.411 | I11: 95 | J11: 0.104 | K11: 0.247 | L11: 0.134 | M11: 0.411
C12: 120 | D12: 0.119 | E12: 0.196 | F12: 0.13 | G12: 0.325 | I12: 120 | J12: 0.119 | K12: 0.196 | L12: 0.13 | M12: 0.325
C13: 150 | D13: 0.114 | E13: 0.159 | F13: 0.127 | G13: 0.265 | I13: 150 | J13: 0.114 | K13: 0.159 | L13: 0.127 | M13: 0.265
C14: 185 | D14: 0.111 | E14: 0.128 | F14: 0.122 | G14: 0.212 | I14: 185 | J14: 0.111 | K14: 0.128 | L14: 0.122 | M14: 0.212
C15: 240 | D15: 0.106 | E15: 0.099 | F15: 0.118 | G15: 0.162 | I15: 240 | J15: 0.106 | K15: 0.099 | L15: 0.118 | M15: 0.162
A16: =VLOOKUP(A8,weerstand,1) -> 35 | C16: 300 | D16: 0.103 | E16: 0.08 | F16: 0.114 | G16: 0.13 | I16: 300 | J16: 0.103 | K16: 0.08 | L16: 0.114 | M16: 0.13
C17: 400 | D17: 0.099 | E17: 0.065 | F17: 0.111 | G17: 0.103 | I17: 400 | J17: 0.099 | K17: 0.065 | L17: 0.111 | M17: 0.103
C18: 500 | D18: 0.095 | E18: 0.053 | F18: 0.107 | G18: 0.082 | I18: 500 | J18: 0.095 | K18: 0.053 | L18: 0.107 | M18: 0.082
C19: 630 | D19: 0.0097 | E19: 0.0361 | F19: 0.103 | G19: 0.065 | I19: 630 | J19: 0.0097 | K19: 0.0361 | L19: 0.103 | M19: 0.065
C20: 800 | F20: 0.101 | G20: 0.053 | I20: 800 | L20: 0.101 | M20: 0.053
C25: Nom [MVA] | D25: %Rpos | E25: %jXpos | F25: %Rzero | G25: %jXzero | H25: X/R | I25: Transformer Cooling Characteristic | J25: Capacity Factor (may be changed)
C26: 0.1 | D26: 2.1 | E26: 3.4044 | F26: 2.1 | G26: 3.4044 | H26: =E26/D26 -> 1.621142857 | I26: Dry Type | K26: 1
C27: 0.16 | D27: 1.4688 | E27: 3.7206 | F27: 1.4688 | G27: 3.7206 | H27: =E27/D27 -> 2.533088235 | I27: Oil/Air Cooled (OA) | K27: 1.15
C28: 0.25 | D28: 1.3 | E28: 3.7829 | F28: 1.3 | G28: 3.7829 | H28: 2.909923077 | I28: Oil/Air/Forced Air (OAFA) | K28: 1.25
C29: 0.315 | D29: 1.2381 | E29: 3.8036 | F29: 1.2381 | G29: 3.8036 | H29: 3.072126646 | I29: Oil/Forced Air (FA) | K29: 1.33
C30: 0.4 | D30: 1.15 | E30: 3.8311 | F30: 1.15 | G30: 3.8311 | H30: 3.331391304
C31: 0.5 | D31: 1.1 | E31: 3.8458 | F31: 1.1 | G31: 3.8458 | H31: 3.496181818 | I31: full load size = nominal kVA * transformer capacity
C32: 0.63 | D32: 1.0317 | E32: 3.8646 | F32: 1.0317 | G32: 3.8646 | H32: 3.745856354
C33: 0.8 | D33: 1.275 | E33: 4.3156 | F33: 1.275 | G33: 4.3156 | H33: 3.384784314
C34: 1 | D34: 1.21 | E34: 4.8514 | F34: 1.21 | G34: 4.8514 | H34: 4.009421488
C35: 1.25 | D35: 1.2 | E35: 5.3675 | F35: 1.2 | G35: 5.3675 | H35: 4.472916667
C36: 1.6 | D36: 1.1313 | E36: 5.8924 | F36: 1.1313 | G36: 5.8924 | H36: 5.20852117
C37: 2 | D37: 1.1 | E37: 6.4062 | F37: 1.1 | G37: 6.4062 | H37: 5.823818182
C38: 2.5 | D38: 1.12 | E38: 6.9098 | F38: 1.12 | G38: 6.9098 | H38: 6.169464286
C39: 3.15 | D39: 1.0476 | E39: 6.9212 | F39: 1.0476 | G39: 6.9212 | H39: 6.606720122
C40: 4 | D40: 1 | E40: 7.08 | F40: 1 | G40: 7.08 | H40: 7.08
C41: 5 | D41: 1 | E41: 7.08 | F41: 1 | G41: 7.08 | H41: 7.08
C42: 7.5 | D42: 0.854 | E42: 7.08 | F42: 0.854 | G42: 7.08 | H42: 8.290398126
C43: 8 | D43: 0.854 | E43: 8.29 | F43: 0.854 | G43: 8.29 | H43: 9.707259953
C44: 10 | D44: 0.854 | E44: 8.29 | F44: 0.854 | G44: 8.29 | H44: 9.707259953

Sheet regressie (hidden)
F1: Regressie | G1: Regressie Op deze pagina kunt u van opgegeven x en y waarden een vergelijking maken volgens de regressie methode.
G2: stap 1: geef in het witte vlak naar beneden toe de x en y waarden in
G3: stap 2: klik op de knop "DO IT"
G4: stap 3: kijk in de gele tabel waar de standaard dev het kleinst is
G5: stap 4: neem van die kolom de formule en de bijbehorende A, B en C waarden over in die formule
H8: De formule met ingevulde A, B en C parameters
G9: lineair | H9: =D20 & "+" & D21 & "* X" -> 2.14035087719298+2.99649122807018* X
G10: inverse | H10: =E20 & "+ " & E21 & "/ X" -> 42.0451629682432+ -53.2333583205122/ X
G11: polynoom | H11: =F20 & "+ " & F21 & " * X + " & F22 & " * X ^ 2" -> 1.88235294117641+ 3.07020492407491 * X + -0.00368568480023642 * X ^ 2
G12: macht | H12: =G20 & " * X ^ " & G21 -> 4.44724203313278 * X ^ 0.864892725143334
G13: e | H13: =H20 & " * e ^ (" & H21 & " * X)" -> 8.19158179979474 * e ^ (0.117973694755328 * X)
G15: Video
A18: X | B18: Y | D18: lin | E18: inv | F18: pol | G18: macht | H18: e
A19: 1 | B19: =2+A19*3 -> 5 | C19: formule | D19: Y=A+B*X | E19: Y=A+B/X | F19: Y=A+B*X+C*X^2 | G19: Y=A*X^B | H19: Y = A*e^(B*X)
A20: 2 | B20: =2+A20*3 -> 8 | C20: A | D20: 2.140350877 | E20: 42.04516297 | F20: 1.882352941 | G20: 4.447242033 | H20: 8.1915818
A21: 3 | B21: 11 | C21: B | D21: 2.996491228 | E21: -53.23335832 | F21: 3.070204924 | G21: 0.8648927251 | H21: 0.1179736948
A22: 4 | B22: 14 | C22: C | D22: 0 | E22: 0 | F22: -0.0036856848
A23: 5 | B23: 17
A24: 6 | B24: 20
A25: 7 | B25: 24
A26: 8 | B26: 26
A27: 9 | B27: 29 | C27: min X | D27: 1 | E27: 1 | F27: 1 | G27: 1 | H27: 1
A28: 10 | B28: 32 | C28: maxX | D28: 19 | E28: 19 | F28: 19 | G28: 19 | H28: 19
A29: 11 | B29: 36 | C29: minY | D29: 5 | E29: 5 | F29: 5 | G29: 5 | H29: 5
A30: 12 | B30: 38 | C30: maxY | D30: 59 | E30: 59 | F30: 59 | G30: 59 | H30: 59
A31: 13 | B31: 41 | C31: aantal punten | D31: 19 | E31: 19 | F31: 19 | G31: 19 | H31: 19
A32: 14 | B32: 44 | C32: Det coeff | D32: 0.9996518497 | E32: 0.5154268782 | F32: 0.9996878442 | G32: 0.9966096648 | H32: 0.9005624143
A33: 15 | B33: 47 | C33: Corr coeff | D33: 0.9998259097 | E33: 0.7179323633 | F33: 0.9998439099 | G33: 0.9983033932 | H33: 0.9489796701
A34: 16 | B34: 50 | C34: St estimate order | D34: 0.3238060549 | E34: 12.08039824 | F34: 0.3160470594 | G34: 0.04191433286 | H34: 0.2269951223
A35: 17 | B35: 53
A36: 18 | B36: 56
A37: 19 | B37: 59

Sheet NummersKolom (hidden)
A1: no | F1: Nummerskolom
A2: 20
A4: 40
A5: 50
A6: 60
A7: 70
A8: 80
A9: 90
A10: 100 | F10: Als je op deze knop klikt dan krijg je in de eerste kolom een rij getallen met als waarde het regelnummer maal 10
A11: 110 | F11: als je vervolgens de data sorteert op welke manier dan ook dan kun je altijd weer eenvoudig terug naar de beginstand door op de eerste kolom te sorteren.
A12: 120
A13: 130 | F13: de vorige waarde wordt als comment toegevoegd zodat je altijd weer terug kunt.
A14: 140
A15: 150
A16: 160
A17: 170
A18: 180
A19: 190
A20: 200
A21: 210
A22: 220
A23: 230
A24: 240
A25: 250
A26: 260
A27: 270

Sheet WORD (hidden)
B1: TRUE
B3: FALSE | G3: 0.5
A4: This sheet is used to fill "Word" documents with the proper project information.
A5: After modification you might still need to press the "Doc info Update" button in your document.
A7: On the left side there is a list of documents which may be needed in your project
A8: Behind these documents there is a checkbox. Checked means: this document is needed
A9: Each document contains bookmarks. You may click the button "to find the bookmarks"
A10: Behind each bookmark you can insert a text.
A12: At last you can click the button "fill the templates…" to insert the text in all the checked documents.
A22: revisie 2 juni 98
A24: This range contains a list of templates whose variable names have to be | D24: Variable | E24: Variable | F24: Variable
A25: changed with the contents given on the right. | D25: description | E25: name | F25: contents
A26: O:\Werkgroepen\Lc-Rt\WG-Hoogspanning\Tools\help_files\demo book mark.doc | B26: TRUE | D26: var | E26: 2eOndertekenaarVinkje | F26: f1
B27: FALSE | D27: var | E27: Aanhef | F27: f2
B28: FALSE | D28: var | E28: AanmaakDatum | F28: f3
B29: FALSE | D29: var | E29: Aantal | F29: f4
B30: FALSE | D30: var | E30: AfdelingID | F30: f5
B31: FALSE | D31: var | E31: AkkoordOpdracht | F31: f6
B32: FALSE | D32: var | E32: AkkoordProject | F32: f7
B33: FALSE | D33: var | E33: Auteurs | F33: f8
B34: FALSE | D34: var | E34: Bedrijf | F34: f9
B35: FALSE | D35: var | E35: BedrijfID | F35: f10
B36: FALSE | D36: var | E36: BijlageCC | F36: f11
B37: FALSE | D37: var | E37: Contactpersoon | F37: f12
B38: FALSE | D38: var | E38: ContactpersoonVolUit | F38: f13
B39: FALSE | D39: var | E39: Datum | F39: f14
B40: FALSE | D40: var | E40: DatumOpgesteld | F40: f15
B41: FALSE | D41: var | E41: DatumRefOpgehaald | F41: f16
B42: FALSE | D42: var | E42: DocID | F42: f17
B43: FALSE | D43: var | E43: DocRegDocType | F43: f18
B44: FALSE | D44: var | E44: DocRegStatus | F44: f19
B45: FALSE | D45: var | E45: Document | F45: f20
B46: FALSE | D46: var | E46: Doorkiesnummer | F46: f21
A47: C:\franse\proj-ass\drawing.doc | B47: FALSE | D47: var | E47: DummyAantalPagGeplaatst | F47: f22
A48: C:\program files\microsoft office\template\proj-test\vic.doc | B48: FALSE | D48: var | E48: Eerste | F48: f23
A49: C:\franse\proj-ass\activity.doc | B49: FALSE | D49: var | E49: Email | F49: f24
A50: d:\op cd rom\franse\proj-ass\issue1\cable.doc | B50: FALSE | D50: var | E50: GebrDRContactID | F50: f25
A51: C:\franse\proj-ass\punch.doc | B51: FALSE | D51: var | E51: LicCode | F51: f26
D52: var | E52: MergeLayout | F52: f27
D53: var | E53: MergeStatus | F53: f28
B54: FALSE | D54: var | E54: NaamKlant | F54: f29
B55: FALSE | D55: var | E55: Nummer | F55: f30
D56: var | E56: Onderwerp | F56: f31
D57: var | E57: PlaatsKixCode | F57: f32
D58: var | E58: Project | F58: f33
D59: var | E59: Referentie | F59: f34
D60: var | E60: ReferentieGegenereerd | F60: f35
D61: var | E61: ReferentieKlant | F61: f36
D62: var | E62: Sjabloon | F62: f37
D63: var | E63: Status | F63: f38
D64: var | E64: Taal | F64: f39
D65: var | E65: Titel | F65: f40
D66: var | E66: UserName | F66: f41
D67: var | E67: Versie | F67: f42
D68: var | E68: Versienummer | F68: f43
D69: var | E69: VervalDatum | F69: f44
D70: var | E70: Vestiging | F70: f45
D71: var | E71: VestigingID | F71: f46
D72: var | E72: VestigingOmschr | F72: f47
D73: var | E73: VoorAkkoordNaam_Status | F73: f48
D74: var | E74: Wijzig | F74: f49
D75: book | E75: bmTitel1 | F75: f50
D76: book | E76: bmAuteur1 | F76: f51
D77: book | E77: bmBegin | F77: f52
D78: book | E78: bmKopjeInhoud | F78: f53
B80: FALSE

Sheet Word_Help (hidden)
F2: WORD help
F3: When you have a project you need documents. Mostly they are available as templates with bookmarks which need to be filled with project information which is identical for all the templates. | G3: 0.5
F4: In the most left column, type the complete path of your templates.
F5: When these templates are new, the program has to know which bookmarks are used. So, select all the templates (with the checkmark behind the complete path) and click the "Button to find all the bookmark names".
F6: What happens is that each template is opened and searched for new bookmarks
F7: These bookmarks will be sorted in a list "Variable Name".
F8: In the column "Variable contents" a text is given which is put in all your documents unless you change it.
F9: So, just change the content for each bookmark and click the "Button to fill the templates". Now each checked template will be opened and the variable text will replace the contents of the bookmark in your document.

Sheet merge_source_dest (hidden)
F1: Merge_source_dest
D9: Video
F10: With this you can merge one file into another | G10: Hiermee kun je 1 sheet samenvoegen met een ander sheet
F12: Each row has a unique number, a tagname | G12: Elke regel heeft een uniek nummer, de tagnaam
F13: There are columns with equal names | G13: er zijn kolommen met gelijke namen
F14: Select the column with tagnames in the source | G14: selecteer in het brondocument de cellen met de tagnamen
F15: then click in the destination file | G15: klik dan in het doel document
F17: All values from source will be merged with the target file where the tagname is identical in the referred column. | G17: Alle waarden van de bron worden nu overgenomen in het doel waar de tagnaam hetzelfde is in de betreffende kolom.
F19: If values are changed, the old value will be visible as comment | G19: Als waarden worden gewijzigd, is de oude waarde zichtbaar als comment.
F21: You can restore the comment to the cell by selecting cells and using the second button. | G21: Je kunt de comment terugzetten naar de cel door cellen te selecteren en de tweede knop te gebruiken

Sheet Doubles (hidden)
F1: Doubles
D11: Video | F11: With this button you can find all the doubles in a selected range | G11: Hiermee kun je in een selectie de dubbel zichtbaar maken
F12: First create the menu button | G12: Maak eerst een knop in het menu
F13: then select your range | G13: selecteer dan het gebid waarvan je de dubbele wilt zien
F14: and finally click on de button in the menubar. | G14: en klik dan op de knop in het menu.

Sheet Create_index (hidden)

Sheet BestandenLijst
F1: Bestandenlijst
F2: versie 12-10-2020 | G2: Video | H2: 129
C8: * | D8: Extension / Extensie | F8: If you insert a * in the yellow area, it will look for all files. If you insert jpg it will only look for files with the extension jpg. | G8: Als je een * in het gele vlak plaatst, worden alle bestanden gevonden. Als je bijvoorbeeld jpg in dat vlak ingeeft, worden alleen de bestanden met de extensie .jpg gevonden.
F10: The first row in the created list ALWAYS contains the titles. | G10: De eerste regel in een bestandenlijst bevat ALTIJD de titels.
F13: With the first button on the left you can create a file list | G13: Met de eerste knop links maak je een bestandenlijst van een te kiezen directory
F15: With the second one you can filter your list on text | G15: Met de tweede filter je de lijst op een in te geven tekst
F17: With the third you can remove the filter | G17: Met de derde haal je de filter weg
F19: With the fourth button you can sort a clicked columns ascending. Even if you have empty columns or rows in your table. The standard buttons don not sort coeerctly. | G19: Met de vierde sorteer je een kolom (waarin je een cel aangeklikt hebt) oplopend. Zelfs als je lege kolommen of regels in je tabel hebt. De standaard excel knoppen doen dit niet correct.
F21: The fifth will sort your spreadsheet descending | G21: Met de vijfde sorteer je een kolom (waarin je een cel hebt aangeklikt) aflopend
F23: The sixth button will sort a clicked column on color | G23: Met de zesde knop sorteer je een kolom (waarin je een cell hebt aangeklikt) op kleur.
F25: With the last button you can refresh yout file list | G25: Met de laatste knop kun je je bestandenlijst verversen

Sheet filter_sort (hidden)
F1: Filter_sort
F10: The first row ALWAYS contains the titles. | G10: De eerste regel bevat ALTIJD de titels.
D13: Video | F13: With the first button on the left you can filter your spreadsheet on a text. | G13: Met de eerste knop links filter je je spreadsheet op een in te geven tekt.
F15: With the second one you can find all the unique values in a selected column. | G15: Met de tweede haal je uit een selectie in 1 kolom in je spreadsheet alleen de unieke waarden
F17: With the third you can remove the filter | G17: Met de derde haal je de filter weg
D19: Video | F19: With the fourth button you can sort your spreadsheet ascending. Even if you have empty columns or rows in your table. The standard buttons don not sort coeerctly. | G19: Met de vierde sorteer je een kolom (waarin je een cel aangeklikt hebt) oplopend. Zelfs als je lege kolommen of regels in je tabel hebt. De standaard excel knoppen doen dit niet correct.
F21: The fifth will sort your spreadsheet descending | G21: Met de vijfde sorteer je een kolom (waarin je een cel hebt aangeklikt) aflopend
D23: Video | F23: The last button will sort a column (in which you select a cell) on color | G23: Met de laatste sorteer je een kolom (waarin je een cell hebt aangeklikt) op kleur.

Sheet IECtransf (hidden)
B1: IEC | F1: EDSA
A3: In EDSA, the grid has been defined according to IEC
B5: Q1
C6: Un | D6: 400 | E6: kV | G6: Then there is a transformer T4 | K6: Result
C7: Ik"Qmax | D7: 300 | E7: kA | H7: Uhv | I7: 400 | J7: kV | K7: Ik" on mv side | L7: =D86 -> 9.504187202 | M7: kA
C8: Rq/Xq | D8: 1 | H8: Umv | I8: 120 | J8: kV | K8: Ik" on lv side | L8: =K86 -> 10.73659072 | M8: kA
C9: Xo/Xq | D9: 1 | H9: Ulv | I9: 30 | J9: kV
C10: Ro/Xo | D10: 1 | H10: Shv | I10: 350 | J10: MVA
C11: c | D11: 1.1 | H11: Smv | I11: 350 | J11: MVA
F12: Ik"L-L | H12: Slv | I12: 50 | J12: MVA
F13: Ik"L-G | H13: ukhvmv | I13: 21 | J13: %
B14: The impedance of the supply | H14: ukhvlv | I14: 10 | J14: %
B15: Zq=c*Unom/V3/Ik" | H15: ukmvlv | I15: 7 | J15: %
H16: urhvmv | I16: 0.26 | J16: %
C17: Zq | D17: =Un*c_/3^0.5/Ik_Qmax/1000 -> 0.0008467803948 | E17: Ω | H17: urhvlv | I17: 0.16 | J17: %
B18: with given Rq/Xq ratio | H18: urmvlv | I18: 0.16 | J18: %
C19: Xq | D19: =(Zq^2/(1+Rq_Xq))^0.5 -> 0.0005987641593 | E19: Ω
C20: Rq | D20: =Xq*Rq_Xq -> 0.0005987641593 | E20: Ω
B23: First I want to know the impedances seen from the mv side
C40: Rab | D40: =(urhvmv/100)*Umv^2/Smv -> 0.1069714286 | F40: Xab | G40: =uxhvmv/100*Umv^2/Smv -> 8.639337771 | I40: Rablv | J40: =(urhvmv/100)*Ulv^2/Smv -> 0.006685714286 | L40: Xablv | M40: =uxhvmv/100*Ulv^2/Smv -> 0.5399586107
G41: uxhvmv | H41: =(ukhvmv^2-urhvmv^2)^0.5 -> 20.99839041
C42: Rac | D42: =(urhvlv/100)*Umv^2/Slv -> 0.4608 | F42: Xac | G42: =uxhvlv/100*Umv^2/Slv -> 28.79631336 | I42: Raclv | J42: =(urhvlv/100)*Ulv^2/Slv -> 0.0288 | L42: Xaclv | M42: =uxhvlv/100*Ulv^2/Slv -> 1.799769585
G43: uxhvlv | H43: =(ukhvlv^2-urhvlv^2)^0.5 -> 9.998719918
C44: Rbc | D44: =(urmvlv/100)*Umv^2/Slv -> 0.4608 | F44: Xbc | G44: =uxmvlv/100*Umv^2/Slv -> 20.15473303 | I44: Rbclv | J44: =(urmvlv/100)*Ulv^2/Slv -> 0.0288 | L44: Xbclv | M44: =uxmvlv/100*Ulv^2/Slv -> 1.259670814
G45: uxmvlv | H45: =(ukmvlv^2-urmvlv^2)^0.5 -> 6.99817119
B47: With impedance correction factors according to IEC 60909/0 equation 13 | I47: ulv^2/Umv^2 | J47: =Ulv^2/Umv^2 -> 0.0625
G50: Ktab | H50: =0.95*c_/(1+0.6*uxhvmv/100) -> 0.9280719031
G51: Ktac | H51: =0.95*c_/(1+0.6*uxhvlv/100) -> 0.9858561999
G52: Ktbc | H52: =0.95*c_/(1+0.6*uxmvlv/100) -> 1.00288964
B54: This results in corrected impedances | I54: This results in corrected impedances
C55: Rabk | D55: =Rab*Ktab -> 0.09927717729 | F55: Xabk | G55: =Xab*Ktab -> 8.017926646 | J55: Rabklv | K55: =Rablv*Ktab -> 0.006204823581 | M55: Xabklv | N55: =Xablv*Ktab -> 0.5011204154
C56: Rack | D56: =Rac*Ktac -> 0.4542825369 | F56: Xack | G56: =Xac*Ktac -> 28.38902406 | J56: Racklv | K56: =Raclv*Ktac -> 0.02839265856 | M56: Xacklv | N56: =Xaclv*Ktac -> 1.774314004
C57: Rbck | D57: =Rbc*Ktbc -> 0.462131546 | F57: Xbck | G57: =Xbc*Ktbc -> 20.21297294 | J57: Rbcklv | K57: =Rbclv*Ktbc -> 0.02888322162 | M57: Xbcklv | N57: =Xbclv*Ktbc -> 1.263310809
B59: This results in | I59: This results in
C61: Ra | D61: =0.5*(Rabk+Rack-Rbck) -> 0.04571408411 | F61: Xa | G61: =0.5*(Xabk+Xack-Xbck) -> 8.096988883 | J61: Ralv | K61: =0.5*(Rabklv+Racklv-Rbcklv) -> 0.002857130257 | M61: Xalv | N61: =0.5*(Xabklv+Xacklv-Xbcklv) -> 0.5060618052
C62: Rb | D62: =0.5*(Rbck+Rabk-Rack) -> 0.05356309318 | F62: Xb | G62: =0.5*(Xbck+Xabk-Xack) -> -0.07906223712 | J62: Rblv | K62: =0.5*(Rbcklv+Rabklv-Racklv) -> 0.003347693324 | M62: Xblv | N62: =0.5*(Xbcklv+Xabklv-Xacklv) -> -0.00494138982
C63: Rc | D63: =0.5*(Rack+Rbck-Rabk) -> 0.4085684528 | F63: Xc | G63: =0.5*(Xack+Xbck-Xabk) -> 20.29203518 | J63: Rclv | K63: =0.5*(Racklv+Rbcklv-Rabklv) -> 0.0255355283 | M63: Xclv | N63: =0.5*(Xacklv+Xbcklv-Xabklv) -> 1.268252199
B68: The impedance of the supply transposed to mv side | I68: The impedance of the supply transposed to lv side
B69: Zq=c*Unom/V3/Ik"*Umv^2/Uhv^2
C70: Umv^2/Uhv^2 | D70: =Umv^2/Uhv^2 -> 0.09 | I70: Ulv^2/Uhv^2 | J70: =Ulv^2/Uhv^2 -> 0.005625
C74: Zqmv | D74: =Zq*Umv_2_Uhv_2 -> 7.621023553e-05 | E74: Ω | J74: Zqlv | K74: =Zq*Ulv_2_Uhv_2 -> 4.763139721e-06 | L74: Ω
B75: with given Rq/Xq ratio | I75: with given Rq/Xq ratio
C77: Rqmv | D77: =Rq*Umv_2_Uhv_2 -> 5.388877434e-05 | E77: Ω | F77: Xqmv | G77: =Xq*Umv_2_Uhv_2 -> 5.388877434e-05 | H77: Ω | J77: Rqlv | K77: =Rq*Ulv_2_Uhv_2 -> 3.368048396e-06 | L77: Ω | M77: Xqlv | N77: =Xq*Ulv_2_Uhv_2 -> 3.368048396e-06 | O77: Ω
B80: The total impedance seen from mv side towards the grid | I80: The total impedance seen from lv side towards the grid
C82: R | D82: =Rqmv+Ra+Rb -> 0.09933106606 | F82: X | G82: =Xqmv+Xa+Xb -> 8.017980535 | J82: R | K82: =Rqlv+Ralv+Rclv -> 0.0283960266 | M82: X | N82: =Xqlv+Xalv+Xclv -> 1.774317372
B84: and this will give a short circuit current | I84: and this will give a short circuit current
D86: =c_*Umv/(3^0.5*(D82^2+G82^2)^0.5) -> 9.504187202 | E86: kA | K86: =c_*Ulv/(3^0.5*(K82^2+N82^2)^0.5) -> 10.73659072 | L86: kA

Sheet criteria_sheet (hidden)
A1: Uniek | B1: Volgorde | C1: File Name | D1: Link | E1: Size | F1: DateTime | G1: Remarks | H1: Directory | I1: C:\Croon | J1: * | K1: COLOUR
A2: *video*
B3: *video*
C4: *video*
D5: *video*
E6: *video*
F7: *video*
G8: *video*
H9: *video*
I10: *video*
J11: *video*
K12: *video*

Sheet unprotect (hidden)
F1: unprotect
E10: To remove the password of a worksheet. | F10: Als je een beveiligd sheet hebt, haal je hiermee de beveiliging eraf.
F11: Het duurt wel even, maar dan heb je ook wat.
F12: http://www.vbfrance.com/code.aspx?ID=3890
F14: to unprotect the vba code
F15: http://www.mrexcel.com/archive2/53200/61780.htm

Sheet Sheet1 (hidden)

Sheet Combineer (hidden)
B8: works also with ctrl q (if this is not defined elsewhere) after you made a selection.
F10: when you select cells in one column they will be merged into the first cell of our selection.
F11: When you would select a..f in the cells below, the result would be a b c d e f.
F13: a
F14: b
F15: c
F16: d
F17: e
F18: f
B20: a b c d e f

Sheet Transformer (hidden)
F2: =F38 -> I inrush [A] | G2: =E38 -> t [s] | J2: COPY AND PASTE THIS IN PTW
F3: 10.62268714 | G3: 0.01
F4: 10.36707122 | G4: 0.017
A5: Summary | F5: 9.948010766 | G5: 0.0289
A6: select the transformer | F6: 9.278183452 | G6: 0.04913
F7: 8.252530755 | G7: 0.083521
A8: kind of | B8: dry | C8: =VLOOKUP(B8,F158:G159,2,FALSE) -> 4 | F8: 6.792049764 | G8: 0.1419857
A9: transformer | F9: 4.951981325 | G9: 0.24137569
A10: size of | F10: 3.063408914 | G10: 0.410338673
A11: transformer | B11: 630 | C11: kVA | F11: 1.683588919 | G11: 0.6975757441
F12: 1.104508478 | G12: 1.185878765
F13: =F201 -> 0.11 | G13: =F236 -> 0.4573745927
A15: Voltage | D15: 10 | E15: kV | G15: =B33 -> Threshold setting | H15: =E33 -> 40.01037365 | I15: =F33 -> A
A16: Calculated nominal current | D16: =B11/D15/3^0.5 -> 36.37306696 | E16: A | G16: =B34 -> Threshold time | H16: =E34 -> 0.4573745927 | I16: =F34 -> s
A26: Summary for inrush
B28: transformer type choosen | E28: =B8 -> dry
B29: transformer power selected | E29: =B11 -> 630 | F29: kVA
B30: Nominal voltage | E30: =D15 -> 10 | F30: kVA
B31: Value for k | E31: =B181 -> 10
B32: value for t inrush | E32: =B182 -> 0.26 | F32: s
B33: Threshold setting | E33: =F200 -> 40.01037365 | F33: A
B34: Threshold time | E34: =F204 -> 0.4573745927 | F34: s
E37: In PTW I have to insert this graph in per unit values
B38: t [s] | C38: I inrush [A] | E38: t [s] | F38: I inrush [A]
B39: =A402 -> 0.01 | C39: =B402*$D$16 -> 386.3797108 | E39: =B39 -> 0.01 | F39: =C39/$D$16 -> 10.62268714
B40: 0.017 | C40: 377.0821757 | E40: =B40 -> 0.017 | F40: 10.36707122
B41: 0.0289 | C41: 361.8396617 | E41: 0.0289 | F41: 9.948010766
B42: 0.04913 | C42: 337.475988 | E42: 0.04913 | F42: 9.278183452
B43: 0.083521 | C43: 300.1698537 | E43: 0.083521 | F43: 8.252530755
B44: 0.1419857 | C44: 247.0476808 | E44: 0.1419857 | F44: 6.792049764
B45: 0.24137569 | C45: 180.1187483 | E45: 0.24137569 | F45: 4.951981325
B46: 0.410338673 | C46: 111.4255775 | E46: 0.410338673 | F46: 3.063408914
B47: 0.6975757441 | C47: 61.23729247 | E47: 0.6975757441 | F47: 1.683588919
B48: 1.185878765 | C48: 40.17436083 | E48: 1.185878765 | F48: 1.104508478
A50: see cahier technique schneider electic no 128 pag 15
A51: cahier technique no 128
A56: In the document above on page 15 there is a graph of the inrush current of a 1MVA transformer
A76: the peak current is 10 from fig 16 for a 1MVA transformer
A77: It's not clear if this transformer is an oil or dry transformer
A79: There is an example on pag 41
A80: it is used to calculate the minimum delay time to avoid unwanted trips
A81: IT IS NOT A CURVE SHOWING THE INRUSH
A84: MV/LV transformer substations: theory and examples of short-circuit calculation
A85: on page 30 there is a graph of the settings of a protective device so it is sure there will be no tripping
G87: graph values
G88: Ir/Ipinrush | H88: tr/tinrush
G89: 0.1 | H89: 1.9
G90: 0.11 | H90: 1.8
G91: 0.135 | H91: 1.6
G92: 0.16 | H92: 1.4
G93: 0.2 | H93: 1.23
G94: 0.21 | H94: 1.2
G95: 0.26 | H95: 1
G96: 0.3 | H96: 0.86
G97: 0.32 | H97: 0.8
G98: 0.4 | H98: 0.58
G99: 0.46 | H99: 0.4
G100: 0.5 | H100: 0.32
G101: 0.57 | H101: 0.2
G102: 0.6 | H102: 0.15
G103: data of figure 1
G106: the formula for this curve is
G107: 2,45509475154486+ -6,89720398826328 * X + 5,1843583563366 * X ^ 2
B112: calculated values from formula
B113: Ir/Ipinrush | C113: tr/tinrush
B114: 0.1 | C114: =2.45509475154486+ -6.89720398826328 * B114 + 5.1843583563366 *B114 ^ 2 -> 1.817217936
B115: 0.11 | C115: =2.45509475154486+ -6.89720398826328 * B115 + 5.1843583563366 *B115 ^ 2 -> 1.759133049
B116: 0.135 | C116: 1.618457144
B117: 0.16 | C117: 1.484261687
B118: 0.2 | C118: 1.283028288
B119: 0.21 | C119: 1.235312118
B120: 0.26 | C120: 1.012284339
B121: 0.3 | C121: 0.8525258071
B122: 0.32 | C122: 0.778867771
B123: 0.4 | C123: 0.5257104933
B124: 0.46 | C124: 0.3793911451
B125: 0.5 | C125: 0.3025823465
B126: 0.57 | C126: 0.2080865082
B127: 0.6 | C127: 0.1831413669
A130: The documentation also shows peak values and time constants of two kinds of transformer
A151: The values of the oil transformer are the same as given in the cahier technique no 128
A152: so the graph in this cahier will probably also be the inrush of an oil transformer
A154: How can I calculate the inrush graph of eg a 630kVA dry transformer from these values.
A156: Values for k and t
B157: k for oil | C157: t for oil | D157: k for dry | E157: t for dry | F157: kind of transformer
A158: 50 | B158: 15 | C158: 0.1 | F158: oil | G158: 2
A159: 100 | B159: 14 | C159: 0.15 | F159: dry | G159: 4
A160: 160 | B160: 12 | C160: 0.2
A161: 200 | B161: 12 | C161: 0.21 | D161: 10.5 | E161: 0.15
A162: 250 | B162: 12 | C162: 0.22 | D162: 10.5 | E162: 0.18
A163: 315 | B163: 12 | C163: 0.23 | D163: 10 | E163: 0.2
A164: 400 | B164: 12 | C164: 0.25 | D164: 10 | E164: 0.25
A165: 500 | B165: 11 | C165: 0.27 | D165: 10 | E165: 0.25
A166: 630 | B166: 11 | C166: 0.3 | D166: 10 | E166: 0.26
A167: 800 | B167: 10 | C167: 0.33 | D167: 10 | E167: 0.3
A168: 1000 | B168: 10 | C168: 0.35 | D168: 10 | E168: 0.3
A169: 1250 | B169: 10 | C169: 0.37 | D169: 10 | E169: 0.35
A170: 1600 | B170: 9 | C170: 0.4 | D170: 10 | E170: 0.4
A171: 2000 | B171: 8 | C171: 0.45 | D171: 9.5 | E171: 0.4
A179: values for k an t for choosen transformer
A181: k | B181: =VLOOKUP(B11,k_and_t_for_transformer,C8) -> 10
A182: tinrush | B182: =VLOOKUP(B11,k_and_t_for_transformer,C8+1) -> 0.26
A185: k is given as
A188: and
A189: ki | G189: =B181 -> 10
A190: SnTR is the rated power of the transformers; | G190: =B11 -> 630 | H190: kVA
A191: ipinrush is the inrush current of the transformers; | G191: =G189*G192 -> 363.7306696 | H191: A | I191: (ki * I1nTR)
A192: I1nTR primary rated current of the transformers; | G192: =D16 -> 36.37306696 | H192: A
A194: tr/tinrush from formula | G194: =2.45509475154486+ -6.89720398826328 * F194 + 5.1843583563366 *F194 ^ 2 -> 2.455094752
A195: tr | I195: (factor * tinrush)
A196: tinrush time constant of the inrush current | G196: =B182 -> 0.26
A200: If you have set the treshold of this transformer to | F200: =G192*1.1 -> 40.01037365 | G200: A
A201: then the ratio ir/Ipinrush is | F201: =F200/G191 -> 0.11
A202: from formula the tr/tinrush value is | F202: =2.45509475154486+ -6.89720398826328 * F201 + 5.1843583563366 *F201 ^ 2 -> 1.759133049
A203: when tinrush is | F203: =B182 -> 0.26
A204: the value of tr will be | F204: =F202*F203 -> 0.4573745927 | G204: s
A206: So this will be the setting of the protctive device where no tripping will occur.from the example
B207: representing the minimum delay for the MV protection to avoid unwanted trips.
A208: If I change the treshold setting to another value there will be an other time
B210: I treshold | C210: tr | D210: I pu
C211: =F204 -> 0.4573745927
B212: 40 | C212: 0.4574172807
B213: 60 | C213: 0.3791897546 | D213: IN FACT THE VALUES IN THE ORANGE AREA
B214: 80 | C214: 0.309112996 | D214: CAN NOT BE USED
B215: 100 | C215: 0.2471870048 | D215: YOU DO NOT SET THE I> AT A VALUE
B216: 120 | C216: 0.1934117812 | D216: GREATER THEN | F216: =B212 -> 40 | G216: A
B217: 140 | C217: 0.147787325
B218: 160 | C218: 0.1103136363
B219: 180 | C219: 0.08099071512
B220: 200 | C220: 0.05981856139
B221: 220 | C221: 0.04679717515
B222: 240 | C222: 0.0419265564
A224: What does it mean, threshold setting for the primary protection?
A225: On page 9
B226: The protection of the utility company usually operates
B227: with independent time tripping characteristics and the
B228: tripping threshold values communicated to the consumer
B229: represent the upper limit to comply with in order to avoid
B230: unwanted trips.
A232: So if I set it at | F232: =F200 -> 40.01037365 | G232: A
A233: with a time | F233: =F204 -> 0.4573745927 | G233: s
A235: it will be the protection for nominal current which is | F235: =G192 -> 36.37306696 | G235: A
A236: with a time | F236: =F204 -> 0.4573745927
A253: It does not say anything on the lowest setting for I>> to avoid tripping
A255: I want to know the value for the blue line
A273: the graph for the inrush may also be presented with (page 24)
A275: so I have to know the inrush shape
A277: Page 31 of
A278: MV/LV transformer substations: theory and examples of short-circuit calculation
A279: shows a formula for the inrush current
F284: =EXP(0) -> 1
A286: Values entered from example above
A287: =A189 -> ki | G287: =G189 -> 10
A288: =A190 -> SnTR is the rated power of the transformers; | G288: =G190 -> 630 | H288: =H190 -> kVA
A289: =A191 -> ipinrush is the inrush current of the transformers; | G289: =G191 -> 363.7306696 | H289: =H191 -> A | I289: =I191 -> (ki * I1nTR)
A290: =A192 -> I1nTR primary rated current of the transformers; | G290: =G192 -> 36.37306696 | H290: =H192 -> A
A291: =A194 -> tr/tinrush from formula
A292: =A195 -> tr | I292: =I195 -> (factor * tinrush)
A293: =A196 -> tinrush time constant of the inrush current | E293: $G$161*$G$164/2^0,5*EXP(-1*A170/$G$167) | G293: =G196 -> 0.26
A295: t | B295: Iinrush
A296: 0.01 | B296: =$G$287*$G$290*EXP(-1*A296/$G$293)/2^0.5 -> 247.4920713
A297: =A296*1.6 -> 0.016 | B297: =$G$287*$G$290*EXP(-1*A297/$G$293)/2^0.5 -> 241.846112
A298: 0.0256 | B298: 233.0792551
A299: 0.04096 | B299: 219.7084902
A300: 0.065536 | B300: 199.892265
A301: 0.1048576 | B301: 171.8361872
A302: 0.16777216 | B302: 134.9038829
A303: 0.268435456 | B303: 91.5967713
A304: 0.4294967296 | B304: 49.30027141
A305: 0.6871947674 | B305: 18.29784489
A307: This graph ends on the right side with a value of | F307: =B296 -> 247.4920713 | G307: A
A308: I would expect this graph would end at the right side at | F308: =G289 -> 363.7306696 | G308: A
B309: which is the nominal current of | F309: =G290 -> 36.37306696 | G309: A
B310: times ki | F310: =G287 -> 10
A312: the difference is | F312: =F308/F307 -> 1.469665948
A313: and 2 ^0.5 is | F313: =2^0.5 -> 1.414213562
A314: which I think to be equal
A316: So I change the formula to
A317: Inrush curve
A318: t | B318: Iinrush
A319: 0.01 | B319: =$G$287*$G$290*EXP(-1*A319/$G$293) -> 350.0066438
A320: =A319*1.6 -> 0.016 | B320: =$G$287*$G$290*EXP(-1*A320/$G$293) -> 342.0220517
A321: 0.0256 | B321: 329.6238437
A322: 0.04096 | B322: 310.7147266
A323: 0.065536 | B323: 282.6903521
A324: 0.1048576 | B324: 243.0130665
A325: 0.16777216 | B325: 190.7829008
A326: 0.268435456 | B326: 129.5373962
A327: 0.4294967296 | B327: 69.72111246
A328: 0.6871947674 | B328: 25.8770604
A338: and the line of nominal current | D338: and the line of maxim current | G338: and the line for treshold
B340: I nominal | E340: I maximum | H340: Threshold line
A341: t | B341: I | D341: t | E341: I | G341: t | H341: I
A342: 0.01 | B342: =G290 -> 36.37306696 | D342: 0.01 | E342: =G289 -> 363.7306696 | G342: =F233 -> 0.4573745927 | H342: 1
A343: 0.5 | B343: =B342 -> 36.37306696 | D343: 0.5 | E343: =E342 -> 363.7306696 | G343: =G342 -> 0.4573745927 | H343: =F232 -> 40.01037365
A345: According to this "threshold line" and the inrush curve the threshold setting would trip
A347: comparing this graph with the one given for this 1MVA transformer….
A365: Inrush curve
A366: t | B366: Iinrush
A367: 0.01 | B367: =$G$287*$G$290*EXP(-1*A367/$G$293)/$G$290 -> 9.622687144
... 28 more rows
